Workbook

Sheet Cover Sheet
B1: Registered User: | G1: Free Trial Version - Not For Commercial Use | AF1: © 2017 CivilWeb
B2: Your Logo / Company Details Here | G2: Project: | AF2: By:
G3: Calculation: | M3: Single Span Beam Analysis
AF4: Approved:
G5: Sheet Number: | M5: Cover Sheet | T5: Date:
H7: Although all care and attention has been taken to ensure that this program is accurate, CivilWeb gives no guarentee that it is error free. In no event will Civil Web accept any responsibility for any errors or omissions from the program or from the user of the program, or for any special, incedental or consequential damages whatsoever arising from use of this program.
H14: This program should only be used by a suitably qualified Civil or Structural Engineer, and suitable efforts should be taken to verify the results.
H18: Reverse-engineering or decompiling of this program is not allowed.
H20: This program is registered to a single user, and should not be used by any other.
H23: Registered User;
H24: Free Trial Version
H26: By using this program you confirm your understanding and agreement with the above terms and conditions.
H29: This program remains the property of CivilWeb.
H30: www.civilweb-spreadsheets.com
H32: Revision Schedule
H34: Rev | J34: Changes | Z34: Date
H35: 0 | J35: Original | Z35: 2017-06-01

Sheet Single Span Beam Analysis
B1: Registered User: | G1: Free Trial Version - Not For Commercial Use | AF1: © 2017 CivilWeb
B2: Your Logo / Company Details Here | G2: Project: | AF2: By:
G3: Calculation: | M3: Single Span Beam Analysis | FK3: Corrections for P Loads at Supports:
AF4: Approved:
G5: Sheet Number: | M5: 1 | T5: Date:
FK6: Dist. a = 0 | FL6: Dist. a = L
H7: Beam Details | FK7: =IF($AY$30=0,$AZ$30,0) -> 0 | FL7: =IF($AY$30=$P$9,$AZ$30,0) -> 0
H8: Span Supports | N8: Fixed | FK8: =IF($AY$31=0,$AZ$31,0) -> 0 | FL8: =IF($AY$31=$P$9,$AZ$31,0) -> 0
H9: Span Length | P9: 6 | S9: m | FK9: =IF($AY$32=0,$AZ$32,0) -> 0 | FL9: =IF($AY$32=$P$9,$AZ$32,0) -> 0
H10: Modulus of Elasticity | P10: 200000 | S10: Mpa | AX10: span typ | AY10: Simply Supportd | BA10: Loading | BE10: Simply Supported | BF10: 1 | FK10: =IF($AY$33=0,$AZ$33,0) -> 0 | FL10: =IF($AY$33=$P$9,$AZ$33,0) -> 0
H11: Inertia | P11: 16274.5 | S11: cm⁴ | AX11: Span | AZ11: m | BA11: Imposed Full UDL | BC11: kN/m | BE11: Cantilever | BF11: 2 | BI11: At right support | BM11: udl | BQ11: Dist1 | BU11: Dist2 | BY11: Dist3 | CC11: Dist4 | CG11: Dist5 | CK11: Dist6 | CO11: all points | CS11: all momnts | CW11: sum all functions | FK11: =IF($AY$34=0,$AZ$34,0) -> 0 | FL11: =IF($AY$34=$P$9,$AZ$34,0) -> 0
AX12: Modulus | AZ12: Mpa | BA12: Slf Weight | BC12: kN/m | BE12: Propped Cantilever | BF12: 3 | BH12: Shar | BI12: momnt | BJ12: rotation | BK12: dflction | BM12: Shar | BN12: momnt | BO12: rotation | BP12: dflction | BQ12: Shar | BR12: momnt | BS12: rotation | BT12: dflction | BU12: Shar | BV12: momnt | BW12: rotation | BX12: dflction | BY12: Shar | BZ12: momnt | CA12: rotation | CB12: dflction | CC12: Shar | CD12: momnt | CE12: rotation | CF12: dflction | CG12: Shar | CH12: momnt | CI12: rotation | CJ12: dflction | CK12: Shar | CL12: momnt | CM12: rotation | CN12: dflction | CO12: Shar | CP12: momnt | CQ12: rotation | CR12: dflction | CS12: Shar | CT12: momnt | CU12: rotation | CV12: dflction | CW12: Shar | CX12: momnt | CY12: rotation | CZ12: dflction | DB12: Shar | DC12: momnt | DD12: rotation | DE12: dflction | FK12: =IF($AY$35=0,$AZ$35,0) -> 0 | FL12: =IF($AY$35=$P$9,$AZ$35,0) -> 0
AX13: Inrtia | AZ13: cm^4 | BA13: Othr Dad Loads | BC13: kN/m | BE13: Fixed | BF13: 4 | BG13: udl | BH13: =IF($BB$16=0,"",-$BB$16*$P$9) -> -444 | BI13: =IF($BB$16=0,"",-$BB$16*$P$9^2/2) -> -1332 | BJ13: =IF($BB$16=0,"",-$BB$16*$P$9^3/(6*$P$10*$P$11)) -> -8.184583244e-07 | BK13: =IF($BB$16=0,"",$BB$16*$P$9^4/(24*$P$10*$P$11)) -> 1.227687487e-06 | BL13: 0 | BM13: =IF($BB$16=0,"",IF($DF13=$P$9,-$BB$16*($DF13-($DF13-$P$9)),IF($DF13>=0,-$BB$16*$DF13,0))) -> 0 | BN13: =IF($BB$16=0,"",IF($DF13=$P$9,-$BB$16*($DF13^2-($DF13-$P$9)^2)/2,IF($DF13>=0,-$BB$16*$DF13^2/2,0))) -> 0 | BO13: =IF($BB$16=0,"",IF($DF13=$P$9,-$BB$16*($DF13^3-($DF13-$P$9)^3)/(6*$P$10*$P$11),IF($DF13>=0,-$BB$16*$DF13^3/(6*$P$10*$P$11),0))) -> 0 | BP13: =IF($BB$16=0,"",IF($DF13=$P$9,$BB$16*($DF13^4-($DF13-$P$9)^4)/(24*$P$10*$P$11),IF($DF13>=0,$BB$16*$DF13^4/(24*$P$10*$P$11),0))) -> 0 | BQ13: =IF($AY$20=$BA$20,"",IF(AND($AY$20="",$AZ$20="",$BA$20="",$BB$20=""),"",(IF($DF13>=$BA$20,-$AZ$20*($DF13-$AY$20-($DF13-$BA$20)),IF($DF13>=$AY$20,-$AZ$20*($DF13-$AY$20),0)))+(IF($DF13>=$BA$20,-1/2*($BB$20-$AZ$20)/($BA$20-$AY$20)*(($DF13-$AY$20)^2-($DF13-$BA$20)^2)+($BB$20-$AZ$20)*($DF13-$BA$20),IF($DF13>=$AY$20,-1/2*($BB$20-$AZ$20)/($BA$20-$AY$20)*($DF13-$AY$20)^2,0))))) -> 0 | BR13: =IF($AY$20=$BA$20,"",IF(AND($AY$20="",$AZ$20="",$BA$20="",$BB$20=""),"",(IF($DF13>=$BA$20,-$AZ$20/2*(($DF13-$AY$20)^2-($DF13-$BA$20)^2),IF($DF13>=$AY$20,-$AZ$20/2*($DF13-$AY$20)^2,0)))+(IF($DF13>=$BA$20,-1/6*($BB$20-$AZ$20)/($BA$20-$AY$20)*(($DF13-$AY$20)^3-($DF13-$BA$20)^3)+($BB$20-$AZ$20)/2*($DF13-$BA$20)^2,IF($DF13>=$AY$20,-1/6*($BB$20-$AZ$20)/($BA$20-$AY$20)*($DF13-$AY$20)^3,0))))) -> 0 | BS13: =IF($AY$20=$BA$20,"",IF(AND($AY$20="",$AZ$20="",$BA$20="",$BB$20=""),"",(IF($DF13>=$BA$20,-$AZ$20/(6*$P$10*$P$11)*(($DF13-$AY$20)^3-($DF13-$BA$20)^3),IF($DF13>=$AY$20,-$AZ$20/(6*$P$10*$P$11)*($DF13-$AY$20)^3,0)))+(IF($DF13>=$BA$20,-1/(24*$P$10*$P$11)*($BB$20-$AZ$20)/($BA$20-$AY$20)*(($DF13-$AY$20)^4-($DF13-$BA$20)^4)+($BB$20-$AZ$20)/(6*$P$10*$P$11)*($DF13-$BA$20)^3,IF($DF13>=$AY$20,-1/(24*$P$10*$P$11)*($BB$20-$AZ$20)/($BA$20-$AY$20)*($DF13-$AY$20)^4,0))))) -> 0 | BT13: =IF($AY$20=$BA$20,"",IF(AND($AY$20="",$AZ$20="",$BA$20="",$BB$20=""),"",(IF($DF13>=$BA$20,$AZ$20/(24*$P$10*$P$11)*(($DF13-$AY$20)^4-($DF13-$BA$20)^4),IF($DF13>=$AY$20,$AZ$20/(24*$P$10*$P$11)*($DF13-$AY$20)^4,0)))+(IF($DF13>=$BA$20,1/(120*$P$10*$P$11)*($BB$20-$AZ$20)/($BA$20-$AY$20)*(($DF13-$AY$20)^5-($DF13-$BA$20)^5)-($BB$20-$AZ$20)/(24*$P$10*$P$11)*($DF13-$BA$20)^4,IF($DF13>=$AY$20,1/(120*$P$10*$P$11)*($BB$20-$AZ$20)/($BA$20-$AY$20)*($DF13-$AY$20)^5,0))))) -> 0 | BU13: =IF($AY$21=$BA$21,"",IF(AND($AY$21="",$AZ$21="",$BA$21="",$BB$21=""),"",(IF($DF13>=$BA$21,-$AZ$21*($DF13-$AY$21-($DF13-$BA$21)),IF($DF13>=$AY$21,-$AZ$21*($DF13-$AY$21),0)))+(IF($DF13>=$BA$21,-1/2*($BB$21-$AZ$21)/($BA$21-$AY$21)*(($DF13-$AY$21)^2-($DF13-$BA$21)^2)+($BB$21-$AZ$21)*($DF13-$BA$21),IF($DF13>=$AY$21,-1/2*($BB$21-$AZ$21)/($BA$21-$AY$21)*($DF13-$AY$21)^2,0))))) ->  | BV13: =IF($AY$21=$BA$21,"",IF(AND($AY$21="",$AZ$21="",$BA$21="",$BB$21=""),"",(IF($DF13>=$BA$21,-$AZ$21/2*(($DF13-$AY$21)^2-($DF13-$BA$21)^2),IF($DF13>=$AY$21,-$AZ$21/2*($DF13-$AY$21)^2,0)))+(IF($DF13>=$BA$21,-1/6*($BB$21-$AZ$21)/($BA$21-$AY$21)*(($DF13-$AY$21)^3-($DF13-$BA$21)^3)+($BB$21-$AZ$21)/2*($DF13-$BA$21)^2,IF($DF13>=$AY$21,-1/6*($BB$21-$AZ$21)/($BA$21-$AY$21)*($DF13-$AY$21)^3,0))))) ->  | BW13: =IF($AY$21=$BA$21,"",IF(AND($AY$21="",$AZ$21="",$BA$21="",$BB$21=""),"",(IF($DF13>=$BA$21,-$AZ$21/(6*$P$10*$P$11)*(($DF13-$AY$21)^3-($DF13-$BA$21)^3),IF($DF13>=$AY$21,-$AZ$21/(6*$P$10*$P$11)*($DF13-$AY$21)^3,0)))+(IF($DF13>=$BA$21,-1/(24*$P$10*$P$11)*($BB$21-$AZ$21)/($BA$21-$AY$21)*(($DF13-$AY$21)^4-($DF13-$BA$21)^4)+($BB$21-$AZ$21)/(6*$P$10*$P$11)*($DF13-$BA$21)^3,IF($DF13>=$AY$21,-1/(24*$P$10*$P$11)*($BB$21-$AZ$21)/($BA$21-$AY$21)*($DF13-$AY$21)^4,0))))) ->  | BX13: =IF($AY$21=$BA$21,"",IF(AND($AY$21="",$AZ$21="",$BA$21="",$BB$21=""),"",(IF($DF13>=$BA$21,$AZ$21/(24*$P$10*$P$11)*(($DF13-$AY$21)^4-($DF13-$BA$21)^4),IF($DF13>=$AY$21,$AZ$21/(24*$P$10*$P$11)*($DF13-$AY$21)^4,0)))+(IF($DF13>=$BA$21,1/(120*$P$10*$P$11)*($BB$21-$AZ$21)/($BA$21-$AY$21)*(($DF13-$AY$21)^5-($DF13-$BA$21)^5)-($BB$21-$AZ$21)/(24*$P$10*$P$11)*($DF13-$BA$21)^4,IF($DF13>=$AY$21,1/(120*$P$10*$P$11)*($BB$21-$AZ$21)/($BA$21-$AY$21)*($DF13-$AY$21)^5,0))))) ->  | BY13: =IF($AY$22=$BA$22,"",IF(AND($AY$22="",$AZ$22="",$BA$22="",$BB$22=""),"",(IF($DF13>=$BA$22,-$AZ$22*($DF13-$AY$22-($DF13-$BA$22)),IF($DF13>=$AY$22,-$AZ$22*($DF13-$AY$22),0)))+(IF($DF13>=$BA$22,-1/2*($BB$22-$AZ$22)/($BA$22-$AY$22)*(($DF13-$AY$22)^2-($DF13-$BA$22)^2)+($BB$22-$AZ$22)*($DF13-$BA$22),IF($DF13>=$AY$22,-1/2*($BB$22-$AZ$22)/($BA$22-$AY$22)*($DF13-$AY$22)^2,0))))) ->  | BZ13: =IF($AY$22=$BA$22,"",IF(AND($AY$22="",$AZ$22="",$BA$22="",$BB$22=""),"",(IF($DF13>=$BA$22,-$AZ$22/2*(($DF13-$AY$22)^2-($DF13-$BA$22)^2),IF($DF13>=$AY$22,-$AZ$22/2*($DF13-$AY$22)^2,0)))+(IF($DF13>=$BA$22,-1/6*($BB$22-$AZ$22)/($BA$22-$AY$22)*(($DF13-$AY$22)^3-($DF13-$BA$22)^3)+($BB$22-$AZ$22)/2*($DF13-$BA$22)^2,IF($DF13>=$AY$22,-1/6*($BB$22-$AZ$22)/($BA$22-$AY$22)*($DF13-$AY$22)^3,0))))) ->  | CA13: =IF($AY$22=$BA$22,"",IF(AND($AY$22="",$AZ$22="",$BA$22="",$BB$22=""),"",(IF($DF13>=$BA$22,-$AZ$22/(6*$P$10*$P$11)*(($DF13-$AY$22)^3-($DF13-$BA$22)^3),IF($DF13>=$AY$22,-$AZ$22/(6*$P$10*$P$11)*($DF13-$AY$22)^3,0)))+(IF($DF13>=$BA$22,-1/(24*$P$10*$P$11)*($BB$22-$AZ$22)/($BA$22-$AY$22)*(($DF13-$AY$22)^4-($DF13-$BA$22)^4)+($BB$22-$AZ$22)/(6*$P$10*$P$11)*($DF13-$BA$22)^3,IF($DF13>=$AY$22,-1/(24*$P$10*$P$11)*($BB$22-$AZ$22)/($BA$22-$AY$22)*($DF13-$AY$22)^4,0))))) ->  | CB13: =IF($AY$22=$BA$22,"",IF(AND($AY$22="",$AZ$22="",$BA$22="",$BB$22=""),"",(IF($DF13>=$BA$22,$AZ$22/(24*$P$10*$P$11)*(($DF13-$AY$22)^4-($DF13-$BA$22)^4),IF($DF13>=$AY$22,$AZ$22/(24*$P$10*$P$11)*($DF13-$AY$22)^4,0)))+(IF($DF13>=$BA$22,1/(120*$P$10*$P$11)*($BB$22-$AZ$22)/($BA$22-$AY$22)*(($DF13-$AY$22)^5-($DF13-$BA$22)^5)-($BB$22-$AZ$22)/(24*$P$10*$P$11)*($DF13-$BA$22)^4,IF($DF13>=$AY$22,1/(120*$P$10*$P$11)*($BB$22-$AZ$22)/($BA$22-$AY$22)*($DF13-$AY$22)^5,0))))) ->  | CC13: =IF($AY$23=$BA$23,"",IF(AND($AY$23="",$AZ$23="",$BA$23="",$BB$23=""),"",(IF($DF13>=$BA$23,-$AZ$23*($DF13-$AY$23-($DF13-$BA$23)),IF($DF13>=$AY$23,-$AZ$23*($DF13-$AY$23),0)))+(IF($DF13>=$BA$23,-1/2*($BB$23-$AZ$23)/($BA$23-$AY$23)*(($DF13-$AY$23)^2-($DF13-$BA$23)^2)+($BB$23-$AZ$23)*($DF13-$BA$23),IF($DF13>=$AY$23,-1/2*($BB$23-$AZ$23)/($BA$23-$AY$23)*($DF13-$AY$23)^2,0))))) ->  | CD13: =IF($AY$23=$BA$23,"",IF(AND($AY$23="",$AZ$23="",$BA$23="",$BB$23=""),"",(IF($DF13>=$BA$23,-$AZ$23/2*(($DF13-$AY$23)^2-($DF13-$BA$23)^2),IF($DF13>=$AY$23,-$AZ$23/2*($DF13-$AY$23)^2,0)))+(IF($DF13>=$BA$23,-1/6*($BB$23-$AZ$23)/($BA$23-$AY$23)*(($DF13-$AY$23)^3-($DF13-$BA$23)^3)+($BB$23-$AZ$23)/2*($DF13-$BA$23)^2,IF($DF13>=$AY$23,-1/6*($BB$23-$AZ$23)/($BA$23-$AY$23)*($DF13-$AY$23)^3,0))))) ->  | CE13: =IF($AY$23=$BA$23,"",IF(AND($AY$23="",$AZ$23="",$BA$23="",$BB$23=""),"",(IF($DF13>=$BA$23,-$AZ$23/(6*$P$10*$P$11)*(($DF13-$AY$23)^3-($DF13-$BA$23)^3),IF($DF13>=$AY$23,-$AZ$23/(6*$P$10*$P$11)*($DF13-$AY$23)^3,0)))+(IF($DF13>=$BA$23,-1/(24*$P$10*$P$11)*($BB$23-$AZ$23)/($BA$23-$AY$23)*(($DF13-$AY$23)^4-($DF13-$BA$23)^4)+($BB$23-$AZ$23)/(6*$P$10*$P$11)*($DF13-$BA$23)^3,IF($DF13>=$AY$23,-1/(24*$P$10*$P$11)*($BB$23-$AZ$23)/($BA$23-$AY$23)*($DF13-$AY$23)^4,0))))) ->  | CF13: =IF($AY$23=$BA$23,"",IF(AND($AY$23="",$AZ$23="",$BA$23="",$BB$23=""),"",(IF($DF13>=$BA$23,$AZ$23/(24*$P$10*$P$11)*(($DF13-$AY$23)^4-($DF13-$BA$23)^4),IF($DF13>=$AY$23,$AZ$23/(24*$P$10*$P$11)*($DF13-$AY$23)^4,0)))+(IF($DF13>=$BA$23,1/(120*$P$10*$P$11)*($BB$23-$AZ$23)/($BA$23-$AY$23)*(($DF13-$AY$23)^5-($DF13-$BA$23)^5)-($BB$23-$AZ$23)/(24*$P$10*$P$11)*($DF13-$BA$23)^4,IF($DF13>=$AY$23,1/(120*$P$10*$P$11)*($BB$23-$AZ$23)/($BA$23-$AY$23)*($DF13-$AY$23)^5,0))))) ->  | CG13: =IF($AY$24=$BA$24,"",IF(AND($AY$24="",$AZ$24="",$BA$24="",$BB$24=""),"",(IF($DF13>=$BA$24,-$AZ$24*($DF13-$AY$24-($DF13-$BA$24)),IF($DF13>=$AY$24,-$AZ$24*($DF13-$AY$24),0)))+(IF($DF13>=$BA$24,-1/2*($BB$24-$AZ$24)/($BA$24-$AY$24)*(($DF13-$AY$24)^2-($DF13-$BA$24)^2)+($BB$24-$AZ$24)*($DF13-$BA$24),IF($DF13>=$AY$24,-1/2*($BB$24-$AZ$24)/($BA$24-$AY$24)*($DF13-$AY$24)^2,0))))) ->  | CH13: =IF($AY$24=$BA$24,"",IF(AND($AY$24="",$AZ$24="",$BA$24="",$BB$24=""),"",(IF($DF13>=$BA$24,-$AZ$24/2*(($DF13-$AY$24)^2-($DF13-$BA$24)^2),IF($DF13>=$AY$24,-$AZ$24/2*($DF13-$AY$24)^2,0)))+(IF($DF13>=$BA$24,-1/6*($BB$24-$AZ$24)/($BA$24-$AY$24)*(($DF13-$AY$24)^3-($DF13-$BA$24)^3)+($BB$24-$AZ$24)/2*($DF13-$BA$24)^2,IF($DF13>=$AY$24,-1/6*($BB$24-$AZ$24)/($BA$24-$AY$24)*($DF13-$AY$24)^3,0))))) ->  | CI13: =IF($AY$24=$BA$24,"",IF(AND($AY$24="",$AZ$24="",$BA$24="",$BB$24=""),"",(IF($DF13>=$BA$24,-$AZ$24/(6*$P$10*$P$11)*(($DF13-$AY$24)^3-($DF13-$BA$24)^3),IF($DF13>=$AY$24,-$AZ$24/(6*$P$10*$P$11)*($DF13-$AY$24)^3,0)))+(IF($DF13>=$BA$24,-1/(24*$P$10*$P$11)*($BB$24-$AZ$24)/($BA$24-$AY$24)*(($DF13-$AY$24)^4-($DF13-$BA$24)^4)+($BB$24-$AZ$24)/(6*$P$10*$P$11)*($DF13-$BA$24)^3,IF($DF13>=$AY$24,-1/(24*$P$10*$P$11)*($BB$24-$AZ$24)/($BA$24-$AY$24)*($DF13-$AY$24)^4,0))))) ->  | CJ13: =IF($AY$24=$BA$24,"",IF(AND($AY$24="",$AZ$24="",$BA$24="",$BB$24=""),"",(IF($DF13>=$BA$24,$AZ$24/(24*$P$10*$P$11)*(($DF13-$AY$24)^4-($DF13-$BA$24)^4),IF($DF13>=$AY$24,$AZ$24/(24*$P$10*$P$11)*($DF13-$AY$24)^4,0)))+(IF($DF13>=$BA$24,1/(120*$P$10*$P$11)*($BB$24-$AZ$24)/($BA$24-$AY$24)*(($DF13-$AY$24)^5-($DF13-$BA$24)^5)-($BB$24-$AZ$24)/(24*$P$10*$P$11)*($DF13-$BA$24)^4,IF($DF13>=$AY$24,1/(120*$P$10*$P$11)*($BB$24-$AZ$24)/($BA$24-$AY$24)*($DF13-$AY$24)^5,0))))) ->  | CK13: =IF($AY$25=$BA$25,"",IF(AND($AY$25="",$AZ$25="",$BA$25="",$BB$25=""),"",(IF($DF13>=$BA$25,-$AZ$25*($DF13-$AY$25-($DF13-$BA$25)),IF($DF13>=$AY$25,-$AZ$25*($DF13-$AY$25),0)))+(IF($DF13>=$BA$25,-1/2*($BB$25-$AZ$25)/($BA$25-$AY$25)*(($DF13-$AY$25)^2-($DF13-$BA$25)^2)+($BB$25-$AZ$25)*($DF13-$BA$25),IF($DF13>=$AY$25,-1/2*($BB$25-$AZ$25)/($BA$25-$AY$25)*($DF13-$AY$25)^2,0))))) ->  | CL13: =IF($AY$25=$BA$25,"",IF(AND($AY$25="",$AZ$25="",$BA$25="",$BB$25=""),"",(IF($DF13>=$BA$25,-$AZ$25/2*(($DF13-$AY$25)^2-($DF13-$BA$25)^2),IF($DF13>=$AY$25,-$AZ$25/2*($DF13-$AY$25)^2,0)))+(IF($DF13>=$BA$25,-1/6*($BB$25-$AZ$25)/($BA$25-$AY$25)*(($DF13-$AY$25)^3-($DF13-$BA$25)^3)+($BB$25-$AZ$25)/2*($DF13-$BA$25)^2,IF($DF13>=$AY$25,-1/6*($BB$25-$AZ$25)/($BA$25-$AY$25)*($DF13-$AY$25)^3,0))))) ->  | CM13: =IF($AY$25=$BA$25,"",IF(AND($AY$25="",$AZ$25="",$BA$25="",$BB$25=""),"",(IF($DF13>=$BA$25,-$AZ$25/(6*$P$10*$P$11)*(($DF13-$AY$25)^3-($DF13-$BA$25)^3),IF($DF13>=$AY$25,-$AZ$25/(6*$P$10*$P$11)*($DF13-$AY$25)^3,0)))+(IF($DF13>=$BA$25,-1/(24*$P$10*$P$11)*($BB$25-$AZ$25)/($BA$25-$AY$25)*(($DF13-$AY$25)^4-($DF13-$BA$25)^4)+($BB$25-$AZ$25)/(6*$P$10*$P$11)*($DF13-$BA$25)^3,IF($DF13>=$AY$25,-1/(24*$P$10*$P$11)*($BB$25-$AZ$25)/($BA$25-$AY$25)*($DF13-$AY$25)^4,0))))) ->  | CN13: =IF($AY$25=$BA$25,"",IF(AND($AY$25="",$AZ$25="",$BA$25="",$BB$25=""),"",(IF($DF13>=$BA$25,$AZ$25/(24*$P$10*$P$11)*(($DF13-$AY$25)^4-($DF13-$BA$25)^4),IF($DF13>=$AY$25,$AZ$25/(24*$P$10*$P$11)*($DF13-$AY$25)^4,0)))+(IF($DF13>=$BA$25,1/(120*$P$10*$P$11)*($BB$25-$AZ$25)/($BA$25-$AY$25)*(($DF13-$AY$25)^5-($DF13-$BA$25)^5)-($BB$25-$AZ$25)/(24*$P$10*$P$11)*($DF13-$BA$25)^4,IF($DF13>=$AY$25,1/(120*$P$10*$P$11)*($BB$25-$AZ$25)/($BA$25-$AY$25)*($DF13-$AY$25)^5,0))))) ->  | CO13: =IF($DF13>$AY$30,-$AZ$30,0)+IF($DF13>$AY$31,-$AZ$31,0)+IF($DF13>$AY$32,-$AZ$32,0)+IF($DF13>$AY$33,-$AZ$33,0)+IF($DF13>$AY$34,-$AZ$34,0)+IF($DF13>$AY$35,-$AZ$35,0) -> 0 | CP13: =IF($DF13>$AY$30,-$AZ$30*($DF13-$AY$30),0)+IF($DF13>$AY$31,-$AZ$31*($DF13-$AY$31),0)+IF($DF13>$AY$32,-$AZ$32*($DF13-$AY$32),0)+IF($DF13>$AY$33,-$AZ$33*($DF13-$AY$33),0)+IF($DF13>$AY$34,-$AZ$34*($DF13-$AY$34),0)+IF($DF13>$AY$35,-$AZ$35*($DF13-$AY$35),0) -> 0 | CQ13: =IF($DF13>$AY$30,-$AZ$30*($DF13-$AY$30)^2/(2*$P$10*$P$11),0)+IF($DF13>$AY$31,-$AZ$31*($DF13-$AY$31)^2/(2*$P$10*$P$11),0)+IF($DF13>$AY$32,-$AZ$32*($DF13-$AY$32)^2/(2*$P$10*$P$11),0)+IF($DF13>$AY$33,-$AZ$33*($DF13-$AY$33)^2/(2*$P$10*$P$11),0)+IF($DF13>$AY$34,-$AZ$34*($DF13-$AY$34)^2/(2*$P$10*$P$11),0)+IF($DF13>$AY$35,-$AZ$35*($DF13-$AY$35)^2/(2*$P$10*$P$11),0) -> 0 | CR13: =IF($DF13>$AY$30,$AZ$30*($DF13-$AY$30)^3/(6*$P$10*$P$11),0)+IF($DF13>$AY$31,$AZ$31*($DF13-$AY$31)^3/(6*$P$10*$P$11),0)+IF($DF13>$AY$32,$AZ$32*($DF13-$AY$32)^3/(6*$P$10*$P$11),0)+IF($DF13>$AY$33,$AZ$33*($DF13-$AY$33)^3/(6*$P$10*$P$11),0)+IF($DF13>$AY$34,$AZ$34*($DF13-$AY$34)^3/(6*$P$10*$P$11),0)+IF($DF13>$AY$35,$AZ$35*($DF13-$AY$35)^3/(6*$P$10*$P$11),0) -> 0 | CS13: =IF($DF13>=IF($AY$47=$P$9,$AY$47+0.000000001,$AY$47),0,0)+IF($DF13>=IF($AY$48=$P$9,$AY$48+0.000000001,$AY$48),0,0)+IF($DF13>=IF($AY$49=$P$9,$AY$49+0.000000001,$AY$49),0,0)+IF($DF13>=IF($AY$50=$P$9,$AY$50+0.000000001,$AY$50),0,0)+IF($DF13>=IF($AY$51=$P$9,$AY$51+0.000000001,$AY$51),0,0)+IF($DF13>=IF($AY$52=$P$9,$AY$52+0.000000001,$AY$52),0,0) -> 0 | CT13: =IF($DF13>=IF($AY$47=$P$9,$AY$47+0.000000001,$AY$47),-$AZ$47,0)+IF($DF13>=IF($AY$48=$P$9,$AY$48+0.000000001,$AY$48),-$AZ$48,0)+IF($DF13>=IF($AY$49=$P$9,$AY$49+0.000000001,$AY$49),-$AZ$49,0)+IF($DF13>=IF($AY$50=$P$9,$AY$50+0.000000001,$AY$50),-$AZ$50,0)+IF($DF13>=IF($AY$51=$P$9,$AY$51+0.000000001,$AY$51),-$AZ$51,0)+IF($DF13>=IF($AY$52=$P$9,$AY$52+0.000000001,$AY$52),-$AZ$52,0) -> 0 | CU13: =IF($DF13>=IF($AY$47=$P$9,$AY$47+0.000000001,$AY$47),-$AZ$47*($DF13-$AY$47)/($P$10*$P$11),0)+IF($DF13>=IF($AY$48=$P$9,$AY$48+0.000000001,$AY$48),-$AZ$48*($DF13-$AY$48)/($P$10*$P$11),0)+IF($DF13>=IF($AY$49=$P$9,$AY$49+0.000000001,$AY$49),-$AZ$49*($DF13-$AY$49)/($P$10*$P$11),0)+IF($DF13>=IF($AY$50=$P$9,$AY$50+0.000000001,$AY$50),-$AZ$50*($DF13-$AY$50)/($P$10*$P$11),0)+IF($DF13>=IF($AY$51=$P$9,$AY$51+0.000000001,$AY$51),-$AZ$51*($DF13-$AY$51)/($P$10*$P$11),0)+IF($DF13>=IF($AY$52=$P$9,$AY$52+0.000000001,$AY$52),-$AZ$52*($DF13-$AY$52)/($P$10*$P$11),0) -> 0 | CV13: =IF($DF13>=IF($AY$47=$P$9,$AY$47+0.000000001,$AY$47),$AZ$47*($DF13-$AY$47)^2/(2*$P$10*$P$11),0)+IF($DF13>=IF($AY$48=$P$9,$AY$48+0.000000001,$AY$48),$AZ$48*($DF13-$AY$48)^2/(2*$P$10*$P$11),0)+IF($DF13>=IF($AY$49=$P$9,$AY$49+0.000000001,$AY$49),$AZ$49*($DF13-$AY$49)^2/(2*$P$10*$P$11),0)+IF($DF13>=IF($AY$50=$P$9,$AY$50+0.000000001,$AY$50),$AZ$50*($DF13-$AY$50)^2/(2*$P$10*$P$11),0)+IF($DF13>=IF($AY$51=$P$9,$AY$51+0.000000001,$AY$51),$AZ$51*($DF13-$AY$51)^2/(2*$P$10*$P$11),0)+IF($DF13>=IF($AY$52=$P$9,$AY$52+0.000000001,$AY$52),$AZ$52*($DF13-$AY$52)^2/(2*$P$10*$P$11),0) -> 0 | CW13: =SUM(CS13,CO13,CK13,CG13,CC13,BY13,BU13,BQ13,BM13) -> 0 | CX13: =SUM(CT13,CP13,CL13,CH13,CD13,BZ13,BV13,BR13,BN13) -> 0 | CY13: 0 | CZ13: =SUM(CV13,CR13,CN13,CJ13,CF13,CB13,BX13,BT13,BP13) -> 0 | DB13: =($BH30+$CW13)+$FK$24 -> 316.9058333 | DC13: =$BI$30+$BH$30*$DF13+$CX13 -> -313.3966667 | DD13: =($BJ$30+$BI$30*$DF13/($P$10*$P$11)+$BH$30*$DF13^2/(2*$P$10*$P$11)+$CY13)*100000 -> 0 | DE13: =(-($BK$30-$BJ$30*$DF13-$BI$30*$DF13^2/(2*$P$10*$P$11)-$BH$30*$DF13^3/(6*$P$10*$P$11)+$CZ13))*100000000 -> 0 | DF13: 0
BA14: Dad FOS | BL14: 1 | BM14: -4.44 | BN14: -0.1332 | BO14: -8.184583244e-13 | BP14: 1.227687487e-14 | BQ14: 0 | BR14: 0 | BS14: 0 | BT14: 0 | CO14: 0 | CP14: 0 | CQ14: 0 | CR14: 0 | CS14: 0 | CT14: 0 | CU14: 0 | CV14: 0 | CW14: =SUM(CS14,CO14,CK14,CG14,CC14,BY14,BU14,BQ14,BM14) -> -4.44 | CX14: =SUM(CT14,CP14,CL14,CH14,CD14,BZ14,BV14,BR14,BN14) -> -0.1332 | CY14: =SUM(CU14,CQ14,CM14,CI14,CE14,CA14,BW14,BS14,BO14) -> -8.184583244e-13 | CZ14: =SUM(CV14,CR14,CN14,CJ14,CF14,CB14,BX14,BT14,BP14) -> 1.227687487e-14 | DB14: =($BH$30+$CW14) -> 312.4658333 | DC14: -294.5155167 | DD14: -0.0005602640173 | DE14: -0.01698194568 | DF14: =P$9/100*BL14 -> 0.06
AX15: Analysis at spific point | BA15: Imposd FOS | BE15: Dead | BF15: =VLOOKUP(N8,BE10:BF13,2,FALSE) -> 4 | BG15: dist1 | BH15: =IF($AY$20=$BA$20,"",IF(AND($AY$20="",$AZ$20="",$BA$20="",$BB$20=""),"",(-$AZ$20*($P$9-$AY$20-($P$9-$BA$20)))+(-1/2*($BB$20-$AZ$20)/($BA$20-$AY$20)*(($P$9-$AY$20)^2-($P$9-$BA$20)^2)+($BB$20-$AZ$20)*($P$9-$BA$20)))) -> -86.1 | BI15: =IF($AY$20=$BA$20,"",IF(AND($AY$20="",$AZ$20="",$BA$20="",$BB$20=""),"",(-$AZ$20/2*(($P$9-$AY$20)^2-($P$9-$BA$20)^2))+(-1/6*($BB$20-$AZ$20)/($BA$20-$AY$20)*(($P$9-$AY$20)^3-($P$9-$BA$20)^3)+($BB$20-$AZ$20)/2*($P$9-$BA$20)^2))) -> -310.8 | BJ15: =IF($AY$20=$BA$20,"",IF(AND($AY$20="",$AZ$20="",$BA$20="",$BB$20=""),"",(-$AZ$20/(6*$P$10*$P$11)*(($P$9-$AY$20)^3-($P$9-$BA$20)^3))+(-1/(24*$P$10*$P$11)*($BB$20-$AZ$20)/($BA$20-$AY$20)*(($P$9-$AY$20)^4-($P$9-$BA$20)^4)+($BB$20-$AZ$20)/(6*$P$10*$P$11)*($P$9-$BA$20)^3))) -> -1.821023687e-07 | BK15: =IF($AY$20=$BA$20,"",IF(AND($AY$20="",$AZ$20="",$BA$20="",$BB$20=""),"",($AZ$20/(24*$P$10*$P$11)*(($P$9-$AY$20)^4-($P$9-$BA$20)^4))+(1/(120*$P$10*$P$11)*($BB$20-$AZ$20)/($BA$20-$AY$20)*(($P$9-$AY$20)^5-($P$9-$BA$20)^5)-($BB$20-$AZ$20)/(24*$P$10*$P$11)*($P$9-$BA$20)^4))) -> 2.421794832e-07 | BL15: 2 | BM15: -8.88 | BN15: -0.5328 | BO15: -6.547666595e-12 | BP15: 1.964299978e-13 | BQ15: 0 | BR15: 0 | BS15: 0 | BT15: 0 | CO15: 0 | CP15: 0 | CQ15: 0 | CR15: 0 | CS15: 0 | CT15: 0 | CU15: 0 | CV15: 0 | CW15: -8.88 | CX15: -0.5328 | CY15: -6.547666595e-12 | CZ15: 1.964299978e-13 | DB15: =($BH$30+$CW15) -> 308.0258333 | DC15: -275.9007667 | DD15: -0.00108596854 | DE15: -0.06654049218 | DF15: 0.12
AS16: max | AT16: =MAX(P46:R51,T37:V42,AB31:AD33) -> 24 | BA16: total UDL | BB16: =AB31*S31+AB32*S31+AB33*S32 -> 74 | BC16: kN/m | BE16: Imposed | BG16: dist2 | BH16: =IF($AY$21=$BA$21,"",IF(AND($AY$21="",$AZ$21="",$BA$21="",$BB$21=""),"",(-$AZ$21*($P$9-$AY$21-($P$9-$BA$21)))+(-1/2*($BB$21-$AZ$21)/($BA$21-$AY$21)*(($P$9-$AY$21)^2-($P$9-$BA$21)^2)+($BB$21-$AZ$21)*($P$9-$BA$21)))) ->  | BI16: =IF($AY$21=$BA$21,"",IF(AND($AY$21="",$AZ$21="",$BA$21="",$BB$21=""),"",(-$AZ$21/2*(($P$9-$AY$21)^2-($P$9-$BA$21)^2))+(-1/6*($BB$21-$AZ$21)/($BA$21-$AY$21)*(($P$9-$AY$21)^3-($P$9-$BA$21)^3)+($BB$21-$AZ$21)/2*($P$9-$BA$21)^2))) ->  | BJ16: =IF($AY$21=$BA$21,"",IF(AND($AY$21="",$AZ$21="",$BA$21="",$BB$21=""),"",(-$AZ$21/(6*$P$10*$P$11)*(($P$9-$AY$21)^3-($P$9-$BA$21)^3))+(-1/(24*$P$10*$P$11)*($BB$21-$AZ$21)/($BA$21-$AY$21)*(($P$9-$AY$21)^4-($P$9-$BA$21)^4)+($BB$21-$AZ$21)/(6*$P$10*$P$11)*($P$9-$BA$21)^3))) ->  | BK16: =IF($AY$21=$BA$21,"",IF(AND($AY$21="",$AZ$21="",$BA$21="",$BB$21=""),"",($AZ$21/(24*$P$10*$P$11)*(($P$9-$AY$21)^4-($P$9-$BA$21)^4))+(1/(120*$P$10*$P$11)*($BB$21-$AZ$21)/($BA$21-$AY$21)*(($P$9-$AY$21)^5-($P$9-$BA$21)^5)-($BB$21-$AZ$21)/(24*$P$10*$P$11)*($P$9-$BA$21)^4))) ->  | BL16: 3 | BM16: -13.32 | BN16: -1.1988 | BO16: -2.209837476e-11 | BP16: 9.944268641e-13 | BQ16: 0 | BR16: 0 | BS16: 0 | BT16: 0 | CO16: 0 | CP16: 0 | CQ16: 0 | CR16: 0 | CS16: 0 | CT16: 0 | CU16: 0 | CV16: 0 | CW16: -13.32 | CX16: -1.1988 | CY16: -2.209837476e-11 | CZ16: 9.944268641e-13 | DB16: 303.5858333 | DC16: -257.5524167 | DD16: -0.001577604642 | DE16: -0.1466168021 | DF16: 0.18
BG17: dist3 | BH17: =IF($AY$22=$BA$22,"",IF(AND($AY$22="",$AZ$22="",$BA$22="",$BB$22=""),"",(-$AZ$22*($P$9-$AY$22-($P$9-$BA$22)))+(-1/2*($BB$22-$AZ$22)/($BA$22-$AY$22)*(($P$9-$AY$22)^2-($P$9-$BA$22)^2)+($BB$22-$AZ$22)*($P$9-$BA$22)))) ->  | BI17: =IF($AY$22=$BA$22,"",IF(AND($AY$22="",$AZ$22="",$BA$22="",$BB$22=""),"",(-$AZ$22/2*(($P$9-$AY$22)^2-($P$9-$BA$22)^2))+(-1/6*($BB$22-$AZ$22)/($BA$22-$AY$22)*(($P$9-$AY$22)^3-($P$9-$BA$22)^3)+($BB$22-$AZ$22)/2*($P$9-$BA$22)^2))) ->  | BJ17: =IF($AY$22=$BA$22,"",IF(AND($AY$22="",$AZ$22="",$BA$22="",$BB$22=""),"",(-$AZ$22/(6*$P$10*$P$11)*(($P$9-$AY$22)^3-($P$9-$BA$22)^3))+(-1/(24*$P$10*$P$11)*($BB$22-$AZ$22)/($BA$22-$AY$22)*(($P$9-$AY$22)^4-($P$9-$BA$22)^4)+($BB$22-$AZ$22)/(6*$P$10*$P$11)*($P$9-$BA$22)^3))) ->  | BK17: =IF($AY$22=$BA$22,"",IF(AND($AY$22="",$AZ$22="",$BA$22="",$BB$22=""),"",($AZ$22/(24*$P$10*$P$11)*(($P$9-$AY$22)^4-($P$9-$BA$22)^4))+(1/(120*$P$10*$P$11)*($BB$22-$AZ$22)/($BA$22-$AY$22)*(($P$9-$AY$22)^5-($P$9-$BA$22)^5)-($BB$22-$AZ$22)/(24*$P$10*$P$11)*($P$9-$BA$22)^4))) ->  | BL17: 4 | BM17: -17.76 | BN17: -2.1312 | BO17: -5.238133276e-11 | BP17: 3.142879966e-12 | BQ17: 0 | BR17: 0 | BS17: 0 | BT17: 0 | CO17: 0 | CP17: 0 | CQ17: 0 | CR17: 0 | CS17: 0 | CT17: 0 | CU17: 0 | CV17: 0 | CW17: -17.76 | CX17: -2.1312 | CY17: -5.238133276e-11 | CZ17: 3.142879966e-12 | DB17: 299.1458333 | DC17: -239.4704667 | DD17: -0.0020356634 | DE17: -0.2551815024 | DF17: 0.24
BG18: dist4 | BH18: =IF($AY$23=$BA$23,"",IF(AND($AY$23="",$AZ$23="",$BA$23="",$BB$23=""),"",(-$AZ$23*($P$9-$AY$23-($P$9-$BA$23)))+(-1/2*($BB$23-$AZ$23)/($BA$23-$AY$23)*(($P$9-$AY$23)^2-($P$9-$BA$23)^2)+($BB$23-$AZ$23)*($P$9-$BA$23)))) ->  | BI18: =IF($AY$23=$BA$23,"",IF(AND($AY$23="",$AZ$23="",$BA$23="",$BB$23=""),"",(-$AZ$23/2*(($P$9-$AY$23)^2-($P$9-$BA$23)^2))+(-1/6*($BB$23-$AZ$23)/($BA$23-$AY$23)*(($P$9-$AY$23)^3-($P$9-$BA$23)^3)+($BB$23-$AZ$23)/2*($P$9-$BA$23)^2))) ->  | BJ18: =IF($AY$23=$BA$23,"",IF(AND($AY$23="",$AZ$23="",$BA$23="",$BB$23=""),"",(-$AZ$23/(6*$P$10*$P$11)*(($P$9-$AY$23)^3-($P$9-$BA$23)^3))+(-1/(24*$P$10*$P$11)*($BB$23-$AZ$23)/($BA$23-$AY$23)*(($P$9-$AY$23)^4-($P$9-$BA$23)^4)+($BB$23-$AZ$23)/(6*$P$10*$P$11)*($P$9-$BA$23)^3))) ->  | BK18: =IF($AY$23=$BA$23,"",IF(AND($AY$23="",$AZ$23="",$BA$23="",$BB$23=""),"",($AZ$23/(24*$P$10*$P$11)*(($P$9-$AY$23)^4-($P$9-$BA$23)^4))+(1/(120*$P$10*$P$11)*($BB$23-$AZ$23)/($BA$23-$AY$23)*(($P$9-$AY$23)^5-($P$9-$BA$23)^5)-($BB$23-$AZ$23)/(24*$P$10*$P$11)*($P$9-$BA$23)^4))) ->  | BL18: 5 | BM18: -22.2 | BN18: -3.33 | BO18: -1.023072905e-10 | BP18: 7.673046791e-12 | BQ18: 0 | BR18: 0 | BS18: 0 | BT18: 0 | CO18: 0 | CP18: 0 | CQ18: 0 | CR18: 0 | CS18: 0 | CT18: 0 | CU18: 0 | CV18: 0 | CW18: -22.2 | CX18: -3.33 | CY18: -1.023072905e-10 | CZ18: 7.673046791e-12 | DB18: 294.7058333 | DC18: -221.6549167 | DD18: -0.002460635887 | DE18: -0.3902346846 | DF18: 0.3
AX19: Distributd Load | AY19: start | AZ19: kN/m | BA19: End | BB19: kN/m | BG19: dist5 | BH19: =IF($AY$24=$BA$24,"",IF(AND($AY$24="",$AZ$24="",$BA$24="",$BB$24=""),"",(-$AZ$24*($P$9-$AY$24-($P$9-$BA$24)))+(-1/2*($BB$24-$AZ$24)/($BA$24-$AY$24)*(($P$9-$AY$24)^2-($P$9-$BA$24)^2)+($BB$24-$AZ$24)*($P$9-$BA$24)))) ->  | BI19: =IF($AY$24=$BA$24,"",IF(AND($AY$24="",$AZ$24="",$BA$24="",$BB$24=""),"",(-$AZ$24/2*(($P$9-$AY$24)^2-($P$9-$BA$24)^2))+(-1/6*($BB$24-$AZ$24)/($BA$24-$AY$24)*(($P$9-$AY$24)^3-($P$9-$BA$24)^3)+($BB$24-$AZ$24)/2*($P$9-$BA$24)^2))) ->  | BJ19: =IF($AY$24=$BA$24,"",IF(AND($AY$24="",$AZ$24="",$BA$24="",$BB$24=""),"",(-$AZ$24/(6*$P$10*$P$11)*(($P$9-$AY$24)^3-($P$9-$BA$24)^3))+(-1/(24*$P$10*$P$11)*($BB$24-$AZ$24)/($BA$24-$AY$24)*(($P$9-$AY$24)^4-($P$9-$BA$24)^4)+($BB$24-$AZ$24)/(6*$P$10*$P$11)*($P$9-$BA$24)^3))) ->  | BK19: =IF($AY$24=$BA$24,"",IF(AND($AY$24="",$AZ$24="",$BA$24="",$BB$24=""),"",($AZ$24/(24*$P$10*$P$11)*(($P$9-$AY$24)^4-($P$9-$BA$24)^4))+(1/(120*$P$10*$P$11)*($BB$24-$AZ$24)/($BA$24-$AY$24)*(($P$9-$AY$24)^5-($P$9-$BA$24)^5)-($BB$24-$AZ$24)/(24*$P$10*$P$11)*($P$9-$BA$24)^4))) ->  | BL19: 6 | BM19: -26.64 | BN19: -4.7952 | BO19: -1.767869981e-10 | BP19: 1.591082983e-11 | BQ19: 0 | BR19: 0 | BS19: 0 | BT19: 0 | CO19: 0 | CP19: 0 | CQ19: 0 | CR19: 0 | CS19: 0 | CT19: 0 | CU19: 0 | CV19: 0 | CW19: -26.64 | CX19: -4.7952 | CY19: -1.767869981e-10 | CZ19: 1.591082983e-11 | DB19: 290.2658333 | DC19: -204.1057667 | DD19: -0.00285301318 | DE19: -0.5498059049 | DF19: 0.36
AX20: 1 | AY20: =M37 -> 1 | AZ20: =IF(I37="Dead",O37*$S$31,O37*$S$32) -> 35 | BA20: =R37 -> 4 | BB20: =IF(I37="Dead",T37*$S$31,T37*$S$32) -> 22.4 | BG20: dist6 | BH20: =IF($AY$25=$BA$25,"",IF(AND($AY$25="",$AZ$25="",$BA$25="",$BB$25=""),"",(-$AZ$25*($P$9-$AY$25-($P$9-$BA$25)))+(-1/2*($BB$25-$AZ$25)/($BA$25-$AY$25)*(($P$9-$AY$25)^2-($P$9-$BA$25)^2)+($BB$25-$AZ$25)*($P$9-$BA$25)))) ->  | BI20: =IF($AY$25=$BA$25,"",IF(AND($AY$25="",$AZ$25="",$BA$25="",$BB$25=""),"",(-$AZ$25/2*(($P$9-$AY$25)^2-($P$9-$BA$25)^2))+(-1/6*($BB$25-$AZ$25)/($BA$25-$AY$25)*(($P$9-$AY$25)^3-($P$9-$BA$25)^3)+($BB$25-$AZ$25)/2*($P$9-$BA$25)^2))) ->  | BJ20: =IF($AY$25=$BA$25,"",IF(AND($AY$25="",$AZ$25="",$BA$25="",$BB$25=""),"",(-$AZ$25/(6*$P$10*$P$11)*(($P$9-$AY$25)^3-($P$9-$BA$25)^3))+(-1/(24*$P$10*$P$11)*($BB$25-$AZ$25)/($BA$25-$AY$25)*(($P$9-$AY$25)^4-($P$9-$BA$25)^4)+($BB$25-$AZ$25)/(6*$P$10*$P$11)*($P$9-$BA$25)^3))) ->  | BK20: =IF($AY$25=$BA$25,"",IF(AND($AY$25="",$AZ$25="",$BA$25="",$BB$25=""),"",($AZ$25/(24*$P$10*$P$11)*(($P$9-$AY$25)^4-($P$9-$BA$25)^4))+(1/(120*$P$10*$P$11)*($BB$25-$AZ$25)/($BA$25-$AY$25)*(($P$9-$AY$25)^5-($P$9-$BA$25)^5)-($BB$25-$AZ$25)/(24*$P$10*$P$11)*($P$9-$BA$25)^4))) ->  | BL20: 7 | BM20: -31.08 | BN20: -6.5268 | BO20: -2.807312053e-10 | BP20: 2.947677655e-11 | BQ20: 0 | BR20: 0 | BS20: 0 | BT20: 0 | CO20: 0 | CP20: 0 | CQ20: 0 | CR20: 0 | CS20: 0 | CT20: 0 | CU20: 0 | CV20: 0 | CW20: -31.08 | CX20: -6.5268 | CY20: -2.807312053e-10 | CZ20: 2.947677655e-11 | DB20: 285.8258333 | DC20: -186.8230167 | DD20: -0.003213286353 | DE20: -0.7319541838 | DF20: 0.42
AX21: 2 | AY21: =M38 -> 0 | AZ21: =IF(I38="Dead",O38*$S$31,O38*$S$32) -> 0 | BA21: =R38 -> 0 | BB21: =IF(I38="Dead",T38*$S$31,T38*$S$32) -> 0 | BL21: 8 | BM21: -35.52 | BN21: -8.5248 | BO21: -4.190506621e-10 | BP21: 5.028607945e-11 | BQ21: 0 | BR21: 0 | BS21: 0 | BT21: 0 | CO21: 0 | CP21: 0 | CQ21: 0 | CR21: 0 | CS21: 0 | CT21: 0 | CU21: 0 | CV21: 0 | CW21: -35.52 | CX21: -8.5248 | CY21: -4.190506621e-10 | CZ21: 5.028607945e-11 | DB21: 281.3858333 | DC21: -169.8066667 | DD21: -0.003541946481 | DE21: -0.9347680064 | DF21: 0.48
AX22: 3 | AY22: 0 | AZ22: 0 | BA22: 0 | BB22: 0 | BG22: All Points | BH22: =-$AZ$30+-$AZ$31+-$AZ$32+-$AZ$33+-$AZ$34+-$AZ$35 -> -33.6 | BI22: =-$AZ$30*($P$9-$AY$30)+-$AZ$31*($P$9-$AY$31)+-$AZ$32*($P$9-$AY$32)+-$AZ$33*($P$9-$AY$33)+-$AZ$34*($P$9-$AY$34)+-$AZ$35*($P$9-$AY$35) -> -100.8 | BJ22: =-$AZ$30*($P$9-$AY$30)^2/(2*$P$10*$P$11)+-$AZ$31*($P$9-$AY$31)^2/(2*$P$10*$P$11)+-$AZ$32*($P$9-$AY$32)^2/(2*$P$10*$P$11)+-$AZ$33*($P$9-$AY$33)^2/(2*$P$10*$P$11)+-$AZ$34*($P$9-$AY$34)^2/(2*$P$10*$P$11)+-$AZ$35*($P$9-$AY$35)^2/(2*$P$10*$P$11) -> -4.645304003e-08 | BK22: =$AZ$30*($P$9-$AY$30)^3/(6*$P$10*$P$11)+$AZ$31*($P$9-$AY$31)^3/(6*$P$10*$P$11)+$AZ$32*($P$9-$AY$32)^3/(6*$P$10*$P$11)+$AZ$33*($P$9-$AY$33)^3/(6*$P$10*$P$11)+$AZ$34*($P$9-$AY$34)^3/(6*$P$10*$P$11)+$AZ$35*($P$9-$AY$35)^3/(6*$P$10*$P$11) -> 4.645304003e-08 | BL22: 9 | BM22: -39.96 | BN22: -10.7892 | BO22: -5.966561185e-10 | BP22: 8.054857599e-11 | BQ22: 0 | BR22: 0 | BS22: 0 | BT22: 0 | CO22: 0 | CP22: 0 | CQ22: 0 | CR22: 0 | CS22: 0 | CT22: 0 | CU22: 0 | CV22: 0 | CW22: -39.96 | CX22: -10.7892 | CY22: -5.966561185e-10 | CZ22: 8.054857599e-11 | DB22: 276.9458333 | DC22: -153.0567167 | DD22: -0.003839484639 | DE22: -1.156365322 | DF22: 0.54 | FK22: =SUM($FK$7:$FK$21) -> 0 | FL22: =SUM($FL$7:$FL$21) -> 0
AT23: 1111 | AX23: 4 | AY23: 0 | AZ23: 0 | BA23: 0 | BB23: 0 | BL23: 10 | BM23: -44.4 | BN23: -13.32 | BO23: -8.184583244e-10 | BP23: 1.227687487e-10 | BQ23: 0 | BR23: 0 | BS23: 0 | BT23: 0 | CO23: 0 | CP23: 0 | CQ23: 0 | CR23: 0 | CS23: 0 | CT23: 0 | CU23: 0 | CV23: 0 | CW23: -44.4 | CX23: -13.32 | CY23: -8.184583244e-10 | CZ23: 1.227687487e-10 | DB23: 272.5058333 | DC23: -136.5731667 | DD23: -0.004106391901 | DE23: -1.394893545 | DF23: 0.6 | FK23: Vx Correction: | FL23: Vx Correction:
AX24: 5 | AY24: 0 | AZ24: 0 | BA24: 0 | BB24: 0 | BG24: All Momnts | BH24: 0 | BI24: =-$AZ$47+-$AZ$48+-$AZ$49+-$AZ$50+-$AZ$51+-$AZ$52 -> -104 | BJ24: =-$AZ$47*($P$9-$AY$47)/($P$10*$P$11)+-$AZ$48*($P$9-$AY$48)/($P$10*$P$11)+-$AZ$49*($P$9-$AY$49)/($P$10*$P$11)+-$AZ$50*($P$9-$AY$50)/($P$10*$P$11)+-$AZ$51*($P$9-$AY$51)/($P$10*$P$11)+-$AZ$52*($P$9-$AY$52)/($P$10*$P$11) -> -1.278073059e-07 | BK24: =$AZ$47*($P$9-$AY$47)^2/(2*$P$10*$P$11)+$AZ$48*($P$9-$AY$48)^2/(2*$P$10*$P$11)+$AZ$49*($P$9-$AY$49)^2/(2*$P$10*$P$11)+$AZ$50*($P$9-$AY$50)^2/(2*$P$10*$P$11)+$AZ$51*($P$9-$AY$51)^2/(2*$P$10*$P$11)+$AZ$52*($P$9-$AY$52)^2/(2*$P$10*$P$11) -> 2.556146118e-07 | BL24: 11 | BM24: -48.84 | BN24: -16.1172 | BO24: -1.08936803e-09 | BP24: 1.797457249e-10 | BQ24: 0 | BR24: 0 | BS24: 0 | BT24: 0 | CO24: 0 | CP24: 0 | CQ24: 0 | CR24: 0 | CS24: 0 | CT24: 0 | CU24: 0 | CV24: 0 | CW24: -48.84 | CX24: -16.1172 | CY24: -1.08936803e-09 | CZ24: 1.797457249e-10 | DB24: 268.0658333 | DC24: -120.3560167 | DD24: -0.004343159344 | DE24: -1.648529554 | DF24: 0.66 | FK24: =IF($FK$22<>0,-$FK$22,0) -> 0 | FL24: =IF($FL$22<>0,$FL$22,0) -> 0
AR25: ="M1, "&AB46&"kNm" -> M1, 65kNm | AS25: 1 | AT25: =AS25%*2*PI() -> 0.06283185307 | AU25: =IF(AB46=0,1000,($AT$23/2000)*SIN(AT25)+($AT$23/2000)-0.6+(Y$46/P$9*10)) -> 3.323713467 | AV25: =($AT$23/2000)*COS(AT25)+$AT$23/2000-0.4 -> 0.7099038476 | AX25: 6 | AY25: 0 | AZ25: 0 | BA25: 0 | BB25: 0 | BL25: 12 | BM25: -53.28 | BN25: -19.1808 | BO25: -1.414295985e-09 | BP25: 2.545732772e-10 | BQ25: 0 | BR25: 0 | BS25: 0 | BT25: 0 | CO25: 0 | CP25: 0 | CQ25: 0 | CR25: 0 | CS25: 0 | CT25: 0 | CU25: 0 | CV25: 0 | CW25: -53.28 | CX25: -19.1808 | CY25: -1.414295985e-09 | CZ25: 2.545732772e-10 | DB25: 263.6258333 | DC25: -104.4052667 | DD25: -0.004550278042 | DE25: -1.915479692 | DF25: 0.72
AS26: 10 | AT26: =AS26%*2*PI() -> 0.6283185307 | AU26: =IF(AB46=0,1000,($AT$23/2000)*SIN(AT26)+($AT$23/2000)-0.6+(Y$46/P$9*10)) -> 3.615348041 | AV26: =($AT$23/2000)*COS(AT26)+$AT$23/2000-0.4 -> 0.6049089404 | BG26: Total | BH26: =SUM(BH13:BH24) -> -563.7 | BI26: =SUM(BI13:BI24) -> -1847.6 | BJ26: =SUM(BJ13:BJ24) -> -1.174821039e-06 | BK26: =SUM(BK13:BK24) -> 1.771934622e-06 | BL26: 13 | BM26: -57.72 | BN26: -22.5108 | BO26: -1.798152939e-09 | BP26: 3.50639823e-10 | BQ26: 0 | BR26: 0 | BS26: 0 | BT26: 0 | CO26: 0 | CP26: 0 | CQ26: 0 | CR26: 0 | CS26: 0 | CT26: 0 | CU26: 0 | CV26: 0 | CW26: -57.72 | CX26: -22.5108 | CY26: -1.798152939e-09 | CZ26: 3.50639823e-10 | DB26: 259.1858333 | DC26: -88.72091667 | DD26: -0.00472823907 | DE26: -2.193979766 | DF26: 0.78
AS27: 20 | AT27: 1.256637061 | AU27: =IF(AB46=0,1000,($AT$23/2000)*SIN(AT27)+($AT$23/2000)-0.6+(Y$46/P$9*10)) -> 3.817145228 | AV27: 0.3271589404 | BL27: 14 | BM27: -62.16 | BN27: -26.1072 | BO27: -2.245849642e-09 | BP27: 4.716284248e-10 | BQ27: 0 | BR27: 0 | BS27: 0 | BT27: 0 | CO27: 0 | CP27: 0 | CQ27: 0 | CR27: 0 | CS27: 0 | CT27: 0 | CU27: 0 | CV27: 0 | CW27: -62.16 | CX27: -26.1072 | CY27: -2.245849642e-09 | CZ27: 4.716284248e-10 | DB27: 254.7458333 | DC27: -73.30296667 | DD27: -0.004877533503 | DE27: -2.482295048 | DF27: 0.84
AS28: 30 | AT28: 1.884955592 | AU28: =IF(AB46=0,1000,($AT$23/2000)*SIN(AT28)+($AT$23/2000)-0.6+(Y$46/P$9*10)) -> 3.817145228 | AV28: -0.01615894038 | BH28: atx=0 | BL28: 15 | BM28: -66.6 | BN28: -29.97 | BO28: -2.762296845e-09 | BP28: 6.215167901e-10 | BQ28: 0 | BR28: 0 | BS28: 0 | BT28: 0 | CO28: 0 | CP28: 0 | CQ28: 0 | CR28: 0 | CS28: 0 | CT28: 0 | CU28: 0 | CV28: 0 | CW28: -66.6 | CX28: -29.97 | CY28: -2.762296845e-09 | CZ28: 6.215167901e-10 | DB28: 250.3058333 | DC28: -58.15141667 | DD28: -0.004998652416 | DE28: -2.778720276 | DF28: 0.9
AS29: 40 | AT29: 2.513274123 | AU29: =IF(AB46=0,1000,($AT$23/2000)*SIN(AT29)+($AT$23/2000)-0.6+(Y$46/P$9*10)) -> 3.615348041 | AV29: -0.2939089404 | AX29: Point Loads | AY29: Distanc from Support A | AZ29: kN | BL29: 16 | BM29: -71.04 | BN29: -34.0992 | BO29: -3.352405297e-09 | BP29: 8.045772712e-10 | BQ29: 0 | BR29: 0 | BS29: 0 | BT29: 0 | CO29: 0 | CP29: 0 | CQ29: 0 | CR29: 0 | CS29: 0 | CT29: 0 | CU29: 0 | CV29: 0 | CW29: -71.04 | CX29: -34.0992 | CY29: -3.352405297e-09 | CZ29: 8.045772712e-10 | DB29: 245.8658333 | DC29: -43.26626667 | DD29: -0.005092086884 | DE29: -3.081579649 | DF29: 0.96
H30: Factor of Safety | V30: UDL | AB30: kN/m | AS30: 50 | AT30: 3.141592654 | AU30: =IF(AB46=0,1000,($AT$23/2000)*SIN(AT30)+($AT$23/2000)-0.6+(Y$46/P$9*10)) -> 3.288833333 | AV30: -0.4 | AX30: 1 | AY30: =M46 -> 3 | AZ30: =IF(I46="Dead",P46*$S$31,P46*$S$32) -> 33.6 | BH30: =IF($BF$15=1,-1/$P$9*$BI26,IF($BF$15=3,-3*$P$10*$P$11/$P$9^3*$BK26-3*$P$10*$P$11/$P$9^2*$BJ26,IF($BF$15=4,-12*$P$10*$P$11/$P$9^3*$BK26-6*$P$10*$P$11/$P$9^2*$BJ26,IF($BF$15=2,0)))) -> 316.9058333 | BI30: =IF($BF$15=1,0,IF($BF$15=3,0,IF($BF$15=4,6*$P$10*$P$11/$P$9^2*$BK26+2*$P$10*$P$11/$P$9*$BJ26,IF($BF$15=2,0)))) -> -313.3966667 | BJ30: =IF($BF$15=1,1/$P$9*$BK26+$P$9/(6*$P$10*$P$11)*$BI26,IF($BF$15=3,3/(2*$P$9)*$BK26+1/2*$BJ26,IF($BF$15=4,0,IF($BF$15=2,-$BJ26)))) -> 0 | BK30: =IF($BF$15=1,0,IF($BF$15=3,0,IF($BF$15=4,0,IF($BF$15=2,-$BK26-$P$9*$BJ26)))) -> 0 | BL30: 17 | BM30: -75.48 | BN30: -38.4948 | BO30: -4.021085748e-09 | BP30: 1.025376866e-09 | BQ30: -0.69916 | BR30: -0.0069944 | BS30: -1.432875562e-14 | BT30: 7.165238051e-17 | CO30: 0 | CP30: 0 | CQ30: 0 | CR30: 0 | CS30: 0 | CT30: 0 | CU30: 0 | CV30: 0 | CW30: -76.17916 | CX30: -38.5017944 | CY30: -4.021100076e-09 | CZ30: 1.025376937e-09 | DB30: 240.7266733 | DC30: -28.65451107 | DD30: -0.005158329415 | DE30: -3.389226841 | DF30: 1.02
H31: Factor of Safety (Dead) | S31: 1.4 | V31: Self Weight | AB31: 10 | AX31: 2 | AY31: =M47 -> 0 | AZ31: =IF(I47="Dead",P47*$S$31,P47*$S$32) -> 0 | BL31: 18 | BM31: -79.92 | BN31: -43.1568 | BO31: -4.773248948e-09 | BP31: 1.288777216e-09 | BQ31: -2.78656 | BR31: -0.1116416 | BS31: -9.15388696e-13 | BT31: 1.831658279e-14 | CO31: 0 | CP31: 0 | CQ31: 0 | CR31: 0 | CS31: 0 | CT31: 0 | CU31: 0 | CV31: 0 | CW31: -82.70656 | CX31: -43.2684416 | CY31: -4.774164336e-09 | CZ31: 1.288795532e-09 | DB31: 234.1992733 | DC31: -14.40680827 | DD31: -0.005197958324 | DE31: -3.700046793 | DF31: 1.08
H32: Factor of Safety (Imposed) | S32: 1.6 | V32: Dead Loads | AB32: 20 | AX32: 3 | AY32: 0 | AZ32: 0 | BL32: 19 | BM32: -84.36 | BN32: -48.0852 | BO32: -5.613805647e-09 | BP32: 1.599934609e-09 | BQ32: -4.85884 | BR32: -0.3410792 | BS32: -4.897059408e-12 | BT32: 1.715416601e-13 | CO32: 0 | CP32: 0 | CQ32: 0 | CR32: 0 | CS32: 0 | CT32: 0 | CU32: 0 | CV32: 0 | CW32: -89.21884 | CX32: -48.4262792 | CY32: -5.618702706e-09 | CZ32: 1.600106151e-09 | DB32: 227.6869933 | DC32: -0.5502958667 | DD32: -0.005211684074 | DE32: -4.012463778 | DF32: 1.14
V33: Imposed Loads | AB33: 20 | AR33: ="M2, "&AB47&"kNm" -> M2, kNm | AS33: 1 | AT33: =AS33%*2*PI() -> 0.06283185307 | AU33: =IF(AB$47=0,1000,($AT$23/2000)*SIN(AT33)+($AT$23/2000)-0.6+(Y$47/P$9*10)) -> 1000 | AV33: =($AT$23/2000)*COS(AT33)+$AT$23/2000-0.4 -> 0.7099038476 | AX33: 4 | AY33: 0 | AZ33: =IF(I49="Dead",P49*$S$31,P49*$S$32) -> 0 | BL33: 20 | BM33: -88.8 | BN33: -53.28 | BO33: -6.547666595e-09 | BP33: 1.964299978e-09 | BQ33: -6.916 | BR33: -0.6944 | BS33: -1.425133389e-11 | BT33: 7.134269358e-13 | CO33: 0 | CP33: 0 | CQ33: 0 | CR33: 0 | CS33: 0 | CT33: 0 | CU33: 0 | CV33: 0 | CW33: -95.716 | CX33: -53.9744 | CY33: -6.561917929e-09 | CZ33: 1.965013405e-09 | DB33: 221.1898333 | DC33: 12.91593333 | DD33: -0.00520022694 | DE33: -4.324945225 | DF33: 1.2
AS34: 10 | AT34: =AS34%*2*PI() -> 0.6283185307 | AU34: =IF(AB$47=0,1000,($AT$23/2000)*SIN(AT34)+($AT$23/2000)-0.6+(Y$47/P$9*10)) -> 1000 | AV34: =($AT$23/2000)*COS(AT34)+$AT$23/2000-0.4 -> 0.6049089404 | AX34: 5 | AY34: 0 | AZ34: =IF(I50="Dead",P50*$S$31,P50*$S$32) -> 0 | BL34: 21 | BM34: -93.24 | BN34: -58.7412 | BO34: -7.579742542e-09 | BP34: 2.387618901e-09 | BQ34: -8.95804 | BR34: -1.1706968 | BS34: -3.125348203e-11 | BT34: 2.034670349e-12 | CO34: 0 | CP34: 0 | CQ34: 0 | CR34: 0 | CS34: 0 | CT34: 0 | CU34: 0 | CV34: 0 | CW34: -102.19804 | CX34: -59.9118968 | CY34: -7.610996024e-09 | CZ34: 2.389653571e-09 | DB34: 214.7077933 | DC34: 25.99278653 | DD34: -0.005164305523 | DE34: -4.636001727 | DF34: 1.26
H35: Distributed Loads | AS35: 20 | AT35: 1.256637061 | AU35: 1000 | AV35: 0.3271589404 | AX35: 6 | AY35: 0 | AZ35: 0 | BL35: 22 | BM35: -97.68 | BN35: -64.4688 | BO35: -8.714944238e-09 | BP35: 2.875931599e-09 | BQ35: -10.98496 | BR35: -1.7690624 | BS35: -5.816205065e-11 | BT35: 4.661984338e-12 | CO35: 0 | CP35: 0 | CQ35: 0 | CR35: 0 | CS35: 0 | CT35: 0 | CU35: 0 | CV35: 0 | CW35: -108.66496 | CX35: -66.2378624 | CY35: -8.773106289e-09 | CZ35: 2.880593583e-09 | DB35: 208.2408733 | DC35: 38.68117093 | DD35: -0.005104636753 | DE35: -4.944186942 | DF35: 1.32
I36: Type | M36: Start | O36: kN/m | R36: End | T36: kN/m | AS36: 30 | AT36: 1.884955592 | AU36: 1000 | AV36: -0.01615894038 | BC36: =IF(P46=0,"","P1, "&P46&"kN") -> P1, 24kN | BD36: 0 | BE36: 0.2 | BF36: =BD36/$AT$16*$P$46+(10/$P$9)*$M$46 -> 5 | BG36: =IF(BE36/$AT$16*$P$46<0.2,0.2,BE36/$AT$16*$P$46) -> 0.2 | BI36: =IF(O37=0,"","D1, "&O37&"kN") -> D1, 25kN | BJ36: =M37/$P$9*10 -> 1.666666667 | BK36: 0.2 | BL36: 23 | BM36: -102.12 | BN36: -70.4628 | BO36: -9.958182433e-09 | BP36: 3.435572939e-09 | BQ36: -12.99676 | BR36: -2.4885896 | BS36: -9.721886346e-11 | BT36: 9.257092459e-12 | CO36: 0 | CP36: 0 | CQ36: 0 | CR36: 0 | CS36: 0 | CT36: 0 | CU36: 0 | CV36: 0 | CW36: -115.11676 | CX36: -72.9513896 | CY36: -1.00554013e-08 | CZ36: 3.444830032e-09 | DB36: 201.7890733 | DC36: 50.98199373 | DD36: -0.005021935887 | DE36: -5.248097496 | DF36: 1.38
H37: 1 | I37: Dead | M37: 1 | O37: 25 | R37: 4 | T37: 16 | AS37: 40 | AT37: 2.513274123 | AU37: 1000 | AV37: -0.2939089404 | BD37: 1 | BE37: 1 | BF37: 6 | BG37: =IF($BE$36/$AT$16*$P$46<0.2,BE37/$AT$16*$P$46+0.2-$BE$36/$AT$16*$P$46,BE37/$AT$16*$P$46) -> 1 | BI37: =IF(T37=0,"","D1, "&T37&"kN") -> D1, 16kN | BJ37: =R37/$P$9*10 -> 6.666666667 | BK37: 0.2 | BL37: 24 | BM37: -106.56 | BN37: -76.7232 | BO37: -1.131436788e-08 | BP37: 4.073172435e-09 | BQ37: -14.99344 | BR37: -3.3283712 | BS37: -1.506490211e-10 | BT37: 1.6615726e-11 | CO37: 0 | CP37: 0 | CQ37: 0 | CR37: 0 | CS37: 0 | CT37: 0 | CU37: 0 | CV37: 0 | CW37: -121.55344 | CX37: -80.0515712 | CY37: -1.14650169e-08 | CZ37: 4.089788161e-09 | DB37: 195.3523933 | DC37: 62.89616213 | DD37: -0.00491691651 | DE37: -5.546372879 | DF37: 1.44
H38: 2 | AS38: 50 | AT38: 3.141592654 | AU38: 1000 | AV38: -0.4 | BD38: 0.25 | BE38: 1 | BF38: 5.25 | BG38: 1 | BJ38: =BJ37 -> 6.666666667 | BK38: =T37/$AT$16*4 -> 2.666666667 | BL38: 25 | BM38: -111 | BN38: -83.25 | BO38: -1.278841132e-08 | BP38: 4.795654244e-09 | BQ38: -16.975 | BR38: -4.2875 | BS38: -2.20660901e-10 | BT38: 2.766662058e-11 | CO38: 0 | CP38: 0 | CQ38: 0 | CR38: 0 | CS38: 0 | CT38: 0 | CU38: 0 | CV38: 0 | CW38: -127.975 | CX38: -87.5375 | CY38: -1.300907222e-08 | CZ38: 4.823320865e-09 | DB38: 188.9308333 | DC38: 74.42458333 | DD38: -0.004790290536 | DE38: -5.837695347 | DF38: 1.5
H39: 3 | BD39: 0.25 | BE39: 4 | BF39: 5.25 | BG39: 4 | BJ39: =BJ36 -> 1.666666667 | BK39: =O37/$AT$16*4 -> 4.166666667 | BL39: 26 | BM39: -115.44 | BN39: -90.0432 | BO39: -1.438522351e-08 | BP39: 5.610237169e-09 | BQ39: -18.94144 | BR39: -5.3650688 | BS39: -3.094461577e-10 | BT39: 4.34705128e-11 | CO39: 0 | CP39: 0 | CQ39: 0 | CR39: 0 | CS39: 0 | CT39: 0 | CU39: 0 | CV39: 0 | CW39: -134.38144 | CX39: -95.4082688 | CY39: -1.469466967e-08 | CZ39: 5.653707681e-09 | DB39: 182.5243933 | DC39: 85.56816453 | DD39: -0.004642768205 | DE39: -6.120789818 | DF39: 1.56
H40: 4 | BD40: 0 | BE40: 4 | BF40: 5 | BG40: 4 | BJ40: =BJ36 -> 1.666666667 | BK40: =BK36 -> 0.2 | BL40: 27 | BM40: -119.88 | BN40: -97.1028 | BO40: -1.61097152e-08 | BP40: 6.524434655e-09 | BQ40: -20.89276 | BR40: -6.5601704 | BS40: -4.191797225e-10 | BT40: 6.521913682e-11 | CO40: 0 | CP40: 0 | CQ40: 0 | CR40: 0 | CS40: 0 | CT40: 0 | CU40: 0 | CV40: 0 | CW40: -140.77276 | CX40: -103.6629704 | CY40: -1.652889492e-08 | CZ40: 6.589653792e-09 | DB40: 176.1330733 | DC40: 96.32781293 | DD40: -0.004475058084 | DE40: -6.394423776 | DF40: 1.62
H41: 5 | AR41: ="M3, "&AB48&"kNm" -> M3, kNm | AS41: 1 | AT41: =AS41%*2*PI() -> 0.06283185307 | AU41: =IF(AB$48=0,1000,($AT$23/2000)*SIN(AT41)+($AT$23/2000)-0.6+(Y$48/P$9*10)) -> 1000 | AV41: =($AT$23/2000)*COS(AT41)+$AT$23/2000-0.4 -> 0.7099038476 | BD41: -0.25 | BE41: 4 | BF41: 4.75 | BG41: 4 | BL41: 28 | BM41: -124.32 | BN41: -104.4288 | BO41: -1.796679714e-08 | BP41: 7.546054797e-09 | BQ41: -22.82896 | BR41: -7.8718976 | BS41: -5.520198036e-10 | BT41: 9.423422097e-11 | CO41: 0 | CP41: 0 | CQ41: 0 | CR41: 0 | CS41: 0 | CT41: 0 | CU41: 0 | CV41: 0 | CW41: -147.14896 | CX41: -112.3006976 | CY41: -1.851881694e-08 | CZ41: 7.640289018e-09 | DB41: 169.7568733 | DC41: 106.7044357 | DD41: -0.00428786707 | DE41: -6.657407171 | DF41: 1.68
H42: 6 | AS42: 10 | AT42: =AS42%*2*PI() -> 0.6283185307 | AU42: =IF(AB$48=0,1000,($AT$23/2000)*SIN(AT42)+($AT$23/2000)-0.6+(Y$48/P$9*10)) -> 1000 | AV42: =($AT$23/2000)*COS(AT42)+$AT$23/2000-0.4 -> 0.6049089404 | BD42: -0.25 | BE42: 1 | BF42: 4.75 | BG42: 1 | BI42: =IF(O38=0,"","D2, "&O38&"kN") ->  | BJ42: =M38/$P$9*10 -> 0 | BK42: 0.2 | BL42: 29 | BM42: -128.76 | BN42: -112.0212 | BO42: -1.996138007e-08 | BP42: 8.683200332e-09 | BQ42: -24.75004 | BR42: -9.2993432 | BS42: -7.101078862e-10 | BT42: 1.319664844e-10 | CO42: 0 | CP42: 0 | CQ42: 0 | CR42: 0 | CS42: 0 | CT42: 0 | CU42: 0 | CV42: 0 | CW42: -153.51004 | CX42: -121.3205432 | CY42: -2.067148796e-08 | CZ42: 8.815166816e-09 | DB42: 163.3957933 | DC42: 116.6989401 | DD42: -0.004081900386 | DE42: -6.908592313 | DF42: 1.74
AS43: 20 | AT43: 1.256637061 | AU43: 1000 | AV43: 0.3271589404 | BD43: -1 | BE43: 1 | BF43: 4 | BG43: 1 | BI43: =IF(T38=0,"","D2, "&T38&"kN") ->  | BJ43: =R38/$P$9*10 -> 0 | BK43: 0.2 | BL43: 30 | BM43: -133.2 | BN43: -119.88 | BO43: -2.209837476e-08 | BP43: 9.944268641e-09 | BQ43: -26.656 | BR43: -10.8416 | BS43: -8.955687323e-10 | BT43: 1.799946337e-10 | CO43: 0 | CP43: 0 | CQ43: 0 | CR43: 0 | CS43: 0 | CT43: 0 | CU43: 0 | CV43: 0 | CW43: -159.856 | CX43: -130.7216 | CY43: -2.299394349e-08 | CZ43: 1.012426327e-08 | DB43: 157.0498333 | DC43: 126.3122333 | DD43: -0.003857861583 | DE43: -7.146873776 | DF43: 1.8
H44: Point Loads | T44: Moments | AS44: 30 | AT44: 1.884955592 | AU44: 1000 | AV44: -0.01615894038 | BD44: 0 | BE44: 0.2 | BF44: 5 | BG44: =IF(BE44/$AT$16*$P$46<0.2,0.2,BE44/$AT$16*$P$46) -> 0.2 | BJ44: =BJ43 -> 0 | BK44: =T38/$AT$16*4 -> 0 | BL44: 31 | BM44: -137.64 | BN44: -128.0052 | BO44: -2.438269194e-08 | BP44: 1.133795175e-08 | BQ44: -28.54684 | BR44: -12.4977608 | BS44: -1.110510381e-09 | BT44: 2.400243595e-10 | CO44: 0 | CP44: 0 | CQ44: 0 | CR44: 0 | CS44: 0 | CT44: 0 | CU44: 0 | CV44: 0 | CW44: -166.18684 | CX44: -140.5029608 | CY44: -2.549320232e-08 | CZ44: 1.157797611e-08 | DB44: 150.7189933 | DC44: 135.5452225 | DD44: -0.00361645254 | DE44: -7.371188299 | DF44: 1.86
I45: Type | M45: Position | P45: kN | U45: Type | Y45: Position | AB45: kNm | AS45: 40 | AT45: 2.513274123 | AU45: 1000 | AV45: -0.2939089404 | BJ45: =BJ42 -> 0 | BK45: =O38/$AT$16*4 -> 0 | BL45: 32 | BM45: =IF($BB$16=0,"",IF($DF45=$P$9,-$BB$16*($DF45-($DF45-$P$9)),IF($DF45>=0,-$BB$16*$DF45,0))) -> -142.08 | BN45: =IF($BB$16=0,"",IF($DF45=$P$9,-$BB$16*($DF45^2-($DF45-$P$9)^2)/2,IF($DF45>=0,-$BB$16*$DF45^2/2,0))) -> -136.3968 | BO45: =IF($BB$16=0,"",IF($DF45=$P$9,-$BB$16*($DF45^3-($DF45-$P$9)^3)/(6*$P$10*$P$11),IF($DF45>=0,-$BB$16*$DF45^3/(6*$P$10*$P$11),0))) -> -2.681924237e-08 | BP45: =IF($BB$16=0,"",IF($DF45=$P$9,$BB$16*($DF45^4-($DF45-$P$9)^4)/(24*$P$10*$P$11),IF($DF45>=0,$BB$16*$DF45^4/(24*$P$10*$P$11),0))) -> 1.287323634e-08 | BQ45: =IF($AY$20=$BA$20,"",IF(AND($AY$20="",$AZ$20="",$BA$20="",$BB$20=""),"",(IF($DF45>=$BA$20,-$AZ$20*($DF45-$AY$20-($DF45-$BA$20)),IF($DF45>=$AY$20,-$AZ$20*($DF45-$AY$20),0)))+(IF($DF45>=$BA$20,-1/2*($BB$20-$AZ$20)/($BA$20-$AY$20)*(($DF45-$AY$20)^2-($DF45-$BA$20)^2)+($BB$20-$AZ$20)*($DF45-$BA$20),IF($DF45>=$AY$20,-1/2*($BB$20-$AZ$20)/($BA$20-$AY$20)*($DF45-$AY$20)^2,0))))) -> -30.42256 | BR45: =IF($AY$20=$BA$20,"",IF(AND($AY$20="",$AZ$20="",$BA$20="",$BB$20=""),"",(IF($DF45>=$BA$20,-$AZ$20/2*(($DF45-$AY$20)^2-($DF45-$BA$20)^2),IF($DF45>=$AY$20,-$AZ$20/2*($DF45-$AY$20)^2,0)))+(IF($DF45>=$BA$20,-1/6*($BB$20-$AZ$20)/($BA$20-$AY$20)*(($DF45-$AY$20)^3-($DF45-$BA$20)^3)+($BB$20-$AZ$20)/2*($DF45-$BA$20)^2,IF($DF45>=$AY$20,-1/6*($BB$20-$AZ$20)/($BA$20-$AY$20)*($DF45-$AY$20)^3,0))))) -> -14.2669184 | BS45: =IF($AY$20=$BA$20,"",IF(AND($AY$20="",$AZ$20="",$BA$20="",$BB$20=""),"",(IF($DF45>=$BA$20,-$AZ$20/(6*$P$10*$P$11)*(($DF45-$AY$20)^3-($DF45-$BA$20)^3),IF($DF45>=$AY$20,-$AZ$20/(6*$P$10*$P$11)*($DF45-$AY$20)^3,0)))+(IF($DF45>=$BA$20,-1/(24*$P$10*$P$11)*($BB$20-$AZ$20)/($BA$20-$AY$20)*(($DF45-$AY$20)^4-($DF45-$BA$20)^4)+($BB$20-$AZ$20)/(6*$P$10*$P$11)*($DF45-$BA$20)^3,IF($DF45>=$AY$20,-1/(24*$P$10*$P$11)*($BB$20-$AZ$20)/($BA$20-$AY$20)*($DF45-$AY$20)^4,0))))) -> -1.357024148e-09 | BT45: =IF($AY$20=$BA$20,"",IF(AND($AY$20="",$AZ$20="",$BA$20="",$BB$20=""),"",(IF($DF45>=$BA$20,$AZ$20/(24*$P$10*$P$11)*(($DF45-$AY$20)^4-($DF45-$BA$20)^4),IF($DF45>=$AY$20,$AZ$20/(24*$P$10*$P$11)*($DF45-$AY$20)^4,0)))+(IF($DF45>=$BA$20,1/(120*$P$10*$P$11)*($BB$20-$AZ$20)/($BA$20-$AY$20)*(($DF45-$AY$20)^5-($DF45-$BA$20)^5)-($BB$20-$AZ$20)/(24*$P$10*$P$11)*($DF45-$BA$20)^4,IF($DF45>=$AY$20,1/(120*$P$10*$P$11)*($BB$20-$AZ$20)/($BA$20-$AY$20)*($DF45-$AY$20)^5,0))))) -> 3.13887333e-10 | BU45: =IF($AY$21=$BA$21,"",IF(AND($AY$21="",$AZ$21="",$BA$21="",$BB$21=""),"",(IF($DF45>=$BA$21,-$AZ$21*($DF45-$AY$21-($DF45-$BA$21)),IF($DF45>=$AY$21,-$AZ$21*($DF45-$AY$21),0)))+(IF($DF45>=$BA$21,-1/2*($BB$21-$AZ$21)/($BA$21-$AY$21)*(($DF45-$AY$21)^2-($DF45-$BA$21)^2)+($BB$21-$AZ$21)*($DF45-$BA$21),IF($DF45>=$AY$21,-1/2*($BB$21-$AZ$21)/($BA$21-$AY$21)*($DF45-$AY$21)^2,0))))) ->  | BV45: =IF($AY$21=$BA$21,"",IF(AND($AY$21="",$AZ$21="",$BA$21="",$BB$21=""),"",(IF($DF45>=$BA$21,-$AZ$21/2*(($DF45-$AY$21)^2-($DF45-$BA$21)^2),IF($DF45>=$AY$21,-$AZ$21/2*($DF45-$AY$21)^2,0)))+(IF($DF45>=$BA$21,-1/6*($BB$21-$AZ$21)/($BA$21-$AY$21)*(($DF45-$AY$21)^3-($DF45-$BA$21)^3)+($BB$21-$AZ$21)/2*($DF45-$BA$21)^2,IF($DF45>=$AY$21,-1/6*($BB$21-$AZ$21)/($BA$21-$AY$21)*($DF45-$AY$21)^3,0))))) ->  | BW45: =IF($AY$21=$BA$21,"",IF(AND($AY$21="",$AZ$21="",$BA$21="",$BB$21=""),"",(IF($DF45>=$BA$21,-$AZ$21/(6*$P$10*$P$11)*(($DF45-$AY$21)^3-($DF45-$BA$21)^3),IF($DF45>=$AY$21,-$AZ$21/(6*$P$10*$P$11)*($DF45-$AY$21)^3,0)))+(IF($DF45>=$BA$21,-1/(24*$P$10*$P$11)*($BB$21-$AZ$21)/($BA$21-$AY$21)*(($DF45-$AY$21)^4-($DF45-$BA$21)^4)+($BB$21-$AZ$21)/(6*$P$10*$P$11)*($DF45-$BA$21)^3,IF($DF45>=$AY$21,-1/(24*$P$10*$P$11)*($BB$21-$AZ$21)/($BA$21-$AY$21)*($DF45-$AY$21)^4,0))))) ->  | BX45: =IF($AY$21=$BA$21,"",IF(AND($AY$21="",$AZ$21="",$BA$21="",$BB$21=""),"",(IF($DF45>=$BA$21,$AZ$21/(24*$P$10*$P$11)*(($DF45-$AY$21)^4-($DF45-$BA$21)^4),IF($DF45>=$AY$21,$AZ$21/(24*$P$10*$P$11)*($DF45-$AY$21)^4,0)))+(IF($DF45>=$BA$21,1/(120*$P$10*$P$11)*($BB$21-$AZ$21)/($BA$21-$AY$21)*(($DF45-$AY$21)^5-($DF45-$BA$21)^5)-($BB$21-$AZ$21)/(24*$P$10*$P$11)*($DF45-$BA$21)^4,IF($DF45>=$AY$21,1/(120*$P$10*$P$11)*($BB$21-$AZ$21)/($BA$21-$AY$21)*($DF45-$AY$21)^5,0))))) ->  | BY45: =IF($AY$22=$BA$22,"",IF(AND($AY$22="",$AZ$22="",$BA$22="",$BB$22=""),"",(IF($DF45>=$BA$22,-$AZ$22*($DF45-$AY$22-($DF45-$BA$22)),IF($DF45>=$AY$22,-$AZ$22*($DF45-$AY$22),0)))+(IF($DF45>=$BA$22,-1/2*($BB$22-$AZ$22)/($BA$22-$AY$22)*(($DF45-$AY$22)^2-($DF45-$BA$22)^2)+($BB$22-$AZ$22)*($DF45-$BA$22),IF($DF45>=$AY$22,-1/2*($BB$22-$AZ$22)/($BA$22-$AY$22)*($DF45-$AY$22)^2,0))))) ->  | BZ45: =IF($AY$22=$BA$22,"",IF(AND($AY$22="",$AZ$22="",$BA$22="",$BB$22=""),"",(IF($DF45>=$BA$22,-$AZ$22/2*(($DF45-$AY$22)^2-($DF45-$BA$22)^2),IF($DF45>=$AY$22,-$AZ$22/2*($DF45-$AY$22)^2,0)))+(IF($DF45>=$BA$22,-1/6*($BB$22-$AZ$22)/($BA$22-$AY$22)*(($DF45-$AY$22)^3-($DF45-$BA$22)^3)+($BB$22-$AZ$22)/2*($DF45-$BA$22)^2,IF($DF45>=$AY$22,-1/6*($BB$22-$AZ$22)/($BA$22-$AY$22)*($DF45-$AY$22)^3,0))))) ->  | CA45: =IF($AY$22=$BA$22,"",IF(AND($AY$22="",$AZ$22="",$BA$22="",$BB$22=""),"",(IF($DF45>=$BA$22,-$AZ$22/(6*$P$10*$P$11)*(($DF45-$AY$22)^3-($DF45-$BA$22)^3),IF($DF45>=$AY$22,-$AZ$22/(6*$P$10*$P$11)*($DF45-$AY$22)^3,0)))+(IF($DF45>=$BA$22,-1/(24*$P$10*$P$11)*($BB$22-$AZ$22)/($BA$22-$AY$22)*(($DF45-$AY$22)^4-($DF45-$BA$22)^4)+($BB$22-$AZ$22)/(6*$P$10*$P$11)*($DF45-$BA$22)^3,IF($DF45>=$AY$22,-1/(24*$P$10*$P$11)*($BB$22-$AZ$22)/($BA$22-$AY$22)*($DF45-$AY$22)^4,0))))) ->  | CB45: =IF($AY$22=$BA$22,"",IF(AND($AY$22="",$AZ$22="",$BA$22="",$BB$22=""),"",(IF($DF45>=$BA$22,$AZ$22/(24*$P$10*$P$11)*(($DF45-$AY$22)^4-($DF45-$BA$22)^4),IF($DF45>=$AY$22,$AZ$22/(24*$P$10*$P$11)*($DF45-$AY$22)^4,0)))+(IF($DF45>=$BA$22,1/(120*$P$10*$P$11)*($BB$22-$AZ$22)/($BA$22-$AY$22)*(($DF45-$AY$22)^5-($DF45-$BA$22)^5)-($BB$22-$AZ$22)/(24*$P$10*$P$11)*($DF45-$BA$22)^4,IF($DF45>=$AY$22,1/(120*$P$10*$P$11)*($BB$22-$AZ$22)/($BA$22-$AY$22)*($DF45-$AY$22)^5,0))))) ->  | CC45: =IF($AY$23=$BA$23,"",IF(AND($AY$23="",$AZ$23="",$BA$23="",$BB$23=""),"",(IF($DF45>=$BA$23,-$AZ$23*($DF45-$AY$23-($DF45-$BA$23)),IF($DF45>=$AY$23,-$AZ$23*($DF45-$AY$23),0)))+(IF($DF45>=$BA$23,-1/2*($BB$23-$AZ$23)/($BA$23-$AY$23)*(($DF45-$AY$23)^2-($DF45-$BA$23)^2)+($BB$23-$AZ$23)*($DF45-$BA$23),IF($DF45>=$AY$23,-1/2*($BB$23-$AZ$23)/($BA$23-$AY$23)*($DF45-$AY$23)^2,0))))) ->  | CD45: =IF($AY$23=$BA$23,"",IF(AND($AY$23="",$AZ$23="",$BA$23="",$BB$23=""),"",(IF($DF45>=$BA$23,-$AZ$23/2*(($DF45-$AY$23)^2-($DF45-$BA$23)^2),IF($DF45>=$AY$23,-$AZ$23/2*($DF45-$AY$23)^2,0)))+(IF($DF45>=$BA$23,-1/6*($BB$23-$AZ$23)/($BA$23-$AY$23)*(($DF45-$AY$23)^3-($DF45-$BA$23)^3)+($BB$23-$AZ$23)/2*($DF45-$BA$23)^2,IF($DF45>=$AY$23,-1/6*($BB$23-$AZ$23)/($BA$23-$AY$23)*($DF45-$AY$23)^3,0))))) ->  | CE45: =IF($AY$23=$BA$23,"",IF(AND($AY$23="",$AZ$23="",$BA$23="",$BB$23=""),"",(IF($DF45>=$BA$23,-$AZ$23/(6*$P$10*$P$11)*(($DF45-$AY$23)^3-($DF45-$BA$23)^3),IF($DF45>=$AY$23,-$AZ$23/(6*$P$10*$P$11)*($DF45-$AY$23)^3,0)))+(IF($DF45>=$BA$23,-1/(24*$P$10*$P$11)*($BB$23-$AZ$23)/($BA$23-$AY$23)*(($DF45-$AY$23)^4-($DF45-$BA$23)^4)+($BB$23-$AZ$23)/(6*$P$10*$P$11)*($DF45-$BA$23)^3,IF($DF45>=$AY$23,-1/(24*$P$10*$P$11)*($BB$23-$AZ$23)/($BA$23-$AY$23)*($DF45-$AY$23)^4,0))))) ->  | CF45: =IF($AY$23=$BA$23,"",IF(AND($AY$23="",$AZ$23="",$BA$23="",$BB$23=""),"",(IF($DF45>=$BA$23,$AZ$23/(24*$P$10*$P$11)*(($DF45-$AY$23)^4-($DF45-$BA$23)^4),IF($DF45>=$AY$23,$AZ$23/(24*$P$10*$P$11)*($DF45-$AY$23)^4,0)))+(IF($DF45>=$BA$23,1/(120*$P$10*$P$11)*($BB$23-$AZ$23)/($BA$23-$AY$23)*(($DF45-$AY$23)^5-($DF45-$BA$23)^5)-($BB$23-$AZ$23)/(24*$P$10*$P$11)*($DF45-$BA$23)^4,IF($DF45>=$AY$23,1/(120*$P$10*$P$11)*($BB$23-$AZ$23)/($BA$23-$AY$23)*($DF45-$AY$23)^5,0))))) ->  | CG45: =IF($AY$24=$BA$24,"",IF(AND($AY$24="",$AZ$24="",$BA$24="",$BB$24=""),"",(IF($DF45>=$BA$24,-$AZ$24*($DF45-$AY$24-($DF45-$BA$24)),IF($DF45>=$AY$24,-$AZ$24*($DF45-$AY$24),0)))+(IF($DF45>=$BA$24,-1/2*($BB$24-$AZ$24)/($BA$24-$AY$24)*(($DF45-$AY$24)^2-($DF45-$BA$24)^2)+($BB$24-$AZ$24)*($DF45-$BA$24),IF($DF45>=$AY$24,-1/2*($BB$24-$AZ$24)/($BA$24-$AY$24)*($DF45-$AY$24)^2,0))))) ->  | CH45: =IF($AY$24=$BA$24,"",IF(AND($AY$24="",$AZ$24="",$BA$24="",$BB$24=""),"",(IF($DF45>=$BA$24,-$AZ$24/2*(($DF45-$AY$24)^2-($DF45-$BA$24)^2),IF($DF45>=$AY$24,-$AZ$24/2*($DF45-$AY$24)^2,0)))+(IF($DF45>=$BA$24,-1/6*($BB$24-$AZ$24)/($BA$24-$AY$24)*(($DF45-$AY$24)^3-($DF45-$BA$24)^3)+($BB$24-$AZ$24)/2*($DF45-$BA$24)^2,IF($DF45>=$AY$24,-1/6*($BB$24-$AZ$24)/($BA$24-$AY$24)*($DF45-$AY$24)^3,0))))) ->  | CI45: =IF($AY$24=$BA$24,"",IF(AND($AY$24="",$AZ$24="",$BA$24="",$BB$24=""),"",(IF($DF45>=$BA$24,-$AZ$24/(6*$P$10*$P$11)*(($DF45-$AY$24)^3-($DF45-$BA$24)^3),IF($DF45>=$AY$24,-$AZ$24/(6*$P$10*$P$11)*($DF45-$AY$24)^3,0)))+(IF($DF45>=$BA$24,-1/(24*$P$10*$P$11)*($BB$24-$AZ$24)/($BA$24-$AY$24)*(($DF45-$AY$24)^4-($DF45-$BA$24)^4)+($BB$24-$AZ$24)/(6*$P$10*$P$11)*($DF45-$BA$24)^3,IF($DF45>=$AY$24,-1/(24*$P$10*$P$11)*($BB$24-$AZ$24)/($BA$24-$AY$24)*($DF45-$AY$24)^4,0))))) ->  | CJ45: =IF($AY$24=$BA$24,"",IF(AND($AY$24="",$AZ$24="",$BA$24="",$BB$24=""),"",(IF($DF45>=$BA$24,$AZ$24/(24*$P$10*$P$11)*(($DF45-$AY$24)^4-($DF45-$BA$24)^4),IF($DF45>=$AY$24,$AZ$24/(24*$P$10*$P$11)*($DF45-$AY$24)^4,0)))+(IF($DF45>=$BA$24,1/(120*$P$10*$P$11)*($BB$24-$AZ$24)/($BA$24-$AY$24)*(($DF45-$AY$24)^5-($DF45-$BA$24)^5)-($BB$24-$AZ$24)/(24*$P$10*$P$11)*($DF45-$BA$24)^4,IF($DF45>=$AY$24,1/(120*$P$10*$P$11)*($BB$24-$AZ$24)/($BA$24-$AY$24)*($DF45-$AY$24)^5,0))))) ->  | CK45: =IF($AY$25=$BA$25,"",IF(AND($AY$25="",$AZ$25="",$BA$25="",$BB$25=""),"",(IF($DF45>=$BA$25,-$AZ$25*($DF45-$AY$25-($DF45-$BA$25)),IF($DF45>=$AY$25,-$AZ$25*($DF45-$AY$25),0)))+(IF($DF45>=$BA$25,-1/2*($BB$25-$AZ$25)/($BA$25-$AY$25)*(($DF45-$AY$25)^2-($DF45-$BA$25)^2)+($BB$25-$AZ$25)*($DF45-$BA$25),IF($DF45>=$AY$25,-1/2*($BB$25-$AZ$25)/($BA$25-$AY$25)*($DF45-$AY$25)^2,0))))) ->  | CL45: =IF($AY$25=$BA$25,"",IF(AND($AY$25="",$AZ$25="",$BA$25="",$BB$25=""),"",(IF($DF45>=$BA$25,-$AZ$25/2*(($DF45-$AY$25)^2-($DF45-$BA$25)^2),IF($DF45>=$AY$25,-$AZ$25/2*($DF45-$AY$25)^2,0)))+(IF($DF45>=$BA$25,-1/6*($BB$25-$AZ$25)/($BA$25-$AY$25)*(($DF45-$AY$25)^3-($DF45-$BA$25)^3)+($BB$25-$AZ$25)/2*($DF45-$BA$25)^2,IF($DF45>=$AY$25,-1/6*($BB$25-$AZ$25)/($BA$25-$AY$25)*($DF45-$AY$25)^3,0))))) ->  | CM45: =IF($AY$25=$BA$25,"",IF(AND($AY$25="",$AZ$25="",$BA$25="",$BB$25=""),"",(IF($DF45>=$BA$25,-$AZ$25/(6*$P$10*$P$11)*(($DF45-$AY$25)^3-($DF45-$BA$25)^3),IF($DF45>=$AY$25,-$AZ$25/(6*$P$10*$P$11)*($DF45-$AY$25)^3,0)))+(IF($DF45>=$BA$25,-1/(24*$P$10*$P$11)*($BB$25-$AZ$25)/($BA$25-$AY$25)*(($DF45-$AY$25)^4-($DF45-$BA$25)^4)+($BB$25-$AZ$25)/(6*$P$10*$P$11)*($DF45-$BA$25)^3,IF($DF45>=$AY$25,-1/(24*$P$10*$P$11)*($BB$25-$AZ$25)/($BA$25-$AY$25)*($DF45-$AY$25)^4,0))))) ->  | CN45: =IF($AY$25=$BA$25,"",IF(AND($AY$25="",$AZ$25="",$BA$25="",$BB$25=""),"",(IF($DF45>=$BA$25,$AZ$25/(24*$P$10*$P$11)*(($DF45-$AY$25)^4-($DF45-$BA$25)^4),IF($DF45>=$AY$25,$AZ$25/(24*$P$10*$P$11)*($DF45-$AY$25)^4,0)))+(IF($DF45>=$BA$25,1/(120*$P$10*$P$11)*($BB$25-$AZ$25)/($BA$25-$AY$25)*(($DF45-$AY$25)^5-($DF45-$BA$25)^5)-($BB$25-$AZ$25)/(24*$P$10*$P$11)*($DF45-$BA$25)^4,IF($DF45>=$AY$25,1/(120*$P$10*$P$11)*($BB$25-$AZ$25)/($BA$25-$AY$25)*($DF45-$AY$25)^5,0))))) ->  | CO45: =IF($DF45>$AY$30,-$AZ$30,0)+IF($DF45>$AY$31,-$AZ$31,0)+IF($DF45>$AY$32,-$AZ$32,0)+IF($DF45>$AY$33,-$AZ$33,0)+IF($DF45>$AY$34,-$AZ$34,0)+IF($DF45>$AY$35,-$AZ$35,0) -> 0 | CP45: =IF($DF45>$AY$30,-$AZ$30*($DF45-$AY$30),0)+IF($DF45>$AY$31,-$AZ$31*($DF45-$AY$31),0)+IF($DF45>$AY$32,-$AZ$32*($DF45-$AY$32),0)+IF($DF45>$AY$33,-$AZ$33*($DF45-$AY$33),0)+IF($DF45>$AY$34,-$AZ$34*($DF45-$AY$34),0)+IF($DF45>$AY$35,-$AZ$35*($DF45-$AY$35),0) -> 0 | CQ45: =IF($DF45>$AY$30,-$AZ$30*($DF45-$AY$30)^2/(2*$P$10*$P$11),0)+IF($DF45>$AY$31,-$AZ$31*($DF45-$AY$31)^2/(2*$P$10*$P$11),0)+IF($DF45>$AY$32,-$AZ$32*($DF45-$AY$32)^2/(2*$P$10*$P$11),0)+IF($DF45>$AY$33,-$AZ$33*($DF45-$AY$33)^2/(2*$P$10*$P$11),0)+IF($DF45>$AY$34,-$AZ$34*($DF45-$AY$34)^2/(2*$P$10*$P$11),0)+IF($DF45>$AY$35,-$AZ$35*($DF45-$AY$35)^2/(2*$P$10*$P$11),0) -> 0 | CR45: =IF($DF45>$AY$30,$AZ$30*($DF45-$AY$30)^3/(6*$P$10*$P$11),0)+IF($DF45>$AY$31,$AZ$31*($DF45-$AY$31)^3/(6*$P$10*$P$11),0)+IF($DF45>$AY$32,$AZ$32*($DF45-$AY$32)^3/(6*$P$10*$P$11),0)+IF($DF45>$AY$33,$AZ$33*($DF45-$AY$33)^3/(6*$P$10*$P$11),0)+IF($DF45>$AY$34,$AZ$34*($DF45-$AY$34)^3/(6*$P$10*$P$11),0)+IF($DF45>$AY$35,$AZ$35*($DF45-$AY$35)^3/(6*$P$10*$P$11),0) -> 0 | CS45: =IF($DF45>=IF($AY$47=$P$9,$AY$47+0.000000001,$AY$47),0,0)+IF($DF45>=IF($AY$48=$P$9,$AY$48+0.000000001,$AY$48),0,0)+IF($DF45>=IF($AY$49=$P$9,$AY$49+0.000000001,$AY$49),0,0)+IF($DF45>=IF($AY$50=$P$9,$AY$50+0.000000001,$AY$50),0,0)+IF($DF45>=IF($AY$51=$P$9,$AY$51+0.000000001,$AY$51),0,0)+IF($DF45>=IF($AY$52=$P$9,$AY$52+0.000000001,$AY$52),0,0) -> 0 | CT45: =IF($DF45>=IF($AY$47=$P$9,$AY$47+0.000000001,$AY$47),-$AZ$47,0)+IF($DF45>=IF($AY$48=$P$9,$AY$48+0.000000001,$AY$48),-$AZ$48,0)+IF($DF45>=IF($AY$49=$P$9,$AY$49+0.000000001,$AY$49),-$AZ$49,0)+IF($DF45>=IF($AY$50=$P$9,$AY$50+0.000000001,$AY$50),-$AZ$50,0)+IF($DF45>=IF($AY$51=$P$9,$AY$51+0.000000001,$AY$51),-$AZ$51,0)+IF($DF45>=IF($AY$52=$P$9,$AY$52+0.000000001,$AY$52),-$AZ$52,0) -> 0 | CU45: =IF($DF45>=IF($AY$47=$P$9,$AY$47+0.000000001,$AY$47),-$AZ$47*($DF45-$AY$47)/($P$10*$P$11),0)+IF($DF45>=IF($AY$48=$P$9,$AY$48+0.000000001,$AY$48),-$AZ$48*($DF45-$AY$48)/($P$10*$P$11),0)+IF($DF45>=IF($AY$49=$P$9,$AY$49+0.000000001,$AY$49),-$AZ$49*($DF45-$AY$49)/($P$10*$P$11),0)+IF($DF45>=IF($AY$50=$P$9,$AY$50+0.000000001,$AY$50),-$AZ$50*($DF45-$AY$50)/($P$10*$P$11),0)+IF($DF45>=IF($AY$51=$P$9,$AY$51+0.000000001,$AY$51),-$AZ$51*($DF45-$AY$51)/($P$10*$P$11),0)+IF($DF45>=IF($AY$52=$P$9,$AY$52+0.000000001,$AY$52),-$AZ$52*($DF45-$AY$52)/($P$10*$P$11),0) -> 0 | CV45: =IF($DF45>=IF($AY$47=$P$9,$AY$47+0.000000001,$AY$47),$AZ$47*($DF45-$AY$47)^2/(2*$P$10*$P$11),0)+IF($DF45>=IF($AY$48=$P$9,$AY$48+0.000000001,$AY$48),$AZ$48*($DF45-$AY$48)^2/(2*$P$10*$P$11),0)+IF($DF45>=IF($AY$49=$P$9,$AY$49+0.000000001,$AY$49),$AZ$49*($DF45-$AY$49)^2/(2*$P$10*$P$11),0)+IF($DF45>=IF($AY$50=$P$9,$AY$50+0.000000001,$AY$50),$AZ$50*($DF45-$AY$50)^2/(2*$P$10*$P$11),0)+IF($DF45>=IF($AY$51=$P$9,$AY$51+0.000000001,$AY$51),$AZ$51*($DF45-$AY$51)^2/(2*$P$10*$P$11),0)+IF($DF45>=IF($AY$52=$P$9,$AY$52+0.000000001,$AY$52),$AZ$52*($DF45-$AY$52)^2/(2*$P$10*$P$11),0) -> 0 | CW45: -172.50256 | CX45: -150.6637184 | CY45: -2.817626652e-08 | CZ45: 1.318712367e-08 | DB45: 144.4032733 | DC45: =$BI$30+$BH$30*$DF45+$CX45 -> 144.3988149 | DD45: =($BJ$30+$BI$30*$DF45/($P$10*$P$11)+$BH$30*$DF45^2/(2*$P$10*$P$11)+$CY45)*100000 -> -0.003358373465 | DE45: =(-($BK$30-$BJ$30*$DF45-$BI$30*$DF45^2/(2*$P$10*$P$11)-$BH$30*$DF45^3/(6*$P$10*$P$11)+$CZ45))*100000000 -> -7.580514681 | DF45: 1.92
H46: 1 | I46: Dead | M46: 3 | P46: 24 | T46: 1 | U46: Imposed | Y46: 2 | AB46: 65 | AS46: 50 | AT46: 3.141592654 | AU46: 1000 | AV46: -0.4 | AX46: Momnts | AY46: Distanc from Support A | AZ46: kNm | BC46: =IF(P47=0,"","P2, "&P47&"kN") ->  | BD46: 0 | BE46: 0.2 | BF46: =BD46/$AT$16*$P$47+(10/$P$9)*$M$47 -> 0 | BG46: =IF(BE46/$AT$16*$P$47<0.2,0.2,BE46/$AT$16*$P$47) -> 0.2 | BJ46: =BJ42 -> 0 | BK46: =BK42 -> 0.2 | BL46: 33 | BM46: -146.52 | BN46: -145.0548 | BO46: -2.94129368e-08 | BP46: 1.455940372e-08 | BQ46: -32.28316 | BR46: -16.1481656 | BS46: -1.637184626e-09 | BT46: 4.035402026e-10 | CO46: 0 | CP46: 0 | CQ46: 0 | CR46: 0 | CS46: 0 | CT46: 0 | CU46: 0 | CV46: 0 | CW46: -178.80316 | CX46: -161.2029656 | CY46: -3.105012143e-08 | CZ46: 1.496294392e-08 | DB46: 138.1026733 | DC46: 152.8739177 | DD46: -0.00308432289 | DE46: -7.773873686 | DF46: =P$9/100*BL46 -> 1.98
H47: 2 | T47: 2 | AX47: 1 | AY47: =Y46 -> 2 | AZ47: =IF(U46="Dead",AB46*$S$31,AB46*$S$32) -> 104 | BD47: 1 | BE47: 1 | BF47: 0 | BG47: =IF($BE$36/$AT$16*$P$47<0.2,BE47/$AT$16*$P$47+0.2-$BE$36/$AT$16*$P$47,BE47/$AT$16*$P$47) -> 0.2 | BL47: 34 | BM47: -150.96 | BN47: -153.9792 | BO47: -3.216868598e-08 | BP47: 1.640602985e-08 | BQ47: -34.12864 | BR47: -18.1405952 | BS47: -1.953049685e-09 | BT47: 5.110635908e-10 | CO47: 0 | CP47: 0 | CQ47: 0 | CR47: 0 | CS47: 0 | CT47: -104 | CU47: -1.278073059e-09 | CV47: 2.556146118e-11 | CW47: -185.08864 | CX47: -276.1197952 | CY47: -3.539980872e-08 | CZ47: 1.69426549e-08 | DB47: 131.8171933 | DC47: 56.97143813 | DD47: -0.002922804984 | DE47: -7.952884083 | DF47: 2.04
H48: 3 | T48: 3 | AX48: 2 | AY48: =Y47 -> 0 | AZ48: =IF(U47="Dead",AB47*$S$31,AB47*$S$32) -> 0 | BD48: 0.25 | BE48: 1 | BF48: 0 | BG48: 0.2 | BI48: =IF(O39=0,"","D3, "&O39&"kN") ->  | BJ48: =M39/$P$9*10 -> 0 | BK48: 0.2 | BL48: 35 | BM48: -155.4 | BN48: -163.17 | BO48: -3.509140066e-08 | BP48: 1.842298535e-08 | BQ48: -35.959 | BR48: -20.2433 | BS48: -2.306660471e-09 | BT48: 6.386610905e-10 | CO48: 0 | CP48: 0 | CQ48: 0 | CR48: 0 | CS48: 0 | CT48: -104 | CU48: -3.195182648e-09 | CV48: 1.597591324e-10 | CW48: -191.359 | CX48: -287.4133 | CY48: -4.059324378e-08 | CZ48: 1.922140557e-08 | DB48: 125.5468333 | DC48: 64.69228333 | DD48: -0.002810611284 | DE48: -8.124957732 | DF48: 2.1
H49: 4 | T49: 4 | AR49: ="M4, "&AB49&"kNm" -> M4, kNm | AS49: 1 | AT49: =AS49%*2*PI() -> 0.06283185307 | AU49: =IF(AB$49=0,1000,($AT$23/2000)*SIN(AT49)+($AT$23/2000)-0.6+(Y$49/P$9*10)) -> 1000 | AV49: =($AT$23/2000)*COS(AT49)+$AT$23/2000-0.4 -> 0.7099038476 | AX49: 3 | AY49: 0 | AZ49: 0 | BD49: 0.25 | BE49: 4 | BF49: 0 | BG49: 0.2 | BI49: =IF(T39=0,"","D3, "&T39&"kN") ->  | BJ49: =R39/$P$9*10 -> 0 | BK49: 0.2 | BL49: 36 | BM49: -159.84 | BN49: -172.6272 | BO49: -3.818599158e-08 | BP49: 2.062043545e-08 | BQ49: -37.77424 | BR49: -22.4553728 | BS49: -2.700041408e-09 | BT49: 7.886582615e-10 | CO49: 0 | CP49: 0 | CQ49: 0 | CR49: 0 | CS49: 0 | CT49: -104 | CU49: -5.112292236e-09 | CV49: 4.089833789e-10 | CW49: -197.61424 | CX49: -299.0825728 | CY49: -4.599832523e-08 | CZ49: 2.181807709e-08 | DB49: 119.2915933 | DC49: 72.03736053 | DD49: -0.002684531653 | DE49: -8.289879719 | DF49: 2.16
H50: 5 | T50: 5 | AS50: 10 | AT50: =AS50%*2*PI() -> 0.6283185307 | AU50: =IF(AB$49=0,1000,($AT$23/2000)*SIN(AT50)+($AT$23/2000)-0.6+(Y$49/P$9*10)) -> 1000 | AV50: =($AT$23/2000)*COS(AT50)+$AT$23/2000-0.4 -> 0.6049089404 | AX50: 4 | AY50: 0 | AZ50: 0 | BD50: 0 | BE50: 4 | BF50: 0 | BG50: 0.2 | BJ50: =BJ49 -> 0 | BK50: =T39/$AT$16*4 -> 0 | BL50: 37 | BM50: -164.28 | BN50: -182.3508 | BO50: -4.14573695e-08 | BP50: 2.300884007e-08 | BQ50: -39.57436 | BR50: -24.7759064 | BS50: -3.135200196e-09 | BT50: 9.635016276e-10 | CO50: 0 | CP50: 0 | CQ50: 0 | CR50: 0 | CS50: 0 | CT50: -104 | CU50: -7.029401825e-09 | CV50: 7.732342007e-10 | CW50: -203.85436 | CX50: -311.1267064 | CY50: -5.162197153e-08 | CZ50: 2.47455759e-08 | DB50: 113.0514733 | DC50: 79.00757693 | DD50: -0.002545257938 | DE50: -8.44683765 | DF50: 2.22
H51: 6 | T51: 6 | AS51: 20 | AT51: 1.256637061 | AU51: 1000 | AV51: 0.3271589404 | AX51: 5 | AY51: 0 | AZ51: =IF(U50="Dead",AB50*$S$31,AB50*$S$32) -> 0 | BD51: -0.25 | BE51: 4 | BF51: 0 | BG51: 0.2 | BJ51: =BJ48 -> 0 | BK51: =O39/$AT$16*4 -> 0 | BL51: 38 | BM51: -168.72 | BN51: -192.3408 | BO51: -4.491044517e-08 | BP51: 2.559895375e-08 | BQ51: -41.35936 | BR51: -27.2039936 | BS51: -3.614127813e-09 | BT51: 1.165757673e-09 | CO51: 0 | CP51: 0 | CQ51: 0 | CR51: 0 | CS51: 0 | CT51: -104 | CU51: -8.946511414e-09 | CV51: 1.252511598e-09 | CW51: -210.07936 | CX51: -323.5447936 | CY51: -5.74710844e-08 | CZ51: 2.801722302e-08 | DB51: 106.8264733 | DC51: 85.60383973 | DD51: -0.00239348031 | DE51: -8.595060594 | DF51: 2.28
AS52: 30 | AT52: 1.884955592 | AU52: 1000 | AV52: -0.01615894038 | AX52: 6 | AY52: 0 | AZ52: 0 | BD52: -0.25 | BE52: 1 | BF52: 0 | BG52: 0.2 | BJ52: =BJ48 -> 0 | BK52: =BK48 -> 0.2 | BL52: 39 | BM52: -173.16 | BN52: -202.5972 | BO52: -4.855012934e-08 | BP52: 2.840182567e-08 | BQ52: -43.12924 | BR52: -29.7387272 | BS52: -4.138798513e-09 | BT52: 1.398111838e-09 | CO52: 0 | CP52: 0 | CQ52: 0 | CR52: 0 | CS52: 0 | CT52: -104 | CU52: -1.0863621e-08 | CV52: 1.84681557e-09 | CW52: -216.28924 | CX52: -336.3359272 | CY52: -6.355254886e-08 | CZ52: 3.164675307e-08 | DB52: 100.6165933 | DC52: 91.82705613 | DD52: -0.002229887271 | DE52: -8.73381898 | DF52: 2.34
B53: Your Logo / Company Details Here | G53: Project: | AF53: By: | AS53: 40 | AT53: 2.513274123 | AU53: 1000 | AV53: -0.2939089404 | BD53: -1 | BE53: 1 | BF53: 0 | BG53: 0.2 | BL53: 40 | BM53: -177.6 | BN53: -213.12 | BO53: -5.238133276e-08 | BP53: 3.142879966e-08 | BQ53: -44.884 | BR53: -32.3792 | BS53: -4.711169826e-09 | BT53: 1.663367518e-09 | CO53: 0 | CP53: 0 | CQ53: 0 | CR53: 0 | CS53: 0 | CT53: -104 | CU53: -1.278073059e-08 | CV53: 2.556146118e-09 | CW53: -222.484 | CX53: -349.4992 | CY53: -6.987323318e-08 | CZ53: 3.564831329e-08 | DB53: 94.42183333 | DC53: 97.67813333 | DD53: -0.002055165648 | DE53: -8.862424496 | DF53: 2.4
G54: Calculation: | M54: =M3 -> Single Span Beam Analysis | AS54: 50 | AT54: 3.141592654 | AU54: 1000 | AV54: -0.4 | AY54: 0 | AZ54: 0 | BD54: 0 | BE54: 0.2 | BF54: 0 | BG54: =IF(BE54/$AT$16*$P$47<0.2,0.2,BE54/$AT$16*$P$47) -> 0.2 | BI54: =IF(O40=0,"","D4, "&O40&"kN") ->  | BJ54: =M40/$P$9*10 -> 0 | BK54: 0.2 | BL54: 41 | BM54: -182.04 | BN54: -223.9092 | BO54: -5.640896617e-08 | BP54: 3.46915142e-08 | BQ54: -46.62364 | BR54: -35.1245048 | BS54: -5.333182561e-09 | BT54: 1.964445057e-09 | CO54: 0 | CP54: 0 | CQ54: 0 | CR54: 0 | CS54: 0 | CT54: -104 | CU54: -1.469784018e-08 | CV54: 3.380503241e-09 | CW54: -228.66364 | CX54: -363.0337048 | CY54: -7.643998891e-08 | CZ54: 4.003646249e-08 | DB54: 88.24219333 | DC54: 103.1579785 | DD54: -0.001870000597 | DE54: -8.980229991 | DF54: 2.46
AF55: Approved: | AY55: 10 | AZ55: 0 | BI55: =IF(T40=0,"","D4, "&T40&"kN") ->  | BJ55: =R40/$P$9*10 -> 0 | BK55: 0.2 | BL55: 42 | BM55: -186.48 | BN55: -234.9648 | BO55: -6.063794034e-08 | BP55: 3.820190241e-08 | BQ55: -48.34816 | BR55: -37.9737344 | BS55: -6.006760803e-09 | BT55: 2.304380746e-09 | CO55: 0 | CP55: 0 | CQ55: 0 | CR55: 0 | CS55: 0 | CT55: -104 | CU55: -1.661494977e-08 | CV55: 4.31988694e-09 | CW55: -234.82816 | CX55: -376.9385344 | CY55: -8.325965091e-08 | CZ55: 4.48261701e-08 | DB55: 82.07767333 | DC55: 108.2674989 | DD55: -0.001675075601 | DE55: -9.08662937 | DF55: 2.52
G56: Sheet Number: | M56: 2 | T56: Date: | AY56: =AY55 -> 10 | AZ56: 0.2 | BC56: =IF(P48=0,"","P3, "&P48&"kN") ->  | BD56: 0 | BE56: 0.2 | BF56: =BD56/$AT$16*$P$48+(10/$P$9)*$M$48 -> 0 | BG56: =IF(BE56/$AT$16*$P$48<0.2,0.2,BE56/$AT$16*$P$48) -> 0.2 | BJ56: =BJ55 -> 0 | BK56: =T40/$AT$16*4 -> 0 | BL56: 43 | BM56: -190.92 | BN56: -246.2868 | BO56: -6.5073166e-08 | BP56: 4.197219207e-08 | BQ56: -50.05756 | BR56: -40.9259816 | BS56: -6.733811914e-09 | BT56: 2.686325822e-09 | CO56: 0 | CP56: 0 | CQ56: 0 | CR56: 0 | CS56: 0 | CT56: -104 | CU56: -1.853205936e-08 | CV56: 5.374297213e-09 | CW56: -240.97756 | CX56: -391.2127816 | CY56: -9.033903727e-08 | CZ56: 5.00328151e-08 | DB56: 75.92827333 | DC56: 113.0076017 | DD56: -0.001471072472 | DE56: -9.181057501 | DF56: 2.58
AR57: ="M5, "&AB50&"kNm" -> M5, kNm | AS57: 1 | AT57: =AS57%*2*PI() -> 0.06283185307 | AU57: =IF(AB$50=0,1000,($AT$23/2000)*SIN(AT57)+($AT$23/2000)-0.6+(Y$50/P$9*10)) -> 1000 | AV57: =($AT$23/2000)*COS(AT57)+$AT$23/2000-0.4 -> 0.7099038476 | AY57: =AY54 -> 0 | AZ57: =AZ56 -> 0.2 | BD57: 1 | BE57: 1 | BF57: 0 | BG57: =IF($BE$36/$AT$16*$P$48<0.2,BE57/$AT$16*$P$48+0.2-$BE$36/$AT$16*$P$48,BE57/$AT$16*$P$48) -> 0.2 | BJ57: =BJ54 -> 0 | BK57: =O40/$AT$16*4 -> 0 | BL57: 44 | BM57: -195.36 | BN57: -257.8752 | BO57: -6.97195539e-08 | BP57: 4.601490558e-08 | BQ57: -51.75184 | BR57: -43.9803392 | BS57: -7.516226532e-09 | BT57: 3.113545457e-09 | CO57: 0 | CP57: 0 | CQ57: 0 | CR57: 0 | CS57: 0 | CT57: -104 | CU57: -2.044916895e-08 | CV57: 6.543734062e-09 | CW57: -247.11184 | CX57: -405.8555392 | CY57: -9.768494938e-08 | CZ57: 5.56721851e-08 | DB57: 69.79399333 | DC57: 117.3791941 | DD57: -0.001258671349 | DE57: -9.262990108 | DF57: 2.64
G58: Results | M58: Analysis at User Specified Point | Y58: 5.45 | AA58: m | AS58: 10 | AT58: =AS58%*2*PI() -> 0.6283185307 | AU58: =IF(AB$50=0,1000,($AT$23/2000)*SIN(AT58)+($AT$23/2000)-0.6+(Y$50/P$9*10)) -> 1000 | AV58: =($AT$23/2000)*COS(AT58)+$AT$23/2000-0.4 -> 0.6049089404 | AY58: =AY54 -> 0 | AZ58: =AZ54 -> 0 | BD58: 0.25 | BE58: 1 | BF58: 0 | BG58: 0.2 | BJ58: =BJ54 -> 0 | BK58: =BK54 -> 0.2 | BL58: 45 | BM58: -199.8 | BN58: -269.73 | BO58: -7.458201481e-08 | BP58: 5.034286e-08 | BQ58: -53.431 | BR58: -47.1359 | BS58: -8.355878573e-09 | BT58: 3.589417765e-09 | CO58: 0 | CP58: 0 | CQ58: 0 | CR58: 0 | CS58: 0 | CT58: -104 | CU58: -2.236627853e-08 | CV58: 7.828197487e-09 | CW58: -253.231 | CX58: -420.8659 | CY58: -1.053041719e-07 | CZ58: 6.176047525e-08 | DB58: 63.67483333 | DC58: 121.3831833 | DD58: -0.001038550698 | DE58: -9.331943674 | DF58: 2.7
AS59: 20 | AT59: 1.256637061 | AU59: 1000 | AV59: 0.3271589404 | BD59: 0.25 | BE59: 4 | BF59: 0 | BG59: 0.2 | BL59: 46 | BM59: -204.24 | BN59: -281.8512 | BO59: -7.966545946e-08 | BP59: 5.496916703e-08 | BQ59: -55.09504 | BR59: -50.3917568 | BS59: -9.254625229e-09 | BT59: 4.117432789e-09 | CO59: 0 | CP59: 0 | CQ59: 0 | CR59: 0 | CS59: 0 | CT59: -104 | CU59: -2.428338812e-08 | CV59: 9.227687487e-09 | CW59: -259.33504 | CX59: -436.2429568 | CY59: -1.132034728e-07 | CZ59: 6.83142873e-08 | DB59: 57.57079333 | DC59: 125.0204765 | DD59: -0.0008113873132 | DE59: -9.387475338 | DF59: 2.76
AM60: 0 | AN60: =E69 -> 152.8739177 | AS60: 30 | AT60: 1.884955592 | AU60: 1000 | AV60: -0.01615894038 | AY60: =AY54 -> 0 | AZ60: -1 | BD60: 0 | BE60: 4 | BF60: 0 | BG60: 0.2 | BI60: =IF(O41=0,"","D5, "&O41&"kN") ->  | BJ60: =M41/$P$9*10 -> 0 | BK60: 0.2 | BL60: 47 | BM60: -208.68 | BN60: -294.2388 | BO60: -8.497479861e-08 | BP60: 5.990723302e-08 | BQ60: -56.74396 | BR60: -53.7470024 | BS60: -1.021430697e-08 | BT60: 4.701191505e-09 | CO60: 0 | CP60: 0 | CQ60: 0 | CR60: 0 | CS60: 0 | CT60: -104 | CU60: -2.620049771e-08 | CV60: 1.074220406e-08 | CW60: -265.42396 | CX60: -451.9858024 | CY60: -1.213896033e-07 | CZ60: 7.535062859e-08 | DB60: 51.48187333 | DC60: 128.2919809 | DD60: -0.0005778563169 | DE60: -9.4291828 | DF60: 2.82
AM61: =K69 -> 1.98 | AN61: =AN60 -> 152.8739177 | AS61: 40 | AT61: 2.513274123 | AU61: 1000 | AV61: -0.2939089404 | AX61: =P9&"m" -> 6m | AY61: 5 | AZ61: -1 | BD61: -0.25 | BE61: 4 | BF61: 0 | BG61: 0.2 | BI61: =IF(T41=0,"","D5, "&T41&"kN") ->  | BJ61: =R41/$P$9*10 -> 0 | BK61: 0.2 | BL61: 48 | BM61: -213.12 | BN61: -306.8928 | BO61: -9.051494301e-08 | BP61: 6.517075897e-08 | BQ61: -58.37776 | BR61: -57.2007296 | BS61: -1.123674754e-08 | BT61: 5.344404814e-09 | CO61: 0 | CP61: 0 | CQ61: 0 | CR61: 0 | CS61: 0 | CT61: -104 | CU61: -2.81176073e-08 | CV61: 1.237174721e-08 | CW61: -271.49776 | CX61: -468.0935296 | CY61: -1.298692979e-07 | CZ61: 8.288691099e-08 | DB61: 45.40807333 | DC61: 131.1986037 | DD61: -0.0003386311585 | DE61: -9.456704214 | DF61: 2.88
AM62: =AM61 -> 1.98 | AN62: 0 | AS62: 50 | AT62: 3.141592654 | AU62: 1000 | AV62: -0.4 | AY62: =AY55 -> 10 | AZ62: -1 | BD62: -0.25 | BE62: 1 | BF62: 0 | BG62: 0.2 | BJ62: =BJ61 -> 0 | BK62: =T41/$AT$16*4 -> 0 | BL62: 49 | BM62: -217.56 | BN62: -319.8132 | BO62: -9.62908034e-08 | BP62: 7.07737405e-08 | BQ62: -59.99644 | BR62: -60.7520312 | BS62: -1.232375397e-08 | BT62: 6.050892539e-09 | CO62: 0 | CP62: 0 | CQ62: 0 | CR62: 0 | CS62: 0 | CT62: -104 | CU62: -3.003471689e-08 | CV62: 1.411631694e-08 | CW62: -277.55644 | CX62: -484.5652312 | CY62: -1.386492743e-07 | CZ62: 9.094094998e-08 | DB62: 39.34939333 | DC62: 133.7412521 | DD62: -9.438361543e-05 | DE62: -9.469718093 | DF62: 2.94
BD63: -1 | BE63: 1 | BF63: 0 | BG63: 0.2 | BJ63: =BJ60 -> 0 | BK63: =O41/$AT$16*4 -> 0 | BL63: 50 | BM63: -222 | BN63: -333 | BO63: -1.023072905e-07 | BP63: 7.673046791e-08 | BQ63: -61.6 | BR63: -64.4 | BS63: -1.347711655e-08 | BT63: 6.824582424e-09 | CO63: 0 | CP63: 0 | CQ63: 0 | CR63: 0 | CS63: 0 | CT63: -104 | CU63: -3.195182648e-08 | CV63: 1.597591324e-08 | CW63: -283.6 | CX63: -501.4 | CY63: -1.477362336e-07 | CZ63: 9.953096357e-08 | DB63: 33.30583333 | DC63: 135.9208333 | DD63: 0.0001542162074 | DE63: -9.467943204 | DF63: 3
AM64: 0 | AN64: =R69 -> -135.017375 | AX64: Lsimp | AY64: 0 | AZ64: 0 | BA64: =IF(OR($BF$15=4,$BF$15=2),100,AY64) -> 100 | BB64: 100 | BD64: 0 | BE64: 0.2 | BF64: 0 | BG64: =IF(BE64/$AT$16*$P$48<0.2,0.2,BE64/$AT$16*$P$48) -> 0.2 | BJ64: =BJ60 -> 0 | BK64: =BK60 -> 0.2 | BL64: 51 | BM64: -226.44 | BN64: -346.4532 | BO64: -1.085693152e-07 | BP64: 8.305552612e-08 | BQ64: -63.18844 | BR64: -68.1437288 | BS64: -1.469860887e-08 | BT64: 7.669509131e-09 | CO64: -33.6 | CP64: -2.016 | CQ64: -1.858121601e-11 | CR64: 3.716243203e-13 | CS64: 0 | CT64: -104 | CU64: -3.386893607e-08 | CV64: 1.795053611e-08 | CW64: -323.22844 | CX64: -520.6129288 | CY64: -1.571554413e-07 | CZ64: 1.08675943e-07 | DB64: -6.322606667 | DC64: 135.7222545 | DD64: 0.0004046417555 | DE64: -9.451175634 | DF64: 3.06
AM65: =Y58 -> 5.45 | AN65: =AN64 -> -135.017375 | AR65: ="M6, "&AB51&"kNm" -> M6, kNm | AS65: 1 | AT65: =AS65%*2*PI() -> 0.06283185307 | AU65: =IF(AB$51=0,1000,($AT$23/2000)*SIN(AT65)+($AT$23/2000)-0.6+(Y$51/P$9*10)) -> 1000 | AV65: =($AT$23/2000)*COS(AT65)+$AT$23/2000-0.4 -> 0.7099038476 | AY65: 0.25 | AZ65: -0.75 | BA65: 100 | BB65: 100 | BL65: 52 | BM65: -230.88 | BN65: -360.1728 | BO65: -1.150817881e-07 | BP65: 8.97637947e-08 | BQ65: -64.76176 | BR65: -71.9823104 | BS65: -1.598998777e-08 | BT65: 8.589813231e-09 | CO65: -33.6 | CP65: -4.032 | CQ65: -7.432486405e-11 | CR65: 2.972994562e-12 | CS65: 0 | CT65: -104 | CU65: -3.578604565e-08 | CV65: 2.004018557e-08 | CW65: -329.24176 | CX65: -540.1871104 | CY65: -1.669321464e-07 | CZ65: 1.183967665e-07 | DB65: -12.33592667 | DC65: 135.1624229 | DD65: 0.0006543681471 | DE65: -9.419400177 | DF65: 3.12
AM66: =AM65 -> 5.45 | AN66: 0 | AS66: 10 | AT66: =AS66%*2*PI() -> 0.6283185307 | AU66: =IF(AB$51=0,1000,($AT$23/2000)*SIN(AT66)+($AT$23/2000)-0.6+(Y$51/P$9*10)) -> 1000 | AV66: =($AT$23/2000)*COS(AT66)+$AT$23/2000-0.4 -> 0.6049089404 | AY66: -0.25 | AZ66: -0.75 | BA66: 100 | BB66: 100 | BC66: =IF(P49=0,"","P4, "&P49&"kN") ->  | BD66: 0 | BE66: 0.2 | BF66: =BD66/$AT$16*$P$49+(10/$P$9)*$M$49 -> 0 | BG66: =IF(BE66/$AT$16*$P$49<0.2,0.2,BE66/$AT$16*$P$49) -> 0.2 | BI66: =IF(O42=0,"","D6, "&O42&"kN") ->  | BJ66: =M42/$P$9*10 -> 0 | BK66: 0.2 | BL66: 53 | BM66: -235.32 | BN66: -374.1588 | BO66: -1.2184962e-07 | BP66: 9.687044787e-08 | BQ66: -66.31996 | BR66: -75.9148376 | BS66: -1.735299338e-08 | BT66: 9.589740208e-09 | CO66: -33.6 | CP66: -6.048 | CQ66: -1.672309441e-10 | CR66: 1.003385665e-11 | CS66: 0 | CT66: -104 | CU66: -3.770315524e-08 | CV66: 2.224486159e-08 | CW66: -335.23996 | CX66: -560.1216376 | CY66: -1.770729995e-07 | CZ66: 1.287150835e-07 | DB66: -18.33412667 | DC66: 134.2422457 | DD66: 0.0009027302941 | DE66: -9.372678743 | DF66: 3.18
AS67: 20 | AT67: 1.256637061 | AU67: 1000 | AV67: 0.3271589404 | AY67: 0 | AZ67: 0 | BA67: 100 | BB67: 100 | BD67: 1 | BE67: 1 | BF67: 0 | BG67: =IF($BE$36/$AT$16*$P$49<0.2,BE67/$AT$16*$P$49+0.2-$BE$36/$AT$16*$P$49,BE67/$AT$16*$P$49) -> 0.2 | BI67: =IF(T42=0,"","D6, "&T42&"kN") ->  | BJ67: =R42/$P$9*10 -> 0 | BK67: 0.2 | BL67: 54 | BM67: -239.76 | BN67: -388.4112 | BO67: -1.288777216e-07 | BP67: 1.043909545e-07 | BQ67: -67.86304 | BR67: -79.9404032 | BS67: -1.878934912e-08 | BT67: 1.067363945e-08 | CO67: -33.6 | CP67: -8.064 | CQ67: -2.972994562e-10 | CR67: 2.37839565e-11 | CS67: 0 | CT67: -104 | CU67: -3.962026483e-08 | CV67: 2.45645642e-08 | CW67: -341.22304 | CX67: -580.4156032 | CY67: -1.87584635e-07 | CZ67: 1.396529421e-07 | DB67: -24.31720667 | DC67: 132.9626301 | DD67: 0.001149064781 | DE67: -9.311113096 | DF67: 3.24
AM68: 0 | AN68: =AB69 -> -313.3966667 | AS68: 30 | AT68: 1.884955592 | AU68: 1000 | AV68: -0.01615894038 | BD68: 0.25 | BE68: 1 | BF68: 0 | BG68: 0.2 | BJ68: =BJ67 -> 0 | BK68: =T42/$AT$16*4 -> 0 | BL68: 55 | BM68: -244.2 | BN68: -402.93 | BO68: -1.361710037e-07 | BP68: 1.123410781e-07 | BQ68: -69.391 | BR68: -84.0581 | BS68: -2.030076167e-08 | BT68: 1.184596325e-08 | CO68: -33.6 | CP68: -10.08 | CQ68: -4.645304003e-10 | CR68: 4.645304003e-11 | CS68: 0 | CT68: -104 | CU68: -4.153737442e-08 | CV68: 2.699929337e-08 | CW68: -347.191 | CX68: -601.0681 | CY68: -1.984736702e-07 | CZ68: 1.512327877e-07 | DB68: -30.28516667 | DC68: 131.3244833 | DD68: 0.001392709863 | DE68: -9.234844758 | DF68: 3.3
B69: Mmax | E69: =DB121 -> 152.8739177 | H69: kNm | J69: @ | K69: =DC121 -> 1.98 | M69: m | P69: User | R69: =DC114 -> -135.017375 | U69: kNm | Y69: Mmin | AB69: =DD121 -> -313.3966667 | AE69: kNm | AG69: @ | AH69: =DE121 -> 0 | AJ69: m | AM69: =AH69 -> 0 | AN69: =AN68 -> -313.3966667 | AS69: 40 | AT69: 2.513274123 | AU69: 1000 | AV69: -0.2939089404 | AX69: Rsimp | AY69: =AY64+10 -> 10 | AZ69: =AZ64 -> 0 | BA69: =IF($BF$15=1,AY69,100) -> 100 | BB69: 100 | BD69: 0.25 | BE69: 4 | BF69: 0 | BG69: 0.2 | BJ69: =BJ66 -> 0 | BK69: =O42/$AT$16*4 -> 0 | BL69: 56 | BM69: -248.64 | BN69: -417.7152 | BO69: -1.437343771e-07 | BP69: 1.207368768e-07 | BQ69: -70.90384 | BR69: -88.2670208 | BS69: -2.188892099e-08 | BT69: 1.31112658e-08 | CO69: -33.6 | CP69: -12.096 | CQ69: -6.689237765e-10 | CR69: 8.027085318e-11 | CS69: 0 | CT69: -104 | CU69: -4.345448401e-08 | CV69: 2.954904913e-08 | CW69: -353.14384 | CX69: -622.0782208 | CY69: -2.097467059e-07 | CZ69: 1.634774625e-07 | DB69: -36.23800667 | DC69: 129.3287125 | DD69: 0.001633005471 | DE69: -9.144054903 | DF69: 3.36
H70: Support Moments | P70: M1 | R70: =DB127 -> -313.3966667 | U70: kNm | Y70: M2 | AA70: =DD127 -> -259.5616667 | AD70: kNm | AM70: =AM69 -> 0 | AN70: 0 | AS70: 50 | AT70: 3.141592654 | AU70: 1000 | AV70: -0.4 | AY70: =AY65+10 -> 10.25 | AZ70: =AZ65 -> -0.75 | BA70: 100 | BB70: 100 | BD70: 0 | BE70: 4 | BF70: 0 | BG70: 0.2 | BJ70: =BJ66 -> 0 | BK70: =BK66 -> 0.2 | BL70: 57 | BM70: -253.08 | BN70: -432.7668 | BO70: -1.515727525e-07 | BP70: 1.295947034e-07 | BQ70: -72.40156 | BR70: -92.5662584 | BS70: -2.355550032e-08 | BT70: 1.447420218e-08 | CO70: -33.6 | CP70: -14.112 | CQ70: -9.104795846e-10 | CR70: 1.274671418e-10 | CS70: 0 | CT70: -104 | CU70: -4.53715936e-08 | CV70: 3.221383145e-08 | CW70: -359.08156 | CX70: -643.4450584 | CY70: -2.21410326e-07 | CZ70: 1.764102041e-07 | DB70: -42.17572667 | DC70: 126.9762249 | DD70: 0.001869293204 | DE70: -9.03896426 | DF70: 3.42
AY71: 9.75 | AZ71: -0.75 | BA71: 100 | BB71: 100 | BD71: -0.25 | BE71: 4 | BF71: 0 | BG71: 0.2 | BL71: 58 | BM71: -257.52 | BN71: -448.0848 | BO71: -1.596910406e-07 | BP71: 1.389312053e-07 | BQ71: -73.88416 | BR71: -96.9549056 | BS71: -2.530215618e-08 | BT71: 1.593952738e-08 | CO71: -33.6 | CP71: -16.128 | CQ71: -1.189197825e-09 | CR71: 1.90271652e-10 | CS71: 0 | CT71: -104 | CU71: -4.728870319e-08 | CV71: 3.499364036e-08 | CW71: -365.00416 | CX71: -665.1677056 | CY71: -2.334710978e-07 | CZ71: 1.900546447e-07 | DB71: -48.09832667 | DC71: 124.2679277 | DD71: 0.002100916337 | DE71: -8.919833012 | DF71: 3.48
AM72: 0 | AN72: =E81 -> 316.9058333 | AY72: 10 | AZ72: 0 | BA72: 100 | BB72: 100 | BD72: -0.25 | BE72: 1 | BF72: 0 | BG72: 0.2 | BL72: 59 | BM72: -261.96 | BN72: -463.6692 | BO72: -1.680941522e-07 | BP72: 1.487633247e-07 | BQ72: -75.35164 | BR72: -101.4320552 | BS72: -2.713052835e-08 | BT72: 1.751209526e-08 | CO72: -33.6 | CP72: -18.144 | CQ72: -1.505078497e-09 | CR72: 2.709141295e-10 | CS72: 0 | CT72: -104 | CU72: -4.920581277e-08 | CV72: 3.788847584e-08 | CW72: -370.91164 | CX72: -687.2452552 | CY72: -2.459355718e-07 | CZ72: 2.044348099e-07 | DB72: -54.00580667 | DC72: 121.2047281 | DD72: 0.002327219816 | DE72: -8.786960694 | DF72: 3.54
AM73: =K81 -> 0 | AN73: =AN72 -> 316.9058333 | BD73: -1 | BE73: 1 | BF73: 0 | BG73: 0.2 | BL73: 60 | BM73: -266.4 | BN73: -479.52 | BO73: -1.767869981e-07 | BP73: 1.591082983e-07 | BQ73: -76.804 | BR73: -105.9968 | BS73: -2.90422399e-08 | BT73: 1.919685758e-08 | CO73: -33.6 | CP73: -20.16 | CQ73: -1.858121601e-09 | CR73: 3.716243203e-10 | CS73: 0 | CT73: -104 | CU73: -5.112292236e-08 | CV73: 4.089833789e-08 | CW73: -376.804 | CX73: -709.6768 | CY73: -2.588102819e-07 | CZ73: 2.19575118e-07 | DB73: -59.89816667 | DC73: 117.7875333 | DD73: 0.002547550258 | DE73: -8.640686096 | DF73: 3.6
AM74: =K81 -> 0 | AN74: 0 | AX74: Lfix | AY74: -0.1 | AZ74: -1 | BA74: =IF($BF$15=4,AY74,100) -> -0.1 | BB74: -1 | BD74: 0 | BE74: 0.2 | BF74: 0 | BG74: =IF(BE74/$AT$16*$P$49<0.2,0.2,BE74/$AT$16*$P$49) -> 0.2 | BL74: 61 | BM74: -270.84 | BN74: -495.6372 | BO74: -1.857744889e-07 | BP74: 1.699836574e-07 | BQ74: -78.24124 | BR74: -110.6482328 | BS74: -3.103889719e-08 | BT74: 2.099886297e-08 | CO74: -33.6 | CP74: -22.176 | CQ74: -2.248327138e-09 | CR74: 4.946319703e-10 | CS74: 0 | CT74: -104 | CU74: -5.304003195e-08 | CV74: 4.402322652e-08 | CW74: -382.68124 | CX74: -732.4614328 | CY74: -2.721017452e-07 | CZ74: 2.355003788e-07 | DB74: -65.77540667 | DC74: 114.0172505 | DD74: 0.002761255953 | DE74: -8.481387159 | DF74: 3.66
AY75: -0.1 | AZ75: -0.6 | BA75: -0.1 | BB75: -0.6 | BL75: 62 | BM75: -275.28 | BN75: -512.0208 | BO75: -1.950615355e-07 | BP75: 1.81407228e-07 | BQ75: -79.66336 | BR75: -115.3854464 | BS75: -3.312208984e-08 | BT75: 2.292325596e-08 | CO75: -33.6 | CP75: -24.192 | CQ75: -2.675695106e-09 | CR75: 6.421668254e-10 | CS75: 0 | CT75: -104 | CU75: -5.495714154e-08 | CV75: 4.726314172e-08 | CW75: -388.54336 | CX75: -755.5982464 | CY75: -2.85816462e-07 | CZ75: 2.522357926e-07 | DB75: -71.63752667 | DC75: 109.8947869 | DD75: 0.002967686865 | DE75: -8.309480878 | DF75: 3.72
AM76: 0 | AN76: =AB81 -> -246.7941667 | AY76: -0.1 | AZ76: -0.2 | BA76: -0.1 | BB76: -0.2 | BC76: =IF(P50=0,"","P5, "&P50&"kN") ->  | BD76: 0 | BE76: 0.2 | BF76: =BD76/$AT$16*$P$50+(10/$P$9)*$M$50 -> 0 | BG76: =IF(BE76/$AT$16*$P$50<0.2,0.2,BE76/$AT$16*$P$50) -> 0.2 | BL76: 63 | BM76: -279.72 | BN76: -528.6708 | BO76: -2.046530486e-07 | BP76: 1.93397131e-07 | BQ76: -81.07036 | BR76: -120.2075336 | BS76: -3.529339074e-08 | BT76: 2.497527593e-08 | CO76: -33.6 | CP76: -26.208 | CQ76: -3.140225506e-09 | CR76: 8.164586316e-10 | CS76: 0 | CT76: -104 | CU76: -5.687425113e-08 | CV76: 5.06180835e-08 | CW76: -394.39036 | CX76: -779.0863336 | CY76: -2.99960916e-07 | CZ76: 2.69806949e-07 | DB76: -77.48452667 | DC76: 105.4210497 | DD76: 0.003166194629 | DE76: -8.125423199 | DF76: 3.78
AM77: =AH81 -> 6 | AN77: =AN76 -> -246.7941667 | AY77: -0.1 | AZ77: 0.2 | BA77: -0.1 | BB77: 0.2 | BD77: 1 | BE77: 1 | BF77: 0 | BG77: =IF($BE$36/$AT$16*$P$50<0.2,BE77/$AT$16*$P$50+0.2-$BE$36/$AT$16*$P$50,BE77/$AT$16*$P$50) -> 0.2 | BL77: 64 | BM77: =IF($BB$16=0,"",IF($DF77=$P$9,-$BB$16*($DF77-($DF77-$P$9)),IF($DF77>=0,-$BB$16*$DF77,0))) -> -284.16 | BN77: =IF($BB$16=0,"",IF($DF77=$P$9,-$BB$16*($DF77^2-($DF77-$P$9)^2)/2,IF($DF77>=0,-$BB$16*$DF77^2/2,0))) -> -545.5872 | BO77: =IF($BB$16=0,"",IF($DF77=$P$9,-$BB$16*($DF77^3-($DF77-$P$9)^3)/(6*$P$10*$P$11),IF($DF77>=0,-$BB$16*$DF77^3/(6*$P$10*$P$11),0))) -> -2.14553939e-07 | BP77: =IF($BB$16=0,"",IF($DF77=$P$9,$BB$16*($DF77^4-($DF77-$P$9)^4)/(24*$P$10*$P$11),IF($DF77>=0,$BB$16*$DF77^4/(24*$P$10*$P$11),0))) -> 2.059717814e-07 | BQ77: =IF($AY$20=$BA$20,"",IF(AND($AY$20="",$AZ$20="",$BA$20="",$BB$20=""),"",(IF($DF77>=$BA$20,-$AZ$20*($DF77-$AY$20-($DF77-$BA$20)),IF($DF77>=$AY$20,-$AZ$20*($DF77-$AY$20),0)))+(IF($DF77>=$BA$20,-1/2*($BB$20-$AZ$20)/($BA$20-$AY$20)*(($DF77-$AY$20)^2-($DF77-$BA$20)^2)+($BB$20-$AZ$20)*($DF77-$BA$20),IF($DF77>=$AY$20,-1/2*($BB$20-$AZ$20)/($BA$20-$AY$20)*($DF77-$AY$20)^2,0))))) -> -82.46224 | BR77: =IF($AY$20=$BA$20,"",IF(AND($AY$20="",$AZ$20="",$BA$20="",$BB$20=""),"",(IF($DF77>=$BA$20,-$AZ$20/2*(($DF77-$AY$20)^2-($DF77-$BA$20)^2),IF($DF77>=$AY$20,-$AZ$20/2*($DF77-$AY$20)^2,0)))+(IF($DF77>=$BA$20,-1/6*($BB$20-$AZ$20)/($BA$20-$AY$20)*(($DF77-$AY$20)^3-($DF77-$BA$20)^3)+($BB$20-$AZ$20)/2*($DF77-$BA$20)^2,IF($DF77>=$AY$20,-1/6*($BB$20-$AZ$20)/($BA$20-$AY$20)*($DF77-$AY$20)^3,0))))) -> -125.1135872 | BS77: =IF($AY$20=$BA$20,"",IF(AND($AY$20="",$AZ$20="",$BA$20="",$BB$20=""),"",(IF($DF77>=$BA$20,-$AZ$20/(6*$P$10*$P$11)*(($DF77-$AY$20)^3-($DF77-$BA$20)^3),IF($DF77>=$AY$20,-$AZ$20/(6*$P$10*$P$11)*($DF77-$AY$20)^3,0)))+(IF($DF77>=$BA$20,-1/(24*$P$10*$P$11)*($BB$20-$AZ$20)/($BA$20-$AY$20)*(($DF77-$AY$20)^4-($DF77-$BA$20)^4)+($BB$20-$AZ$20)/(6*$P$10*$P$11)*($DF77-$BA$20)^3,IF($DF77>=$AY$20,-1/(24*$P$10*$P$11)*($BB$20-$AZ$20)/($BA$20-$AY$20)*($DF77-$AY$20)^4,0))))) -> -3.755435607e-08 | BT77: =IF($AY$20=$BA$20,"",IF(AND($AY$20="",$AZ$20="",$BA$20="",$BB$20=""),"",(IF($DF77>=$BA$20,$AZ$20/(24*$P$10*$P$11)*(($DF77-$AY$20)^4-($DF77-$BA$20)^4),IF($DF77>=$AY$20,$AZ$20/(24*$P$10*$P$11)*($DF77-$AY$20)^4,0)))+(IF($DF77>=$BA$20,1/(120*$P$10*$P$11)*($BB$20-$AZ$20)/($BA$20-$AY$20)*(($DF77-$AY$20)^5-($DF77-$BA$20)^5)-($BB$20-$AZ$20)/(24*$P$10*$P$11)*($DF77-$BA$20)^4,IF($DF77>=$AY$20,1/(120*$P$10*$P$11)*($BB$20-$AZ$20)/($BA$20-$AY$20)*($DF77-$AY$20)^5,0))))) -> 2.716025615e-08 | BU77: =IF($AY$21=$BA$21,"",IF(AND($AY$21="",$AZ$21="",$BA$21="",$BB$21=""),"",(IF($DF77>=$BA$21,-$AZ$21*($DF77-$AY$21-($DF77-$BA$21)),IF($DF77>=$AY$21,-$AZ$21*($DF77-$AY$21),0)))+(IF($DF77>=$BA$21,-1/2*($BB$21-$AZ$21)/($BA$21-$AY$21)*(($DF77-$AY$21)^2-($DF77-$BA$21)^2)+($BB$21-$AZ$21)*($DF77-$BA$21),IF($DF77>=$AY$21,-1/2*($BB$21-$AZ$21)/($BA$21-$AY$21)*($DF77-$AY$21)^2,0))))) ->  | BV77: =IF($AY$21=$BA$21,"",IF(AND($AY$21="",$AZ$21="",$BA$21="",$BB$21=""),"",(IF($DF77>=$BA$21,-$AZ$21/2*(($DF77-$AY$21)^2-($DF77-$BA$21)^2),IF($DF77>=$AY$21,-$AZ$21/2*($DF77-$AY$21)^2,0)))+(IF($DF77>=$BA$21,-1/6*($BB$21-$AZ$21)/($BA$21-$AY$21)*(($DF77-$AY$21)^3-($DF77-$BA$21)^3)+($BB$21-$AZ$21)/2*($DF77-$BA$21)^2,IF($DF77>=$AY$21,-1/6*($BB$21-$AZ$21)/($BA$21-$AY$21)*($DF77-$AY$21)^3,0))))) ->  | BW77: =IF($AY$21=$BA$21,"",IF(AND($AY$21="",$AZ$21="",$BA$21="",$BB$21=""),"",(IF($DF77>=$BA$21,-$AZ$21/(6*$P$10*$P$11)*(($DF77-$AY$21)^3-($DF77-$BA$21)^3),IF($DF77>=$AY$21,-$AZ$21/(6*$P$10*$P$11)*($DF77-$AY$21)^3,0)))+(IF($DF77>=$BA$21,-1/(24*$P$10*$P$11)*($BB$21-$AZ$21)/($BA$21-$AY$21)*(($DF77-$AY$21)^4-($DF77-$BA$21)^4)+($BB$21-$AZ$21)/(6*$P$10*$P$11)*($DF77-$BA$21)^3,IF($DF77>=$AY$21,-1/(24*$P$10*$P$11)*($BB$21-$AZ$21)/($BA$21-$AY$21)*($DF77-$AY$21)^4,0))))) ->  | BX77: =IF($AY$21=$BA$21,"",IF(AND($AY$21="",$AZ$21="",$BA$21="",$BB$21=""),"",(IF($DF77>=$BA$21,$AZ$21/(24*$P$10*$P$11)*(($DF77-$AY$21)^4-($DF77-$BA$21)^4),IF($DF77>=$AY$21,$AZ$21/(24*$P$10*$P$11)*($DF77-$AY$21)^4,0)))+(IF($DF77>=$BA$21,1/(120*$P$10*$P$11)*($BB$21-$AZ$21)/($BA$21-$AY$21)*(($DF77-$AY$21)^5-($DF77-$BA$21)^5)-($BB$21-$AZ$21)/(24*$P$10*$P$11)*($DF77-$BA$21)^4,IF($DF77>=$AY$21,1/(120*$P$10*$P$11)*($BB$21-$AZ$21)/($BA$21-$AY$21)*($DF77-$AY$21)^5,0))))) ->  | BY77: =IF($AY$22=$BA$22,"",IF(AND($AY$22="",$AZ$22="",$BA$22="",$BB$22=""),"",(IF($DF77>=$BA$22,-$AZ$22*($DF77-$AY$22-($DF77-$BA$22)),IF($DF77>=$AY$22,-$AZ$22*($DF77-$AY$22),0)))+(IF($DF77>=$BA$22,-1/2*($BB$22-$AZ$22)/($BA$22-$AY$22)*(($DF77-$AY$22)^2-($DF77-$BA$22)^2)+($BB$22-$AZ$22)*($DF77-$BA$22),IF($DF77>=$AY$22,-1/2*($BB$22-$AZ$22)/($BA$22-$AY$22)*($DF77-$AY$22)^2,0))))) ->  | BZ77: =IF($AY$22=$BA$22,"",IF(AND($AY$22="",$AZ$22="",$BA$22="",$BB$22=""),"",(IF($DF77>=$BA$22,-$AZ$22/2*(($DF77-$AY$22)^2-($DF77-$BA$22)^2),IF($DF77>=$AY$22,-$AZ$22/2*($DF77-$AY$22)^2,0)))+(IF($DF77>=$BA$22,-1/6*($BB$22-$AZ$22)/($BA$22-$AY$22)*(($DF77-$AY$22)^3-($DF77-$BA$22)^3)+($BB$22-$AZ$22)/2*($DF77-$BA$22)^2,IF($DF77>=$AY$22,-1/6*($BB$22-$AZ$22)/($BA$22-$AY$22)*($DF77-$AY$22)^3,0))))) ->  | CA77: =IF($AY$22=$BA$22,"",IF(AND($AY$22="",$AZ$22="",$BA$22="",$BB$22=""),"",(IF($DF77>=$BA$22,-$AZ$22/(6*$P$10*$P$11)*(($DF77-$AY$22)^3-($DF77-$BA$22)^3),IF($DF77>=$AY$22,-$AZ$22/(6*$P$10*$P$11)*($DF77-$AY$22)^3,0)))+(IF($DF77>=$BA$22,-1/(24*$P$10*$P$11)*($BB$22-$AZ$22)/($BA$22-$AY$22)*(($DF77-$AY$22)^4-($DF77-$BA$22)^4)+($BB$22-$AZ$22)/(6*$P$10*$P$11)*($DF77-$BA$22)^3,IF($DF77>=$AY$22,-1/(24*$P$10*$P$11)*($BB$22-$AZ$22)/($BA$22-$AY$22)*($DF77-$AY$22)^4,0))))) ->  | CB77: =IF($AY$22=$BA$22,"",IF(AND($AY$22="",$AZ$22="",$BA$22="",$BB$22=""),"",(IF($DF77>=$BA$22,$AZ$22/(24*$P$10*$P$11)*(($DF77-$AY$22)^4-($DF77-$BA$22)^4),IF($DF77>=$AY$22,$AZ$22/(24*$P$10*$P$11)*($DF77-$AY$22)^4,0)))+(IF($DF77>=$BA$22,1/(120*$P$10*$P$11)*($BB$22-$AZ$22)/($BA$22-$AY$22)*(($DF77-$AY$22)^5-($DF77-$BA$22)^5)-($BB$22-$AZ$22)/(24*$P$10*$P$11)*($DF77-$BA$22)^4,IF($DF77>=$AY$22,1/(120*$P$10*$P$11)*($BB$22-$AZ$22)/($BA$22-$AY$22)*($DF77-$AY$22)^5,0))))) ->  | CC77: =IF($AY$23=$BA$23,"",IF(AND($AY$23="",$AZ$23="",$BA$23="",$BB$23=""),"",(IF($DF77>=$BA$23,-$AZ$23*($DF77-$AY$23-($DF77-$BA$23)),IF($DF77>=$AY$23,-$AZ$23*($DF77-$AY$23),0)))+(IF($DF77>=$BA$23,-1/2*($BB$23-$AZ$23)/($BA$23-$AY$23)*(($DF77-$AY$23)^2-($DF77-$BA$23)^2)+($BB$23-$AZ$23)*($DF77-$BA$23),IF($DF77>=$AY$23,-1/2*($BB$23-$AZ$23)/($BA$23-$AY$23)*($DF77-$AY$23)^2,0))))) ->  | CD77: =IF($AY$23=$BA$23,"",IF(AND($AY$23="",$AZ$23="",$BA$23="",$BB$23=""),"",(IF($DF77>=$BA$23,-$AZ$23/2*(($DF77-$AY$23)^2-($DF77-$BA$23)^2),IF($DF77>=$AY$23,-$AZ$23/2*($DF77-$AY$23)^2,0)))+(IF($DF77>=$BA$23,-1/6*($BB$23-$AZ$23)/($BA$23-$AY$23)*(($DF77-$AY$23)^3-($DF77-$BA$23)^3)+($BB$23-$AZ$23)/2*($DF77-$BA$23)^2,IF($DF77>=$AY$23,-1/6*($BB$23-$AZ$23)/($BA$23-$AY$23)*($DF77-$AY$23)^3,0))))) ->  | CE77: =IF($AY$23=$BA$23,"",IF(AND($AY$23="",$AZ$23="",$BA$23="",$BB$23=""),"",(IF($DF77>=$BA$23,-$AZ$23/(6*$P$10*$P$11)*(($DF77-$AY$23)^3-($DF77-$BA$23)^3),IF($DF77>=$AY$23,-$AZ$23/(6*$P$10*$P$11)*($DF77-$AY$23)^3,0)))+(IF($DF77>=$BA$23,-1/(24*$P$10*$P$11)*($BB$23-$AZ$23)/($BA$23-$AY$23)*(($DF77-$AY$23)^4-($DF77-$BA$23)^4)+($BB$23-$AZ$23)/(6*$P$10*$P$11)*($DF77-$BA$23)^3,IF($DF77>=$AY$23,-1/(24*$P$10*$P$11)*($BB$23-$AZ$23)/($BA$23-$AY$23)*($DF77-$AY$23)^4,0))))) ->  | CF77: =IF($AY$23=$BA$23,"",IF(AND($AY$23="",$AZ$23="",$BA$23="",$BB$23=""),"",(IF($DF77>=$BA$23,$AZ$23/(24*$P$10*$P$11)*(($DF77-$AY$23)^4-($DF77-$BA$23)^4),IF($DF77>=$AY$23,$AZ$23/(24*$P$10*$P$11)*($DF77-$AY$23)^4,0)))+(IF($DF77>=$BA$23,1/(120*$P$10*$P$11)*($BB$23-$AZ$23)/($BA$23-$AY$23)*(($DF77-$AY$23)^5-($DF77-$BA$23)^5)-($BB$23-$AZ$23)/(24*$P$10*$P$11)*($DF77-$BA$23)^4,IF($DF77>=$AY$23,1/(120*$P$10*$P$11)*($BB$23-$AZ$23)/($BA$23-$AY$23)*($DF77-$AY$23)^5,0))))) ->  | CG77: =IF($AY$24=$BA$24,"",IF(AND($AY$24="",$AZ$24="",$BA$24="",$BB$24=""),"",(IF($DF77>=$BA$24,-$AZ$24*($DF77-$AY$24-($DF77-$BA$24)),IF($DF77>=$AY$24,-$AZ$24*($DF77-$AY$24),0)))+(IF($DF77>=$BA$24,-1/2*($BB$24-$AZ$24)/($BA$24-$AY$24)*(($DF77-$AY$24)^2-($DF77-$BA$24)^2)+($BB$24-$AZ$24)*($DF77-$BA$24),IF($DF77>=$AY$24,-1/2*($BB$24-$AZ$24)/($BA$24-$AY$24)*($DF77-$AY$24)^2,0))))) ->  | CH77: =IF($AY$24=$BA$24,"",IF(AND($AY$24="",$AZ$24="",$BA$24="",$BB$24=""),"",(IF($DF77>=$BA$24,-$AZ$24/2*(($DF77-$AY$24)^2-($DF77-$BA$24)^2),IF($DF77>=$AY$24,-$AZ$24/2*($DF77-$AY$24)^2,0)))+(IF($DF77>=$BA$24,-1/6*($BB$24-$AZ$24)/($BA$24-$AY$24)*(($DF77-$AY$24)^3-($DF77-$BA$24)^3)+($BB$24-$AZ$24)/2*($DF77-$BA$24)^2,IF($DF77>=$AY$24,-1/6*($BB$24-$AZ$24)/($BA$24-$AY$24)*($DF77-$AY$24)^3,0))))) ->  | CI77: =IF($AY$24=$BA$24,"",IF(AND($AY$24="",$AZ$24="",$BA$24="",$BB$24=""),"",(IF($DF77>=$BA$24,-$AZ$24/(6*$P$10*$P$11)*(($DF77-$AY$24)^3-($DF77-$BA$24)^3),IF($DF77>=$AY$24,-$AZ$24/(6*$P$10*$P$11)*($DF77-$AY$24)^3,0)))+(IF($DF77>=$BA$24,-1/(24*$P$10*$P$11)*($BB$24-$AZ$24)/($BA$24-$AY$24)*(($DF77-$AY$24)^4-($DF77-$BA$24)^4)+($BB$24-$AZ$24)/(6*$P$10*$P$11)*($DF77-$BA$24)^3,IF($DF77>=$AY$24,-1/(24*$P$10*$P$11)*($BB$24-$AZ$24)/($BA$24-$AY$24)*($DF77-$AY$24)^4,0))))) ->  | CJ77: =IF($AY$24=$BA$24,"",IF(AND($AY$24="",$AZ$24="",$BA$24="",$BB$24=""),"",(IF($DF77>=$BA$24,$AZ$24/(24*$P$10*$P$11)*(($DF77-$AY$24)^4-($DF77-$BA$24)^4),IF($DF77>=$AY$24,$AZ$24/(24*$P$10*$P$11)*($DF77-$AY$24)^4,0)))+(IF($DF77>=$BA$24,1/(120*$P$10*$P$11)*($BB$24-$AZ$24)/($BA$24-$AY$24)*(($DF77-$AY$24)^5-($DF77-$BA$24)^5)-($BB$24-$AZ$24)/(24*$P$10*$P$11)*($DF77-$BA$24)^4,IF($DF77>=$AY$24,1/(120*$P$10*$P$11)*($BB$24-$AZ$24)/($BA$24-$AY$24)*($DF77-$AY$24)^5,0))))) ->  | CK77: =IF($AY$25=$BA$25,"",IF(AND($AY$25="",$AZ$25="",$BA$25="",$BB$25=""),"",(IF($DF77>=$BA$25,-$AZ$25*($DF77-$AY$25-($DF77-$BA$25)),IF($DF77>=$AY$25,-$AZ$25*($DF77-$AY$25),0)))+(IF($DF77>=$BA$25,-1/2*($BB$25-$AZ$25)/($BA$25-$AY$25)*(($DF77-$AY$25)^2-($DF77-$BA$25)^2)+($BB$25-$AZ$25)*($DF77-$BA$25),IF($DF77>=$AY$25,-1/2*($BB$25-$AZ$25)/($BA$25-$AY$25)*($DF77-$AY$25)^2,0))))) ->  | CL77: =IF($AY$25=$BA$25,"",IF(AND($AY$25="",$AZ$25="",$BA$25="",$BB$25=""),"",(IF($DF77>=$BA$25,-$AZ$25/2*(($DF77-$AY$25)^2-($DF77-$BA$25)^2),IF($DF77>=$AY$25,-$AZ$25/2*($DF77-$AY$25)^2,0)))+(IF($DF77>=$BA$25,-1/6*($BB$25-$AZ$25)/($BA$25-$AY$25)*(($DF77-$AY$25)^3-($DF77-$BA$25)^3)+($BB$25-$AZ$25)/2*($DF77-$BA$25)^2,IF($DF77>=$AY$25,-1/6*($BB$25-$AZ$25)/($BA$25-$AY$25)*($DF77-$AY$25)^3,0))))) ->  | CM77: =IF($AY$25=$BA$25,"",IF(AND($AY$25="",$AZ$25="",$BA$25="",$BB$25=""),"",(IF($DF77>=$BA$25,-$AZ$25/(6*$P$10*$P$11)*(($DF77-$AY$25)^3-($DF77-$BA$25)^3),IF($DF77>=$AY$25,-$AZ$25/(6*$P$10*$P$11)*($DF77-$AY$25)^3,0)))+(IF($DF77>=$BA$25,-1/(24*$P$10*$P$11)*($BB$25-$AZ$25)/($BA$25-$AY$25)*(($DF77-$AY$25)^4-($DF77-$BA$25)^4)+($BB$25-$AZ$25)/(6*$P$10*$P$11)*($DF77-$BA$25)^3,IF($DF77>=$AY$25,-1/(24*$P$10*$P$11)*($BB$25-$AZ$25)/($BA$25-$AY$25)*($DF77-$AY$25)^4,0))))) ->  | CN77: =IF($AY$25=$BA$25,"",IF(AND($AY$25="",$AZ$25="",$BA$25="",$BB$25=""),"",(IF($DF77>=$BA$25,$AZ$25/(24*$P$10*$P$11)*(($DF77-$AY$25)^4-($DF77-$BA$25)^4),IF($DF77>=$AY$25,$AZ$25/(24*$P$10*$P$11)*($DF77-$AY$25)^4,0)))+(IF($DF77>=$BA$25,1/(120*$P$10*$P$11)*($BB$25-$AZ$25)/($BA$25-$AY$25)*(($DF77-$AY$25)^5-($DF77-$BA$25)^5)-($BB$25-$AZ$25)/(24*$P$10*$P$11)*($DF77-$BA$25)^4,IF($DF77>=$AY$25,1/(120*$P$10*$P$11)*($BB$25-$AZ$25)/($BA$25-$AY$25)*($DF77-$AY$25)^5,0))))) ->  | CO77: =IF($DF77>$AY$30,-$AZ$30,0)+IF($DF77>$AY$31,-$AZ$31,0)+IF($DF77>$AY$32,-$AZ$32,0)+IF($DF77>$AY$33,-$AZ$33,0)+IF($DF77>$AY$34,-$AZ$34,0)+IF($DF77>$AY$35,-$AZ$35,0) -> -33.6 | CP77: =IF($DF77>$AY$30,-$AZ$30*($DF77-$AY$30),0)+IF($DF77>$AY$31,-$AZ$31*($DF77-$AY$31),0)+IF($DF77>$AY$32,-$AZ$32*($DF77-$AY$32),0)+IF($DF77>$AY$33,-$AZ$33*($DF77-$AY$33),0)+IF($DF77>$AY$34,-$AZ$34*($DF77-$AY$34),0)+IF($DF77>$AY$35,-$AZ$35*($DF77-$AY$35),0) -> -28.224 | CQ77: =IF($DF77>$AY$30,-$AZ$30*($DF77-$AY$30)^2/(2*$P$10*$P$11),0)+IF($DF77>$AY$31,-$AZ$31*($DF77-$AY$31)^2/(2*$P$10*$P$11),0)+IF($DF77>$AY$32,-$AZ$32*($DF77-$AY$32)^2/(2*$P$10*$P$11),0)+IF($DF77>$AY$33,-$AZ$33*($DF77-$AY$33)^2/(2*$P$10*$P$11),0)+IF($DF77>$AY$34,-$AZ$34*($DF77-$AY$34)^2/(2*$P$10*$P$11),0)+IF($DF77>$AY$35,-$AZ$35*($DF77-$AY$35)^2/(2*$P$10*$P$11),0) -> -3.641918339e-09 | CR77: =IF($DF77>$AY$30,$AZ$30*($DF77-$AY$30)^3/(6*$P$10*$P$11),0)+IF($DF77>$AY$31,$AZ$31*($DF77-$AY$31)^3/(6*$P$10*$P$11),0)+IF($DF77>$AY$32,$AZ$32*($DF77-$AY$32)^3/(6*$P$10*$P$11),0)+IF($DF77>$AY$33,$AZ$33*($DF77-$AY$33)^3/(6*$P$10*$P$11),0)+IF($DF77>$AY$34,$AZ$34*($DF77-$AY$34)^3/(6*$P$10*$P$11),0)+IF($DF77>$AY$35,$AZ$35*($DF77-$AY$35)^3/(6*$P$10*$P$11),0) -> 1.019737135e-09 | CS77: =IF($DF77>=IF($AY$47=$P$9,$AY$47+0.000000001,$AY$47),0,0)+IF($DF77>=IF($AY$48=$P$9,$AY$48+0.000000001,$AY$48),0,0)+IF($DF77>=IF($AY$49=$P$9,$AY$49+0.000000001,$AY$49),0,0)+IF($DF77>=IF($AY$50=$P$9,$AY$50+0.000000001,$AY$50),0,0)+IF($DF77>=IF($AY$51=$P$9,$AY$51+0.000000001,$AY$51),0,0)+IF($DF77>=IF($AY$52=$P$9,$AY$52+0.000000001,$AY$52),0,0) -> 0 | CT77: =IF($DF77>=IF($AY$47=$P$9,$AY$47+0.000000001,$AY$47),-$AZ$47,0)+IF($DF77>=IF($AY$48=$P$9,$AY$48+0.000000001,$AY$48),-$AZ$48,0)+IF($DF77>=IF($AY$49=$P$9,$AY$49+0.000000001,$AY$49),-$AZ$49,0)+IF($DF77>=IF($AY$50=$P$9,$AY$50+0.000000001,$AY$50),-$AZ$50,0)+IF($DF77>=IF($AY$51=$P$9,$AY$51+0.000000001,$AY$51),-$AZ$51,0)+IF($DF77>=IF($AY$52=$P$9,$AY$52+0.000000001,$AY$52),-$AZ$52,0) -> -104 | CU77: =IF($DF77>=IF($AY$47=$P$9,$AY$47+0.000000001,$AY$47),-$AZ$47*($DF77-$AY$47)/($P$10*$P$11),0)+IF($DF77>=IF($AY$48=$P$9,$AY$48+0.000000001,$AY$48),-$AZ$48*($DF77-$AY$48)/($P$10*$P$11),0)+IF($DF77>=IF($AY$49=$P$9,$AY$49+0.000000001,$AY$49),-$AZ$49*($DF77-$AY$49)/($P$10*$P$11),0)+IF($DF77>=IF($AY$50=$P$9,$AY$50+0.000000001,$AY$50),-$AZ$50*($DF77-$AY$50)/($P$10*$P$11),0)+IF($DF77>=IF($AY$51=$P$9,$AY$51+0.000000001,$AY$51),-$AZ$51*($DF77-$AY$51)/($P$10*$P$11),0)+IF($DF77>=IF($AY$52=$P$9,$AY$52+0.000000001,$AY$52),-$AZ$52*($DF77-$AY$52)/($P$10*$P$11),0) -> -5.879136072e-08 | CV77: =IF($DF77>=IF($AY$47=$P$9,$AY$47+0.000000001,$AY$47),$AZ$47*($DF77-$AY$47)^2/(2*$P$10*$P$11),0)+IF($DF77>=IF($AY$48=$P$9,$AY$48+0.000000001,$AY$48),$AZ$48*($DF77-$AY$48)^2/(2*$P$10*$P$11),0)+IF($DF77>=IF($AY$49=$P$9,$AY$49+0.000000001,$AY$49),$AZ$49*($DF77-$AY$49)^2/(2*$P$10*$P$11),0)+IF($DF77>=IF($AY$50=$P$9,$AY$50+0.000000001,$AY$50),$AZ$50*($DF77-$AY$50)^2/(2*$P$10*$P$11),0)+IF($DF77>=IF($AY$51=$P$9,$AY$51+0.000000001,$AY$51),$AZ$51*($DF77-$AY$51)^2/(2*$P$10*$P$11),0)+IF($DF77>=IF($AY$52=$P$9,$AY$52+0.000000001,$AY$52),$AZ$52*($DF77-$AY$52)^2/(2*$P$10*$P$11),0) -> 5.408805186e-08 | CW77: -400.22224 | CX77: -802.9247872 | CY77: -3.145415741e-07 | CZ77: 2.882398266e-07 | DB77: -83.31640667 | DC77: =$BI$30+$BH$30*$DF77+$CX77 -> 100.5969461 | DD77: =($BJ$30+$BI$30*$DF77/($P$10*$P$11)+$BH$30*$DF77^2/(2*$P$10*$P$11)+$CY77)*100000 -> 0.003356132552 | DE77: =(-($BK$30-$BJ$30*$DF77-$BI$30*$DF77^2/(2*$P$10*$P$11)-$BH$30*$DF77^3/(6*$P$10*$P$11)+$CZ77))*100000000 -> -7.929708921 | DF77: 3.84
AM78: =AM77 -> 6 | AN78: 0 | AY78: -0.1 | AZ78: 0.6 | BA78: -0.1 | BB78: 0.6 | BD78: 0.25 | BE78: 1 | BF78: 0 | BG78: 0.2 | BL78: 65 | BM78: -288.6 | BN78: -562.77 | BO78: -2.247691173e-07 | BP78: 2.191498894e-07 | BQ78: -83.839 | BR78: -130.1027 | BS78: -3.990652529e-08 | BT78: 2.948362275e-08 | CO78: -33.6 | CP78: -30.24 | CQ78: -4.180773603e-09 | CR78: 1.254232081e-09 | CS78: 0 | CT78: -104 | CU78: -6.070847031e-08 | CV78: 5.767304679e-08 | CW78: =SUM(CS78,CO78,CK78,CG78,CC78,BY78,BU78,BQ78,BM78) -> -406.039 | CX78: =SUM(CT78,CP78,CL78,CH78,CD78,BZ78,BV78,BR78,BN78) -> -827.1127 | CY78: =SUM(CU78,CQ78,CM78,CI78,CE78,CA78,BW78,BS78,BO78) -> -3.295648865e-07 | CZ78: =SUM(CV78,CR78,CN78,CJ78,CF78,CB78,BX78,BT78,BP78) -> 3.07560791e-07 | DB78: -89.13316667 | DC78: 95.42338333 | DD78: 0.003536855613 | DE78: -7.722871592 | DF78: =P$9/100*BL78 -> 3.9
AY79: -0.1 | AZ79: 1 | BA79: -0.1 | BB79: 1 | BD79: 0.25 | BE79: 4 | BF79: 0 | BG79: 0.2 | BL79: 66 | BM79: -293.04 | BN79: -580.2192 | BO79: -2.353034944e-07 | BP79: 2.329504595e-07 | BQ79: -85.20064 | BR79: -135.1739648 | BS79: -4.235142112e-08 | BT79: 3.195089373e-08 | CO79: -33.6 | CP79: -32.256 | CQ79: -4.756791299e-09 | CR79: 1.522173216e-09 | CS79: 0 | CT79: -104 | CU79: -6.262557989e-08 | CV79: 6.13730683e-08 | CW79: -411.84064 | CX79: -851.6491648 | CY79: -3.450372867e-07 | CZ79: 3.277965947e-07 | DB79: =($BH$30+$CW79) -> -94.93480667 | DC79: 89.90126853 | DD79: 0.003707720464 | DE79: -7.505483412 | DF79: 3.96
AM80: 0 | AN80: =R81 -> -206.0941667 | BD80: 0 | BE80: 4 | BF80: 0 | BG80: 0.2 | BL80: 67 | BM80: -297.48 | BN80: -597.9348 | BO80: -2.46161981e-07 | BP80: 2.473927909e-07 | BQ80: -86.1 | BR80: -140.322 | BS80: -4.489054042e-08 | BT80: 3.45676779e-08 | CO80: -33.6 | CP80: -34.272 | CQ80: -5.369971428e-09 | CR80: 1.825790285e-09 | CS80: 0 | CT80: -104 | CU80: -6.454268948e-08 | CV80: 6.518811638e-08 | CW80: -417.18 | CX80: -876.5288 | CY80: -3.609651823e-07 | CZ80: 3.489743755e-07 | DB80: -100.2741667 | DC80: 84.03598333 | DD80: 0.003868086347 | DE80: -7.27815513 | DF80: 4.02
B81: Vmax | E81: =DB120 -> 316.9058333 | H81: kN | J81: @ | K81: =DC120 -> 0 | M81: m | P81: User | R81: =DB114 -> -206.0941667 | U81: kNm | Y81: Vmin | AB81: =DD120 -> -246.7941667 | AE81: kN | AG81: @ | AH81: =DE120 -> 6 | AJ81: m | AM81: =Y58 -> 5.45 | AN81: =AN80 -> -206.0941667 | AX81: Rfix | AY81: 9.9 | AZ81: -1 | BA81: 10.1 | BB81: =IF($BF$15=1,100,AZ81) -> -1 | BD81: -0.25 | BE81: 4 | BF81: 0 | BG81: 0.2 | BL81: 68 | BM81: -301.92 | BN81: -615.9168 | BO81: -2.573494878e-07 | BP81: 2.624964776e-07 | BQ81: -86.1 | BR81: -145.488 | BS81: -4.752481489e-08 | BT81: 3.733966242e-08 | CO81: -33.6 | CP81: -36.288 | CQ81: -6.020313988e-09 | CR81: 2.167313036e-09 | CS81: 0 | CT81: -104 | CU81: -6.645979907e-08 | CV81: 6.911819104e-08 | CW81: -421.62 | CX81: -901.6928 | CY81: -3.773544158e-07 | CZ81: 3.711216441e-07 | DB81: -104.7141667 | DC81: 77.88633333 | DD81: 0.004017369013 | DE81: -7.041534789 | DF81: 4.08
H82: Support Reactions | P82: R1 | R82: =DB126 -> 316.9058333 | U82: kN | Y82: R2 | AA82: =DD126 -> 246.7941667 | AD82: kN | AM82: =AM81 -> 5.45 | AN82: 0 | AY82: 9.9 | AZ82: -0.6 | BA82: 10.1 | BB82: -0.6 | BD82: -0.25 | BE82: 1 | BF82: 0 | BG82: 0.2 | BL82: 69 | BM82: -306.36 | BN82: -634.1652 | BO82: -2.688709257e-07 | BP82: 2.782814081e-07 | BQ82: -86.1 | BR82: -150.654 | BS82: -5.025431811e-08 | BT82: 4.027256026e-08 | CO82: -33.6 | CP82: -38.304 | CQ82: -6.707818981e-09 | CR82: 2.548971213e-09 | CS82: 0 | CT82: -104 | CU82: -6.837690866e-08 | CV82: 7.316329227e-08 | CW82: -426.06 | CX82: -927.1232 | CY82: -3.942099714e-07 | CZ82: 3.942662318e-07 | DB82: -109.1541667 | DC82: 71.47028333 | DD82: 0.004155070033 | DE82: -6.796302481 | DF82: 4.14
AY83: 9.9 | AZ83: -0.2 | BA83: 10.1 | BB83: -0.2 | BD83: -1 | BE83: 1 | BF83: 0 | BG83: 0.2 | BL83: 70 | BM83: -310.8 | BN83: -652.68 | BO83: -2.807312053e-07 | BP83: 2.947677655e-07 | BQ83: -86.1 | BR83: -155.82 | BS83: -5.307905005e-08 | BT83: 4.337208516e-08 | CO83: -33.6 | CP83: -40.32 | CQ83: -7.432486405e-09 | CR83: 2.972994562e-09 | CS83: 0 | CT83: -104 | CU83: -7.029401825e-08 | CV83: 7.732342007e-08 | CW83: -430.5 | CX83: -952.82 | CY83: -4.1153676e-07 | CZ83: 4.184362653e-07 | DB83: -113.5941667 | DC83: 64.78783333 | DD83: 0.004280698332 | DE83: -6.543167839 | DF83: 4.2
AM84: 0 | AN84: =AB93 -> -9.469718093 | AY84: 9.9 | AZ84: 0.2 | BA84: 10.1 | BB84: 0.2 | BD84: 0 | BE84: 0.2 | BF84: 0 | BG84: =IF(BE84/$AT$16*$P$50<0.2,0.2,BE84/$AT$16*$P$50) -> 0.2 | BL84: 71 | BM84: -315.24 | BN84: -671.4612 | BO84: -2.929352373e-07 | BP84: 3.119760278e-07 | BQ84: -86.1 | BR84: -160.986 | BS84: -5.599901072e-08 | BT84: 4.664395084e-08 | CO84: -33.6 | CP84: -42.336 | CQ84: -8.194316262e-09 | CR84: 3.44161283e-09 | CS84: 0 | CT84: -104 | CU84: -7.221112784e-08 | CV84: 8.159857446e-08 | CW84: -434.94 | CX84: -978.7832 | CY84: -4.293396922e-07 | CZ84: 4.436601659e-07 | DB84: -118.0341667 | DC84: 57.83898333 | DD84: 0.004393762834 | DE84: -6.282869958 | DF84: 4.26
AM85: =AH93 -> 2.94 | AN85: =AN84 -> -9.469718093 | AY85: 9.9 | AZ85: 0.6 | BA85: 10.1 | BB85: 0.6 | BL85: 72 | BM85: -319.68 | BN85: -690.5088 | BO85: -3.054879327e-07 | BP85: 3.299269673e-07 | BQ85: -86.1 | BR85: -166.152 | BS85: -5.901420013e-08 | BT85: 5.009387103e-08 | CO85: -33.6 | CP85: -44.352 | CQ85: -8.99330855e-09 | CR85: 3.957055762e-09 | CS85: 0 | CT85: -104 | CU85: -7.412823743e-08 | CV85: 8.598875541e-08 | CW85: -439.38 | CX85: -1005.0128 | CY85: -4.476236788e-07 | CZ85: 4.699666495e-07 | DB85: -122.4741667 | DC85: 50.62373333 | DD85: 0.004493772466 | DE85: -6.016177397 | DF85: 4.32
AM86: =AM85 -> 2.94 | AN86: 0 | AY86: 9.9 | AZ86: 1 | BA86: 10.1 | BB86: 1 | BC86: =IF(P51=0,"","P6, "&P51&"kN") ->  | BD86: 0 | BE86: 0.2 | BF86: =BD86/$AT$16*$P$51+(10/$P$9)*$M$51 -> 0 | BG86: =IF(BE86/$AT$16*$P$51<0.2,0.2,BE86/$AT$16*$P$51) -> 0.2 | BL86: 73 | BM86: -324.12 | BN86: -709.8228 | BO86: -3.18394202e-07 | BP86: 3.486416512e-07 | BQ86: -86.1 | BR86: -171.318 | BS86: -6.212461827e-08 | BT86: 5.372755943e-08 | CO86: -33.6 | CP86: -46.368 | CQ86: -9.829463271e-09 | CR86: 4.521553105e-09 | CS86: 0 | CT86: -104 | CU86: -7.604534702e-08 | CV86: 9.049396295e-08 | CW86: -443.82 | CX86: -1031.5088 | CY86: -4.663936305e-07 | CZ86: 4.973847266e-07 | DB86: -126.9141667 | DC86: 43.14208333 | DD86: 0.004580236152 | DE86: -5.743888181 | DF86: 4.38
BD87: 1 | BE87: 1 | BF87: 0 | BG87: =IF($BE$36/$AT$16*$P$51<0.2,BE87/$AT$16*$P$51+0.2-$BE$36/$AT$16*$P$51,BE87/$AT$16*$P$51) -> 0.2 | BL87: 74 | BM87: -328.56 | BN87: -729.4032 | BO87: -3.31658956e-07 | BP87: 3.681414412e-07 | BQ87: -86.1 | BR87: -176.484 | BS87: -6.533026514e-08 | BT87: 5.755072979e-08 | CO87: -33.6 | CP87: -48.384 | CQ87: -1.070278042e-08 | CR87: 5.137334603e-09 | CS87: 0 | CT87: -104 | CU87: -7.79624566e-08 | CV87: 9.511419706e-08 | CW87: -448.26 | CX87: -1058.2712 | CY87: -4.856544582e-07 | CZ87: 5.259437027e-07 | DB87: -131.3541667 | DC87: 35.39403333 | DD87: 0.004652662816 | DE87: -5.466829799 | DF87: 4.44
AM88: 0 | AN88: =R93 -> -1.004560809 | BD88: 0.25 | BE88: 1 | BF88: 0 | BG88: 0.2 | BL88: 75 | BM88: -333 | BN88: -749.25 | BO88: -3.452871056e-07 | BP88: 3.884479938e-07 | BQ88: -86.1 | BR88: -181.65 | BS88: -6.863114074e-08 | BT88: 6.156909582e-08 | CO88: -33.6 | CP88: -50.4 | CQ88: -1.161326001e-08 | CR88: 5.806630004e-09 | CS88: 0 | CT88: -104 | CU88: -7.987956619e-08 | CV88: 9.984945774e-08 | CW88: -452.7 | CX88: -1085.3 | CY88: -5.054110725e-07 | CZ88: 5.556731774e-07 | DB88: -135.7941667 | DC88: 27.37958333 | DD88: 0.004710561384 | DE88: -5.185859205 | DF88: 4.5
AM89: =Y58 -> 5.45 | AN89: =AN88 -> -1.004560809 | BD89: 0.25 | BE89: 4 | BF89: 0 | BG89: 0.2 | BL89: 76 | BM89: -337.44 | BN89: -769.3632 | BO89: -3.592835614e-07 | BP89: 4.0958326e-07 | BQ89: -86.1 | BR89: -186.816 | BS89: -7.202724508e-08 | BT89: 6.578837126e-08 | CO89: -33.6 | CP89: -52.416 | CQ89: -1.256090202e-08 | CR89: 6.531669053e-09 | CS89: 0 | CT89: -104 | CU89: -8.179667578e-08 | CV89: 1.04699745e-07 | CW89: -457.14 | CX89: -1112.5952 | CY89: -5.256683843e-07 | CZ89: 5.866030453e-07 | DB89: -140.2341667 | DC89: 19.09873333 | DD89: 0.004753440782 | DE89: -4.901862816 | DF89: 4.56
AM90: =AM89 -> 5.45 | AN90: 0 | BD90: 0 | BE90: 4 | BF90: 0 | BG90: 0.2 | BL90: 77 | BM90: -341.88 | BN90: -789.7428 | BO90: -3.736532342e-07 | BP90: 4.315694855e-07 | BQ90: -86.1 | BR90: -191.982 | BS90: -7.551857814e-08 | BT90: 7.021426981e-08 | CO90: -33.6 | CP90: -54.432 | CQ90: -1.354570647e-08 | CR90: 7.314681496e-09 | CS90: 0 | CT90: -104 | CU90: -8.371378537e-08 | CV90: 1.096650588e-07 | CW90: -461.58 | CX90: -1140.1568 | CY90: -5.464313042e-07 | CZ90: 6.187634956e-07 | DB90: -144.6741667 | DC90: 10.55148333 | DD90: 0.004780809933 | DE90: -4.615756516 | DF90: 4.62
BD91: -0.25 | BE91: 4 | BF91: 0 | BG91: 0.2 | BL91: 78 | BM91: -346.32 | BN91: -810.3888 | BO91: -3.884010347e-07 | BP91: 4.544292107e-07 | BQ91: -86.1 | BR91: -197.148 | BS91: -7.910513994e-08 | BT91: 7.485250521e-08 | CO91: -33.6 | CP91: -56.448 | CQ91: -1.456767335e-08 | CR91: 8.157897078e-09 | CS91: 0 | CT91: -104 | CU91: -8.563089496e-08 | CV91: 1.147453992e-07 | CW91: -466.02 | CX91: -1167.9848 | CY91: -5.67704743e-07 | CZ91: 6.521850122e-07 | DB91: -149.1141667 | DC91: 1.737833333 | DD91: 0.004792177763 | DE91: -4.328485651 | DF91: 4.68
BD92: -0.25 | BE92: 1 | BF92: 0 | BG92: 0.2 | BL92: 79 | BM92: -350.76 | BN92: -831.3012 | BO92: -4.035318738e-07 | BP92: 4.781852704e-07 | BQ92: -86.1 | BR92: -202.314 | BS92: -8.278693047e-08 | BT92: 7.970879118e-08 | CO92: -33.6 | CP92: -58.464 | CQ92: -1.562680267e-08 | CR92: 9.063545547e-09 | CS92: 0 | CT92: -104 | CU92: -8.754800455e-08 | CV92: 1.199407662e-07 | CW92: -470.46 | CX92: -1196.0792 | CY92: -5.894936115e-07 | CZ92: 6.868983734e-07 | DB92: -153.5541667 | DC92: -7.342216667 | DD92: 0.004787053197 | DE92: -4.041025032 | DF92: 4.74
B93: Δmax | E93: =DB123 -> 2.117582368e-14 | H93: mm | J93: @ | K93: =DC123 -> 6 | M93: m | P93: User | R93: =DE114 -> -1.004560809 | U93: mm | Y93: Δmin | AB93: =DD123 -> -9.469718093 | AE93: mm | AG93: @ | AH93: =DE123 -> 2.94 | AJ93: m | BD93: -1 | BE93: 1 | BF93: 0 | BG93: 0.2 | BL93: 80 | BM93: -355.2 | BN93: -852.48 | BO93: -4.190506621e-07 | BP93: 5.028607945e-07 | BQ93: -86.1 | BR93: -207.48 | BS93: -8.656394974e-08 | BT93: 8.478884144e-08 | CO93: -33.6 | CP93: -60.48 | CQ93: -1.672309441e-08 | CR93: 1.003385665e-08 | CS93: 0 | CT93: -104 | CU93: -8.946511414e-08 | CV93: 1.252511598e-07 | CW93: -474.9 | CX93: -1224.44 | CY93: -6.118028204e-07 | CZ93: 7.229346524e-07 | DB93: -157.9941667 | DC93: -16.68866667 | DD93: 0.00476494516 | DE93: -3.754378936 | DF93: 4.8
AM94: 0 | AN94: =E104 -> 0.004792177763 | BD94: 0 | BE94: 0.2 | BF94: 0 | BG94: =IF(BE94/$AT$16*$P$51<0.2,0.2,BE94/$AT$16*$P$51) -> 0.2 | BL94: 81 | BM94: -359.64 | BN94: -873.9252 | BO94: -4.349623104e-07 | BP94: 5.284792071e-07 | BQ94: -86.1 | BR94: -212.646 | BS94: -9.043619773e-08 | BT94: 9.009836972e-08 | CO94: -33.6 | CP94: -62.496 | CQ94: -1.785654859e-08 | CR94: 1.107106012e-08 | CS94: 0 | CT94: -104 | CU94: -9.138222372e-08 | CV94: 1.306765799e-07 | CW94: -479.34 | CX94: -1253.0672 | CY94: -6.346372804e-07 | CZ94: 7.603252169e-07 | DB94: -162.4341667 | DC94: -26.30151667 | DD94: 0.004725362576 | DE94: -3.469581104 | DF94: 4.86
AM95: =K104 -> 4.68 | AN95: =AN94 -> 0.004792177763 | BL95: 82 | BM95: -364.08 | BN95: -895.6368 | BO95: -4.512717294e-07 | BP95: 5.550642272e-07 | BQ95: -86.1 | BR95: -217.812 | BS95: -9.440367446e-08 | BT95: 9.564308974e-08 | CO95: -33.6 | CP95: -64.512 | CQ95: -1.90271652e-08 | CR95: 1.217738573e-08 | CS95: 0 | CT95: -104 | CU95: -9.329933331e-08 | CV95: 1.362170266e-07 | CW95: -483.78 | CX95: -1281.9608 | CY95: -6.580019024e-07 | CZ95: 7.991017293e-07 | DB95: -166.8741667 | DC95: -36.18076667 | DD95: 0.004667814372 | DE95: -3.18769474 | DF95: 4.92
AM96: =AM95 -> 4.68 | AN96: 0 | BC96: =IF(AB31=0,"","SW, "&AB31&"kN/m") -> SW, 10kN/m | BD96: 0 | BE96: 0.2 | BF96: 0 | BG96: =IF(BE96/$AT$16*$AB$31<0.2,0.2,BE96/$AT$16*$AB$31) -> 0.2 | BL96: 83 | BM96: -368.52 | BN96: -917.6148 | BO96: -4.679838299e-07 | BP96: 5.826398682e-07 | BQ96: -86.1 | BR96: -222.978 | BS96: -9.846637992e-08 | BT96: 1.014287152e-07 | CO96: -33.6 | CP96: -66.528 | CQ96: -2.023494424e-08 | CR96: 1.33550632e-08 | CS96: 0 | CT96: -104 | CU96: -9.52164429e-08 | CV96: 1.418724999e-07 | CW96: -488.22 | CX96: -1311.1208 | CY96: -6.81901597e-07 | CZ96: 8.392961466e-07 | DB96: -171.3141667 | DC96: -46.32641667 | DD96: 0.004591809472 | DE96: -2.909812513 | DF96: 4.98
BD97: 10 | BE97: 0.2 | BF97: 10 | BG97: =IF($BE$36/$AT$16*$AB$31<0.2,BE97/$AT$16*$AB$31+0.2-$BE$36/$AT$16*$AB$31,BE97/$AT$16*$AB$31) -> 0.2 | BL97: 84 | BM97: -372.96 | BN97: -939.8592 | BO97: -4.851035227e-07 | BP97: 6.112304386e-07 | BQ97: -86.1 | BR97: -228.144 | BS97: -1.026243141e-07 | BT97: 1.074609599e-07 | CO97: -33.6 | CP97: -68.544 | CQ97: -2.147988571e-08 | CR97: 1.460632228e-08 | CS97: 0 | CT97: -104 | CU97: -9.713355249e-08 | CV97: 1.476429998e-07 | CW97: -492.66 | CX97: -1340.5472 | CY97: -7.06341275e-07 | CZ97: 8.809407206e-07 | DB97: -175.7541667 | DC97: -56.73846667 | DD97: 0.004496856801 | DE97: -2.637056558 | DF97: 5.04
AM98: 0 | AN98: =AB104 -> -0.005211684074 | BD98: 10 | BE98: 4 | BF98: 10 | BG98: =IF($BE$36/$AT$16*$AB$31<0.2,BE98/$AT$16*$AB$31+0.2-$BE$36/$AT$16*$AB$31,BE98/$AT$16*$AB$31) -> 1.783333333 | BL98: 85 | BM98: -377.4 | BN98: -962.37 | BO98: -5.026357185e-07 | BP98: 6.40860541e-07 | BQ98: -86.1 | BR98: -233.31 | BS98: -1.06877477e-07 | BT98: 1.137455375e-07 | CO98: -33.6 | CP98: -70.56 | CQ98: -2.276198962e-08 | CR98: 1.593339273e-08 | CS98: 0 | CT98: -104 | CU98: -9.905066208e-08 | CV98: 1.535285262e-07 | CW98: -497.1 | CX98: -1370.24 | CY98: -7.313258472e-07 | CZ98: 9.240679975e-07 | DB98: -180.1941667 | DC98: -67.41691667 | DD98: 0.004382465283 | DE98: -2.370578474 | DF98: 5.1
AM99: =AH104 -> 1.14 | AN99: =AN98 -> -0.005211684074 | BD99: 0 | BE99: =BE98 -> 4 | BF99: 0 | BG99: =IF($BE$36/$AT$16*$AB$31<0.2,BE99/$AT$16*$AB$31+0.2-$BE$36/$AT$16*$AB$31,BE99/$AT$16*$AB$31) -> 1.783333333 | BL99: 86 | BM99: -381.84 | BN99: -985.1472 | BO99: -5.20585328e-07 | BP99: 6.715550731e-07 | BQ99: -86.1 | BR99: -238.476 | BS99: -1.112258687e-07 | BT99: 1.202881617e-07 | CO99: -33.6 | CP99: -72.576 | CQ99: -2.408125595e-08 | CR99: 1.733850429e-08 | CS99: 0 | CT99: -104 | CU99: -1.009677717e-07 | CV99: 1.595290792e-07 | CW99: -501.54 | CX99: -1400.1992 | CY99: -7.568602243e-07 | CZ99: 9.687108183e-07 | DB99: -184.6341667 | DC99: -78.36176667 | DD99: 0.004248143845 | DE99: -2.111559323 | DF99: 5.16
AM100: =AM99 -> 1.14 | AN100: 0 | BD100: =BD96 -> 0 | BE100: =BE96 -> 0.2 | BF100: =BF96 -> 0 | BG100: =IF(BE100/$AT$16*$AB$31<0.2,0.2,BE100/$AT$16*$AB$31) -> 0.2 | BL100: 87 | BM100: -386.28 | BN100: -1008.1908 | BO100: -5.38957262e-07 | BP100: 7.033392269e-07 | BQ100: -86.1 | BR100: -243.642 | BS100: -1.156694891e-07 | BT100: 1.270945463e-07 | CO100: -33.6 | CP100: -74.592 | CQ100: -2.543768472e-08 | CR100: 1.882388669e-08 | CS100: 0 | CT100: -104 | CU100: -1.028848813e-07 | CV100: 1.656446588e-07 | CW100: -505.98 | CX100: -1430.4248 | CY100: -7.82949317e-07 | CZ100: 1.014902319e-06 | DB100: -189.0741667 | DC100: -89.57301667 | DD100: 0.00409340141 | DE100: -1.861209633 | DF100: 5.22
BL101: 88 | BM101: -390.72 | BN101: -1031.5008 | BO101: -5.577564312e-07 | BP101: 7.362384892e-07 | BQ101: -86.1 | BR101: -248.808 | BS101: -1.202083382e-07 | BT101: 1.34170405e-07 | CO101: -33.6 | CP101: -76.608 | CQ101: -2.683127592e-08 | CR101: 2.03917697e-08 | CS101: 0 | CT101: -104 | CU101: -1.048019908e-07 | CV101: 1.71875265e-07 | CW101: -510.42 | CX101: -1460.9168 | CY101: -8.095980362e-07 | CZ101: 1.062675929e-06 | DB101: -193.5141667 | DC101: -101.0506667 | DD101: 0.003917746905 | DE101: -1.620769395 | DF101: 5.28
AM102: 0 | AN102: =R104 -> 0.003302198448 | BC102: =IF(AB32=0,"","DL, "&AB32&"kN/m") -> DL, 20kN/m | BD102: 0 | BE102: 0.2 | BF102: 0 | BG102: =IF(BE102/$AT$16*$AB$32<0.2,0.2,BE102/$AT$16*$AB$32) -> 0.2 | BL102: 89 | BM102: -395.16 | BN102: -1055.0772 | BO102: -5.769877465e-07 | BP102: 7.702786415e-07 | BQ102: -86.1 | BR102: -253.974 | BS102: -1.24842416e-07 | BT102: 1.415214515e-07 | CO102: -33.6 | CP102: -78.624 | CQ102: -2.826202956e-08 | CR102: 2.204438305e-08 | CS102: 0 | CT102: -104 | CU102: -1.067191004e-07 | CV102: 1.782208977e-07 | CW102: -514.86 | CX102: -1491.6752 | CY102: -8.368112925e-07 | CZ102: 1.112065374e-06 | DB102: -197.9541667 | DC102: -112.7947167 | DD102: 0.003720689253 | DE102: -1.391508067 | DF102: 5.34
AM103: =Y58 -> 5.45 | AN103: =AN102 -> 0.003302198448 | BD103: 10 | BE103: 0.2 | BF103: 10 | BG103: =IF($BE$36/$AT$16*$AB$32<0.2,BE103/$AT$16*$AB$32+0.2-$BE$36/$AT$16*$AB$32,BE103/$AT$16*$AB$32) -> 0.2 | BL103: 90 | BM103: -399.6 | BN103: -1078.92 | BO103: -5.966561185e-07 | BP103: 8.054857599e-07 | BQ103: -86.1 | BR103: -259.14 | BS103: -1.295717226e-07 | BT103: 1.491533995e-07 | CO103: -33.6 | CP103: -80.64 | CQ103: -2.972994562e-08 | CR103: 2.37839565e-08 | CS103: 0 | CT103: -104 | CU103: -1.0863621e-07 | CV103: 1.84681557e-07 | CW103: -519.3 | CX103: -1522.7 | CY103: -8.645939967e-07 | CZ103: 1.163104673e-06 | DB103: -202.3941667 | DC103: -124.8051667 | DD103: 0.003501737381 | DE103: -1.174724569 | DF103: 5.4
B104: Ɵmax | E104: =DB122 -> 0.004792177763 | H104: Rads | J104: @ | K104: =DC122 -> 4.68 | M104: m | P104: User | R104: =DD114 -> 0.003302198448 | U104: Rads | Y104: Ɵmin | AB104: =DD122 -> -0.005211684074 | AE104: Rads | AG104: @ | AH104: =DE122 -> 1.14 | AJ104: m | AM104: =AM103 -> 5.45 | AN104: 0 | BD104: 10 | BE104: 4 | BF104: 10 | BG104: =IF($BE$36/$AT$16*$AB$32<0.2,BE104/$AT$16*$AB$32+0.2-$BE$36/$AT$16*$AB$32,BE104/$AT$16*$AB$32) -> 3.366666667 | BL104: 91 | BM104: -404.04 | BN104: -1103.0292 | BO104: -6.16766458e-07 | BP104: 8.418862151e-07 | BQ104: -86.1 | BR104: -264.306 | BS104: -1.343962579e-07 | BT104: 1.570719628e-07 | CO104: -33.6 | CP104: -82.656 | CQ104: -3.123502412e-08 | CR104: 2.561271978e-08 | CS104: 0 | CT104: -104 | CU104: -1.105533196e-07 | CV104: 1.912572429e-07 | CW104: -523.74 | CX104: -1553.9912 | CY104: -8.929510596e-07 | CZ104: 1.215828141e-06 | DB104: -206.8341667 | DC104: -137.0820167 | DD104: 0.003260400212 | DE104: -0.9717472872 | DF104: 5.46
BD105: 0 | BE105: =BE104 -> 4 | BF105: 0 | BG105: =IF($BE$36/$AT$16*$AB$32<0.2,BE105/$AT$16*$AB$32+0.2-$BE$36/$AT$16*$AB$32,BE105/$AT$16*$AB$32) -> 3.366666667 | BL105: 92 | BM105: -408.48 | BN105: -1127.4048 | BO105: -6.373236757e-07 | BP105: 8.795066725e-07 | BQ105: -86.1 | BR105: -269.472 | BS105: -1.39316022e-07 | BT105: 1.65282855e-07 | CO105: -33.6 | CP105: -84.672 | CQ105: -3.277726505e-08 | CR105: 2.753290264e-08 | CS105: 0 | CT105: -104 | CU105: -1.124704292e-07 | CV105: 1.979479554e-07 | CW105: -528.18 | CX105: -1585.5488 | CY105: -9.218873919e-07 | CZ105: 1.270270385e-06 | DB105: -211.2741667 | DC105: -149.6252667 | DD105: 0.002996186672 | DE105: -0.7839340711 | DF105: 5.52
BD106: =BD102 -> 0 | BE106: =BE102 -> 0.2 | BF106: =BF102 -> 0 | BG106: =IF(BE106/$AT$16*$AB$32<0.2,0.2,BE106/$AT$16*$AB$32) -> 0.2 | BL106: 93 | BM106: -412.92 | BN106: -1152.0468 | BO106: -6.583326824e-07 | BP106: 9.18374092e-07 | BQ106: -86.1 | BR106: -274.638 | BS106: -1.443310148e-07 | BT106: 1.7379179e-07 | CO106: -33.6 | CP106: -86.688 | CQ106: -3.435666841e-08 | CR106: 2.954673483e-08 | CS106: 0 | CT106: -104 | CU106: -1.143875388e-07 | CV106: 2.047536944e-07 | CW106: -532.62 | CX106: -1617.3728 | CY106: -9.514079044e-07 | CZ106: 1.326466311e-06 | DB106: -215.7141667 | DC106: -162.4349167 | DD106: 0.002708605687 | DE106: -0.6126722354 | DF106: 5.58
BL107: 94 | BM107: -417.36 | BN107: -1176.9552 | BO107: -6.797983889e-07 | BP107: 9.585157283e-07 | BQ107: -86.1 | BR107: -279.804 | BS107: -1.494412363e-07 | BT107: 1.826044814e-07 | CO107: -33.6 | CP107: -88.704 | CQ107: -3.59732342e-08 | CR107: 3.16564461e-08 | CS107: 0 | CT107: -104 | CU107: -1.163046484e-07 | CV107: 2.1167446e-07 | CW107: -537.06 | CX107: -1649.4632 | CY107: -9.815175078e-07 | CZ107: 1.384451116e-06 | DB107: -220.1541667 | DC107: -175.5109667 | DD107: 0.00239716618 | DE107: -0.4593785591 | DF107: 5.64
BC108: =IF(AB33=0,"","IL, "&AB33&"kN/m") -> IL, 20kN/m | BD108: 0 | BE108: 0.2 | BF108: 0 | BG108: =IF(BE108/$AT$16*$AB$33<0.2,0.2,BE108/$AT$16*$AB$33) -> 0.2 | BL108: 95 | BM108: -421.8 | BN108: -1202.13 | BO108: -7.017257059e-07 | BP108: 9.999591308e-07 | BQ108: -86.1 | BR108: -284.97 | BS108: -1.546466865e-07 | BT108: 1.917266429e-07 | CO108: -33.6 | CP108: -90.72 | CQ108: -3.762696243e-08 | CR108: 3.386426618e-08 | CS108: 0 | CT108: -104 | CU108: -1.18221758e-07 | CV108: 2.187102522e-07 | CW108: -541.5 | CX108: -1681.82 | CY108: -1.012221113e-06 | CZ108: 1.444260292e-06 | DB108: -224.5941667 | DC108: -188.8534167 | DD108: 0.002061377078 | DE108: -0.3254992857 | DF108: 5.7
BD109: 10 | BE109: 0.2 | BF109: 10 | BG109: =IF($BE$36/$AT$16*$AB$33<0.2,BE109/$AT$16*$AB$33+0.2-$BE$36/$AT$16*$AB$33,BE109/$AT$16*$AB$33) -> 0.2 | BL109: 96 | BM109: =IF($BB$16=0,"",IF($DF109=$P$9,-$BB$16*($DF109-($DF109-$P$9)),IF($DF109>=0,-$BB$16*$DF109,0))) -> -426.24 | BN109: =IF($BB$16=0,"",IF($DF109=$P$9,-$BB$16*($DF109^2-($DF109-$P$9)^2)/2,IF($DF109>=0,-$BB$16*$DF109^2/2,0))) -> -1227.5712 | BO109: =IF($BB$16=0,"",IF($DF109=$P$9,-$BB$16*($DF109^3-($DF109-$P$9)^3)/(6*$P$10*$P$11),IF($DF109>=0,-$BB$16*$DF109^3/(6*$P$10*$P$11),0))) -> -7.241195441e-07 | BP109: =IF($BB$16=0,"",IF($DF109=$P$9,$BB$16*($DF109^4-($DF109-$P$9)^4)/(24*$P$10*$P$11),IF($DF109>=0,$BB$16*$DF109^4/(24*$P$10*$P$11),0))) -> 1.042732143e-06 | BQ109: =IF($AY$20=$BA$20,"",IF(AND($AY$20="",$AZ$20="",$BA$20="",$BB$20=""),"",(IF($DF109>=$BA$20,-$AZ$20*($DF109-$AY$20-($DF109-$BA$20)),IF($DF109>=$AY$20,-$AZ$20*($DF109-$AY$20),0)))+(IF($DF109>=$BA$20,-1/2*($BB$20-$AZ$20)/($BA$20-$AY$20)*(($DF109-$AY$20)^2-($DF109-$BA$20)^2)+($BB$20-$AZ$20)*($DF109-$BA$20),IF($DF109>=$AY$20,-1/2*($BB$20-$AZ$20)/($BA$20-$AY$20)*($DF109-$AY$20)^2,0))))) -> -86.1 | BR109: =IF($AY$20=$BA$20,"",IF(AND($AY$20="",$AZ$20="",$BA$20="",$BB$20=""),"",(IF($DF109>=$BA$20,-$AZ$20/2*(($DF109-$AY$20)^2-($DF109-$BA$20)^2),IF($DF109>=$AY$20,-$AZ$20/2*($DF109-$AY$20)^2,0)))+(IF($DF109>=$BA$20,-1/6*($BB$20-$AZ$20)/($BA$20-$AY$20)*(($DF109-$AY$20)^3-($DF109-$BA$20)^3)+($BB$20-$AZ$20)/2*($DF109-$BA$20)^2,IF($DF109>=$AY$20,-1/6*($BB$20-$AZ$20)/($BA$20-$AY$20)*($DF109-$AY$20)^3,0))))) -> -290.136 | BS109: =IF($AY$20=$BA$20,"",IF(AND($AY$20="",$AZ$20="",$BA$20="",$BB$20=""),"",(IF($DF109>=$BA$20,-$AZ$20/(6*$P$10*$P$11)*(($DF109-$AY$20)^3-($DF109-$BA$20)^3),IF($DF109>=$AY$20,-$AZ$20/(6*$P$10*$P$11)*($DF109-$AY$20)^3,0)))+(IF($DF109>=$BA$20,-1/(24*$P$10*$P$11)*($BB$20-$AZ$20)/($BA$20-$AY$20)*(($DF109-$AY$20)^4-($DF109-$BA$20)^4)+($BB$20-$AZ$20)/(6*$P$10*$P$11)*($DF109-$BA$20)^3,IF($DF109>=$AY$20,-1/(24*$P$10*$P$11)*($BB$20-$AZ$20)/($BA$20-$AY$20)*($DF109-$AY$20)^4,0))))) -> -1.599473655e-07 | BT109: =IF($AY$20=$BA$20,"",IF(AND($AY$20="",$AZ$20="",$BA$20="",$BB$20=""),"",(IF($DF109>=$BA$20,$AZ$20/(24*$P$10*$P$11)*(($DF109-$AY$20)^4-($DF109-$BA$20)^4),IF($DF109>=$AY$20,$AZ$20/(24*$P$10*$P$11)*($DF109-$AY$20)^4,0)))+(IF($DF109>=$BA$20,1/(120*$P$10*$P$11)*($BB$20-$AZ$20)/($BA$20-$AY$20)*(($DF109-$AY$20)^5-($DF109-$BA$20)^5)-($BB$20-$AZ$20)/(24*$P$10*$P$11)*($DF109-$BA$20)^4,IF($DF109>=$AY$20,1/(120*$P$10*$P$11)*($BB$20-$AZ$20)/($BA$20-$AY$20)*($DF109-$AY$20)^5,0))))) -> 2.011639883e-07 | BU109: =IF($AY$21=$BA$21,"",IF(AND($AY$21="",$AZ$21="",$BA$21="",$BB$21=""),"",(IF($DF109>=$BA$21,-$AZ$21*($DF109-$AY$21-($DF109-$BA$21)),IF($DF109>=$AY$21,-$AZ$21*($DF109-$AY$21),0)))+(IF($DF109>=$BA$21,-1/2*($BB$21-$AZ$21)/($BA$21-$AY$21)*(($DF109-$AY$21)^2-($DF109-$BA$21)^2)+($BB$21-$AZ$21)*($DF109-$BA$21),IF($DF109>=$AY$21,-1/2*($BB$21-$AZ$21)/($BA$21-$AY$21)*($DF109-$AY$21)^2,0))))) ->  | BV109: =IF($AY$21=$BA$21,"",IF(AND($AY$21="",$AZ$21="",$BA$21="",$BB$21=""),"",(IF($DF109>=$BA$21,-$AZ$21/2*(($DF109-$AY$21)^2-($DF109-$BA$21)^2),IF($DF109>=$AY$21,-$AZ$21/2*($DF109-$AY$21)^2,0)))+(IF($DF109>=$BA$21,-1/6*($BB$21-$AZ$21)/($BA$21-$AY$21)*(($DF109-$AY$21)^3-($DF109-$BA$21)^3)+($BB$21-$AZ$21)/2*($DF109-$BA$21)^2,IF($DF109>=$AY$21,-1/6*($BB$21-$AZ$21)/($BA$21-$AY$21)*($DF109-$AY$21)^3,0))))) ->  | BW109: =IF($AY$21=$BA$21,"",IF(AND($AY$21="",$AZ$21="",$BA$21="",$BB$21=""),"",(IF($DF109>=$BA$21,-$AZ$21/(6*$P$10*$P$11)*(($DF109-$AY$21)^3-($DF109-$BA$21)^3),IF($DF109>=$AY$21,-$AZ$21/(6*$P$10*$P$11)*($DF109-$AY$21)^3,0)))+(IF($DF109>=$BA$21,-1/(24*$P$10*$P$11)*($BB$21-$AZ$21)/($BA$21-$AY$21)*(($DF109-$AY$21)^4-($DF109-$BA$21)^4)+($BB$21-$AZ$21)/(6*$P$10*$P$11)*($DF109-$BA$21)^3,IF($DF109>=$AY$21,-1/(24*$P$10*$P$11)*($BB$21-$AZ$21)/($BA$21-$AY$21)*($DF109-$AY$21)^4,0))))) ->  | BX109: =IF($AY$21=$BA$21,"",IF(AND($AY$21="",$AZ$21="",$BA$21="",$BB$21=""),"",(IF($DF109>=$BA$21,$AZ$21/(24*$P$10*$P$11)*(($DF109-$AY$21)^4-($DF109-$BA$21)^4),IF($DF109>=$AY$21,$AZ$21/(24*$P$10*$P$11)*($DF109-$AY$21)^4,0)))+(IF($DF109>=$BA$21,1/(120*$P$10*$P$11)*($BB$21-$AZ$21)/($BA$21-$AY$21)*(($DF109-$AY$21)^5-($DF109-$BA$21)^5)-($BB$21-$AZ$21)/(24*$P$10*$P$11)*($DF109-$BA$21)^4,IF($DF109>=$AY$21,1/(120*$P$10*$P$11)*($BB$21-$AZ$21)/($BA$21-$AY$21)*($DF109-$AY$21)^5,0))))) ->  | BY109: =IF($AY$22=$BA$22,"",IF(AND($AY$22="",$AZ$22="",$BA$22="",$BB$22=""),"",(IF($DF109>=$BA$22,-$AZ$22*($DF109-$AY$22-($DF109-$BA$22)),IF($DF109>=$AY$22,-$AZ$22*($DF109-$AY$22),0)))+(IF($DF109>=$BA$22,-1/2*($BB$22-$AZ$22)/($BA$22-$AY$22)*(($DF109-$AY$22)^2-($DF109-$BA$22)^2)+($BB$22-$AZ$22)*($DF109-$BA$22),IF($DF109>=$AY$22,-1/2*($BB$22-$AZ$22)/($BA$22-$AY$22)*($DF109-$AY$22)^2,0))))) ->  | BZ109: =IF($AY$22=$BA$22,"",IF(AND($AY$22="",$AZ$22="",$BA$22="",$BB$22=""),"",(IF($DF109>=$BA$22,-$AZ$22/2*(($DF109-$AY$22)^2-($DF109-$BA$22)^2),IF($DF109>=$AY$22,-$AZ$22/2*($DF109-$AY$22)^2,0)))+(IF($DF109>=$BA$22,-1/6*($BB$22-$AZ$22)/($BA$22-$AY$22)*(($DF109-$AY$22)^3-($DF109-$BA$22)^3)+($BB$22-$AZ$22)/2*($DF109-$BA$22)^2,IF($DF109>=$AY$22,-1/6*($BB$22-$AZ$22)/($BA$22-$AY$22)*($DF109-$AY$22)^3,0))))) ->  | CA109: =IF($AY$22=$BA$22,"",IF(AND($AY$22="",$AZ$22="",$BA$22="",$BB$22=""),"",(IF($DF109>=$BA$22,-$AZ$22/(6*$P$10*$P$11)*(($DF109-$AY$22)^3-($DF109-$BA$22)^3),IF($DF109>=$AY$22,-$AZ$22/(6*$P$10*$P$11)*($DF109-$AY$22)^3,0)))+(IF($DF109>=$BA$22,-1/(24*$P$10*$P$11)*($BB$22-$AZ$22)/($BA$22-$AY$22)*(($DF109-$AY$22)^4-($DF109-$BA$22)^4)+($BB$22-$AZ$22)/(6*$P$10*$P$11)*($DF109-$BA$22)^3,IF($DF109>=$AY$22,-1/(24*$P$10*$P$11)*($BB$22-$AZ$22)/($BA$22-$AY$22)*($DF109-$AY$22)^4,0))))) ->  | CB109: =IF($AY$22=$BA$22,"",IF(AND($AY$22="",$AZ$22="",$BA$22="",$BB$22=""),"",(IF($DF109>=$BA$22,$AZ$22/(24*$P$10*$P$11)*(($DF109-$AY$22)^4-($DF109-$BA$22)^4),IF($DF109>=$AY$22,$AZ$22/(24*$P$10*$P$11)*($DF109-$AY$22)^4,0)))+(IF($DF109>=$BA$22,1/(120*$P$10*$P$11)*($BB$22-$AZ$22)/($BA$22-$AY$22)*(($DF109-$AY$22)^5-($DF109-$BA$22)^5)-($BB$22-$AZ$22)/(24*$P$10*$P$11)*($DF109-$BA$22)^4,IF($DF109>=$AY$22,1/(120*$P$10*$P$11)*($BB$22-$AZ$22)/($BA$22-$AY$22)*($DF109-$AY$22)^5,0))))) ->  | CC109: =IF($AY$23=$BA$23,"",IF(AND($AY$23="",$AZ$23="",$BA$23="",$BB$23=""),"",(IF($DF109>=$BA$23,-$AZ$23*($DF109-$AY$23-($DF109-$BA$23)),IF($DF109>=$AY$23,-$AZ$23*($DF109-$AY$23),0)))+(IF($DF109>=$BA$23,-1/2*($BB$23-$AZ$23)/($BA$23-$AY$23)*(($DF109-$AY$23)^2-($DF109-$BA$23)^2)+($BB$23-$AZ$23)*($DF109-$BA$23),IF($DF109>=$AY$23,-1/2*($BB$23-$AZ$23)/($BA$23-$AY$23)*($DF109-$AY$23)^2,0))))) ->  | CD109: =IF($AY$23=$BA$23,"",IF(AND($AY$23="",$AZ$23="",$BA$23="",$BB$23=""),"",(IF($DF109>=$BA$23,-$AZ$23/2*(($DF109-$AY$23)^2-($DF109-$BA$23)^2),IF($DF109>=$AY$23,-$AZ$23/2*($DF109-$AY$23)^2,0)))+(IF($DF109>=$BA$23,-1/6*($BB$23-$AZ$23)/($BA$23-$AY$23)*(($DF109-$AY$23)^3-($DF109-$BA$23)^3)+($BB$23-$AZ$23)/2*($DF109-$BA$23)^2,IF($DF109>=$AY$23,-1/6*($BB$23-$AZ$23)/($BA$23-$AY$23)*($DF109-$AY$23)^3,0))))) ->  | CE109: =IF($AY$23=$BA$23,"",IF(AND($AY$23="",$AZ$23="",$BA$23="",$BB$23=""),"",(IF($DF109>=$BA$23,-$AZ$23/(6*$P$10*$P$11)*(($DF109-$AY$23)^3-($DF109-$BA$23)^3),IF($DF109>=$AY$23,-$AZ$23/(6*$P$10*$P$11)*($DF109-$AY$23)^3,0)))+(IF($DF109>=$BA$23,-1/(24*$P$10*$P$11)*($BB$23-$AZ$23)/($BA$23-$AY$23)*(($DF109-$AY$23)^4-($DF109-$BA$23)^4)+($BB$23-$AZ$23)/(6*$P$10*$P$11)*($DF109-$BA$23)^3,IF($DF109>=$AY$23,-1/(24*$P$10*$P$11)*($BB$23-$AZ$23)/($BA$23-$AY$23)*($DF109-$AY$23)^4,0))))) ->  | CF109: =IF($AY$23=$BA$23,"",IF(AND($AY$23="",$AZ$23="",$BA$23="",$BB$23=""),"",(IF($DF109>=$BA$23,$AZ$23/(24*$P$10*$P$11)*(($DF109-$AY$23)^4-($DF109-$BA$23)^4),IF($DF109>=$AY$23,$AZ$23/(24*$P$10*$P$11)*($DF109-$AY$23)^4,0)))+(IF($DF109>=$BA$23,1/(120*$P$10*$P$11)*($BB$23-$AZ$23)/($BA$23-$AY$23)*(($DF109-$AY$23)^5-($DF109-$BA$23)^5)-($BB$23-$AZ$23)/(24*$P$10*$P$11)*($DF109-$BA$23)^4,IF($DF109>=$AY$23,1/(120*$P$10*$P$11)*($BB$23-$AZ$23)/($BA$23-$AY$23)*($DF109-$AY$23)^5,0))))) ->  | CG109: =IF($AY$24=$BA$24,"",IF(AND($AY$24="",$AZ$24="",$BA$24="",$BB$24=""),"",(IF($DF109>=$BA$24,-$AZ$24*($DF109-$AY$24-($DF109-$BA$24)),IF($DF109>=$AY$24,-$AZ$24*($DF109-$AY$24),0)))+(IF($DF109>=$BA$24,-1/2*($BB$24-$AZ$24)/($BA$24-$AY$24)*(($DF109-$AY$24)^2-($DF109-$BA$24)^2)+($BB$24-$AZ$24)*($DF109-$BA$24),IF($DF109>=$AY$24,-1/2*($BB$24-$AZ$24)/($BA$24-$AY$24)*($DF109-$AY$24)^2,0))))) ->  | CH109: =IF($AY$24=$BA$24,"",IF(AND($AY$24="",$AZ$24="",$BA$24="",$BB$24=""),"",(IF($DF109>=$BA$24,-$AZ$24/2*(($DF109-$AY$24)^2-($DF109-$BA$24)^2),IF($DF109>=$AY$24,-$AZ$24/2*($DF109-$AY$24)^2,0)))+(IF($DF109>=$BA$24,-1/6*($BB$24-$AZ$24)/($BA$24-$AY$24)*(($DF109-$AY$24)^3-($DF109-$BA$24)^3)+($BB$24-$AZ$24)/2*($DF109-$BA$24)^2,IF($DF109>=$AY$24,-1/6*($BB$24-$AZ$24)/($BA$24-$AY$24)*($DF109-$AY$24)^3,0))))) ->  | CI109: =IF($AY$24=$BA$24,"",IF(AND($AY$24="",$AZ$24="",$BA$24="",$BB$24=""),"",(IF($DF109>=$BA$24,-$AZ$24/(6*$P$10*$P$11)*(($DF109-$AY$24)^3-($DF109-$BA$24)^3),IF($DF109>=$AY$24,-$AZ$24/(6*$P$10*$P$11)*($DF109-$AY$24)^3,0)))+(IF($DF109>=$BA$24,-1/(24*$P$10*$P$11)*($BB$24-$AZ$24)/($BA$24-$AY$24)*(($DF109-$AY$24)^4-($DF109-$BA$24)^4)+($BB$24-$AZ$24)/(6*$P$10*$P$11)*($DF109-$BA$24)^3,IF($DF109>=$AY$24,-1/(24*$P$10*$P$11)*($BB$24-$AZ$24)/($BA$24-$AY$24)*($DF109-$AY$24)^4,0))))) ->  | CJ109: =IF($AY$24=$BA$24,"",IF(AND($AY$24="",$AZ$24="",$BA$24="",$BB$24=""),"",(IF($DF109>=$BA$24,$AZ$24/(24*$P$10*$P$11)*(($DF109-$AY$24)^4-($DF109-$BA$24)^4),IF($DF109>=$AY$24,$AZ$24/(24*$P$10*$P$11)*($DF109-$AY$24)^4,0)))+(IF($DF109>=$BA$24,1/(120*$P$10*$P$11)*($BB$24-$AZ$24)/($BA$24-$AY$24)*(($DF109-$AY$24)^5-($DF109-$BA$24)^5)-($BB$24-$AZ$24)/(24*$P$10*$P$11)*($DF109-$BA$24)^4,IF($DF109>=$AY$24,1/(120*$P$10*$P$11)*($BB$24-$AZ$24)/($BA$24-$AY$24)*($DF109-$AY$24)^5,0))))) ->  | CK109: =IF($AY$25=$BA$25,"",IF(AND($AY$25="",$AZ$25="",$BA$25="",$BB$25=""),"",(IF($DF109>=$BA$25,-$AZ$25*($DF109-$AY$25-($DF109-$BA$25)),IF($DF109>=$AY$25,-$AZ$25*($DF109-$AY$25),0)))+(IF($DF109>=$BA$25,-1/2*($BB$25-$AZ$25)/($BA$25-$AY$25)*(($DF109-$AY$25)^2-($DF109-$BA$25)^2)+($BB$25-$AZ$25)*($DF109-$BA$25),IF($DF109>=$AY$25,-1/2*($BB$25-$AZ$25)/($BA$25-$AY$25)*($DF109-$AY$25)^2,0))))) ->  | CL109: =IF($AY$25=$BA$25,"",IF(AND($AY$25="",$AZ$25="",$BA$25="",$BB$25=""),"",(IF($DF109>=$BA$25,-$AZ$25/2*(($DF109-$AY$25)^2-($DF109-$BA$25)^2),IF($DF109>=$AY$25,-$AZ$25/2*($DF109-$AY$25)^2,0)))+(IF($DF109>=$BA$25,-1/6*($BB$25-$AZ$25)/($BA$25-$AY$25)*(($DF109-$AY$25)^3-($DF109-$BA$25)^3)+($BB$25-$AZ$25)/2*($DF109-$BA$25)^2,IF($DF109>=$AY$25,-1/6*($BB$25-$AZ$25)/($BA$25-$AY$25)*($DF109-$AY$25)^3,0))))) ->  | CM109: =IF($AY$25=$BA$25,"",IF(AND($AY$25="",$AZ$25="",$BA$25="",$BB$25=""),"",(IF($DF109>=$BA$25,-$AZ$25/(6*$P$10*$P$11)*(($DF109-$AY$25)^3-($DF109-$BA$25)^3),IF($DF109>=$AY$25,-$AZ$25/(6*$P$10*$P$11)*($DF109-$AY$25)^3,0)))+(IF($DF109>=$BA$25,-1/(24*$P$10*$P$11)*($BB$25-$AZ$25)/($BA$25-$AY$25)*(($DF109-$AY$25)^4-($DF109-$BA$25)^4)+($BB$25-$AZ$25)/(6*$P$10*$P$11)*($DF109-$BA$25)^3,IF($DF109>=$AY$25,-1/(24*$P$10*$P$11)*($BB$25-$AZ$25)/($BA$25-$AY$25)*($DF109-$AY$25)^4,0))))) ->  | CN109: =IF($AY$25=$BA$25,"",IF(AND($AY$25="",$AZ$25="",$BA$25="",$BB$25=""),"",(IF($DF109>=$BA$25,$AZ$25/(24*$P$10*$P$11)*(($DF109-$AY$25)^4-($DF109-$BA$25)^4),IF($DF109>=$AY$25,$AZ$25/(24*$P$10*$P$11)*($DF109-$AY$25)^4,0)))+(IF($DF109>=$BA$25,1/(120*$P$10*$P$11)*($BB$25-$AZ$25)/($BA$25-$AY$25)*(($DF109-$AY$25)^5-($DF109-$BA$25)^5)-($BB$25-$AZ$25)/(24*$P$10*$P$11)*($DF109-$BA$25)^4,IF($DF109>=$AY$25,1/(120*$P$10*$P$11)*($BB$25-$AZ$25)/($BA$25-$AY$25)*($DF109-$AY$25)^5,0))))) ->  | CO109: =IF($DF109>$AY$30,-$AZ$30,0)+IF($DF109>$AY$31,-$AZ$31,0)+IF($DF109>$AY$32,-$AZ$32,0)+IF($DF109>$AY$33,-$AZ$33,0)+IF($DF109>$AY$34,-$AZ$34,0)+IF($DF109>$AY$35,-$AZ$35,0) -> -33.6 | CP109: =IF($DF109>$AY$30,-$AZ$30*($DF109-$AY$30),0)+IF($DF109>$AY$31,-$AZ$31*($DF109-$AY$31),0)+IF($DF109>$AY$32,-$AZ$32*($DF109-$AY$32),0)+IF($DF109>$AY$33,-$AZ$33*($DF109-$AY$33),0)+IF($DF109>$AY$34,-$AZ$34*($DF109-$AY$34),0)+IF($DF109>$AY$35,-$AZ$35*($DF109-$AY$35),0) -> -92.736 | CQ109: =IF($DF109>$AY$30,-$AZ$30*($DF109-$AY$30)^2/(2*$P$10*$P$11),0)+IF($DF109>$AY$31,-$AZ$31*($DF109-$AY$31)^2/(2*$P$10*$P$11),0)+IF($DF109>$AY$32,-$AZ$32*($DF109-$AY$32)^2/(2*$P$10*$P$11),0)+IF($DF109>$AY$33,-$AZ$33*($DF109-$AY$33)^2/(2*$P$10*$P$11),0)+IF($DF109>$AY$34,-$AZ$34*($DF109-$AY$34)^2/(2*$P$10*$P$11),0)+IF($DF109>$AY$35,-$AZ$35*($DF109-$AY$35)^2/(2*$P$10*$P$11),0) -> -3.931785308e-08 | CR109: =IF($DF109>$AY$30,$AZ$30*($DF109-$AY$30)^3/(6*$P$10*$P$11),0)+IF($DF109>$AY$31,$AZ$31*($DF109-$AY$31)^3/(6*$P$10*$P$11),0)+IF($DF109>$AY$32,$AZ$32*($DF109-$AY$32)^3/(6*$P$10*$P$11),0)+IF($DF109>$AY$33,$AZ$33*($DF109-$AY$33)^3/(6*$P$10*$P$11),0)+IF($DF109>$AY$34,$AZ$34*($DF109-$AY$34)^3/(6*$P$10*$P$11),0)+IF($DF109>$AY$35,$AZ$35*($DF109-$AY$35)^3/(6*$P$10*$P$11),0) -> 3.617242484e-08 | CS109: =IF($DF109>=IF($AY$47=$P$9,$AY$47+0.000000001,$AY$47),0,0)+IF($DF109>=IF($AY$48=$P$9,$AY$48+0.000000001,$AY$48),0,0)+IF($DF109>=IF($AY$49=$P$9,$AY$49+0.000000001,$AY$49),0,0)+IF($DF109>=IF($AY$50=$P$9,$AY$50+0.000000001,$AY$50),0,0)+IF($DF109>=IF($AY$51=$P$9,$AY$51+0.000000001,$AY$51),0,0)+IF($DF109>=IF($AY$52=$P$9,$AY$52+0.000000001,$AY$52),0,0) -> 0 | CT109: =IF($DF109>=IF($AY$47=$P$9,$AY$47+0.000000001,$AY$47),-$AZ$47,0)+IF($DF109>=IF($AY$48=$P$9,$AY$48+0.000000001,$AY$48),-$AZ$48,0)+IF($DF109>=IF($AY$49=$P$9,$AY$49+0.000000001,$AY$49),-$AZ$49,0)+IF($DF109>=IF($AY$50=$P$9,$AY$50+0.000000001,$AY$50),-$AZ$50,0)+IF($DF109>=IF($AY$51=$P$9,$AY$51+0.000000001,$AY$51),-$AZ$51,0)+IF($DF109>=IF($AY$52=$P$9,$AY$52+0.000000001,$AY$52),-$AZ$52,0) -> -104 | CU109: =IF($DF109>=IF($AY$47=$P$9,$AY$47+0.000000001,$AY$47),-$AZ$47*($DF109-$AY$47)/($P$10*$P$11),0)+IF($DF109>=IF($AY$48=$P$9,$AY$48+0.000000001,$AY$48),-$AZ$48*($DF109-$AY$48)/($P$10*$P$11),0)+IF($DF109>=IF($AY$49=$P$9,$AY$49+0.000000001,$AY$49),-$AZ$49*($DF109-$AY$49)/($P$10*$P$11),0)+IF($DF109>=IF($AY$50=$P$9,$AY$50+0.000000001,$AY$50),-$AZ$50*($DF109-$AY$50)/($P$10*$P$11),0)+IF($DF109>=IF($AY$51=$P$9,$AY$51+0.000000001,$AY$51),-$AZ$51*($DF109-$AY$51)/($P$10*$P$11),0)+IF($DF109>=IF($AY$52=$P$9,$AY$52+0.000000001,$AY$52),-$AZ$52*($DF109-$AY$52)/($P$10*$P$11),0) -> -1.201388676e-07 | CV109: =IF($DF109>=IF($AY$47=$P$9,$AY$47+0.000000001,$AY$47),$AZ$47*($DF109-$AY$47)^2/(2*$P$10*$P$11),0)+IF($DF109>=IF($AY$48=$P$9,$AY$48+0.000000001,$AY$48),$AZ$48*($DF109-$AY$48)^2/(2*$P$10*$P$11),0)+IF($DF109>=IF($AY$49=$P$9,$AY$49+0.000000001,$AY$49),$AZ$49*($DF109-$AY$49)^2/(2*$P$10*$P$11),0)+IF($DF109>=IF($AY$50=$P$9,$AY$50+0.000000001,$AY$50),$AZ$50*($DF109-$AY$50)^2/(2*$P$10*$P$11),0)+IF($DF109>=IF($AY$51=$P$9,$AY$51+0.000000001,$AY$51),$AZ$51*($DF109-$AY$51)^2/(2*$P$10*$P$11),0)+IF($DF109>=IF($AY$52=$P$9,$AY$52+0.000000001,$AY$52),$AZ$52*($DF109-$AY$52)^2/(2*$P$10*$P$11),0) -> 2.25861071e-07 | CW109: -545.94 | CX109: -1714.4432 | CY109: -1.04352363e-06 | CZ109: 1.505929628e-06 | DB109: -229.0341667 | DC109: =$BI$30+$BH$30*$DF109+$CX109 -> -202.4622667 | DD109: =($BJ$30+$BI$30*$DF109/($P$10*$P$11)+$BH$30*$DF109^2/(2*$P$10*$P$11)+$CY109)*100000 -> 0.001700747304 | DE109: =(-($BK$30-$BJ$30*$DF109-$BI$30*$DF109^2/(2*$P$10*$P$11)-$BH$30*$DF109^3/(6*$P$10*$P$11)+$CZ109))*100000000 -> -0.2125101232 | DF109: 5.76
BD110: 10 | BE110: 4 | BF110: 10 | BG110: =IF($BE$36/$AT$16*$AB$33<0.2,BE110/$AT$16*$AB$33+0.2-$BE$36/$AT$16*$AB$33,BE110/$AT$16*$AB$33) -> 3.366666667 | BL110: 97 | BM110: -430.68 | BN110: -1253.2788 | BO110: -7.469848143e-07 | BP110: 1.086862905e-06 | BQ110: -86.1 | BR110: -295.302 | BS110: -1.653432732e-07 | BT110: 2.109222313e-07 | CO110: -33.6 | CP110: -94.752 | CQ110: -4.104590617e-08 | CR110: 3.85831518e-08 | CS110: 0 | CT110: -104 | CU110: -1.220559771e-07 | CV110: 2.331269163e-07 | CW110: -550.38 | CX110: -1747.3328 | CY110: -1.075429971e-06 | CZ110: 1.569495204e-06 | DB110: -233.4741667 | DC110: -216.3375167 | DD110: 0.001314785785 | DE110: -0.1219162441 | DF110: 5.82
BD111: 0 | BE111: =BE110 -> 4 | BF111: 0 | BG111: =IF($BE$36/$AT$16*$AB$33<0.2,BE111/$AT$16*$AB$33+0.2-$BE$36/$AT$16*$AB$33,BE111/$AT$16*$AB$33) -> 3.366666667 | BL111: 98 | BM111: -435.12 | BN111: -1279.2528 | BO111: -7.703264272e-07 | BP111: 1.132379848e-06 | BQ111: -86.1 | BR111: -300.468 | BS111: -1.708344097e-07 | BT111: 2.210070857e-07 | CO111: -33.6 | CP111: -96.768 | CQ111: -4.281112169e-08 | CR111: 4.109867683e-08 | CS111: 0 | CT111: -104 | CU111: -1.239730867e-07 | CV111: 2.405077883e-07 | CW111: -554.82 | CX111: -1780.4888 | CY111: -1.107945045e-06 | CZ111: 1.634993399e-06 | DB111: -237.9141667 | DC111: -230.4791667 | DD111: 0.000903001444 | DE111: -0.05525228548 | DF111: 5.88
BD112: =BD108 -> 0 | BE112: =BE108 -> 0.2 | BF112: =BF108 -> 0 | BG112: =IF(BE112/$AT$16*$AB$33<0.2,0.2,BE112/$AT$16*$AB$33) -> 0.2 | BL112: 99 | BM112: -439.56 | BN112: -1305.4932 | BO112: -7.941492937e-07 | BP112: 1.179311701e-06 | BQ112: -86.1 | BR112: -305.634 | BS112: -1.764207748e-07 | BT112: 2.314242651e-07 | CO112: -33.6 | CP112: -98.784 | CQ112: -4.461349965e-08 | CR112: 4.372122965e-08 | CS112: 0 | CT112: -104 | CU112: -1.258901963e-07 | CV112: 2.480036867e-07 | CW112: -559.26 | CX112: -1813.9112 | CY112: -1.141073764e-06 | CZ112: 1.702460883e-06 | DB112: -242.3541667 | DC112: -244.8872167 | DD112: 0.0004649032075 | DE112: -0.01408234877 | DF112: 5.94
BL113: 100 | BM113: -444 | BN113: -1332 | BO113: -8.184583244e-07 | BP113: 1.227687487e-06 | BQ113: -86.1 | BR113: -310.8 | BS113: -1.821023687e-07 | BT113: 2.421794832e-07 | CO113: -33.6 | CP113: -100.8 | CQ113: -4.645304003e-08 | CR113: 4.645304003e-08 | CS113: 0 | CT113: -104 | CU113: -1.278073059e-07 | CV113: 2.556146118e-07 | CW113: -563.7 | CX113: -1847.6 | CY113: -1.174821039e-06 | CZ113: 1.771934622e-06 | DB113: -246.7941667 | DC113: -259.5616667 | DD113: 0 | DE113: 2.117582368e-14 | DF113: 6
BM114: -403.3 | BN114: -1098.9925 | BO114: -6.133838341e-07 | BP114: 8.35735474e-07 | BQ114: -86.1 | BR114: -263.445 | BS114: -1.335855556e-07 | BT114: 1.557320559e-07 | CO114: -33.6 | CP114: -82.32 | CQ114: -3.098159698e-08 | CR114: 2.530163753e-08 | CS114: 0 | CT114: -104 | CU114: -1.102338013e-07 | CV114: 1.901533073e-07 | CW114: =SUM(CS114,CO114,CK114,CG114,CC114,BY114,BU114,BQ114,BM114) -> -523 | CX114: =SUM(CT114,CP114,CL114,CH114,CD114,BZ114,BV114,BR114,BN114) -> -1548.7575 | CY114: =SUM(CU114,CQ114,CM114,CI114,CE114,CA114,BW114,BS114,BO114) -> -8.881847881e-07 | CZ114: =SUM(CV114,CR114,CN114,CJ114,CF114,CB114,BX114,BT114,BP114) -> 1.206922475e-06 | DB114: -206.0941667 | DC114: -135.017375 | DD114: 0.003302198448 | DE114: -1.004560809 | DF114: =Y58 -> 5.45
DB119: Max | DC119: Location | DD119: Min | DE119: Location
DA120: shar | DB120: =MAX(DB13:DB113) -> 316.9058333 | DC120: =VLOOKUP(DB120,DB13:DG113,5,FALSE) -> 0 | DD120: =MIN(DB13:DB113) -> -246.7941667 | DE120: =VLOOKUP(DD120,DB13:DG113,5,FALSE) -> 6
DA121: bnding | DB121: =MAX(DC13:DC113) -> 152.8739177 | DC121: =VLOOKUP(DB121,DC13:DH113,4,FALSE) -> 1.98 | DD121: =MIN(DC13:DC113) -> -313.3966667 | DE121: =VLOOKUP(DD121,DC13:DH113,4,FALSE) -> 0
DA122: rotation | DB122: =MAX(DD13:DD113) -> 0.004792177763 | DC122: =VLOOKUP(DB122,DD13:DI113,3,FALSE) -> 4.68 | DD122: =MIN(DD13:DD113) -> -0.005211684074 | DE122: =VLOOKUP(DD122,DD13:DI113,3,FALSE) -> 1.14
DA123: dflction | DB123: =MAX(DE13:DE113) -> 2.117582368e-14 | DC123: =VLOOKUP(DB123,DE13:DJ113,2,FALSE) -> 6 | DD123: =MIN(DE13:DE113) -> -9.469718093 | DE123: =VLOOKUP(DD123,DE13:DJ113,2,FALSE) -> 2.94
DA125: End Reactions (kN, kN-m):
DA126: RL = | DB126: =IF($BF$15=2,"N.A.",$DB$13+$FK$22) -> 316.9058333 | DC126: RR = | DD126: =-$DB$113+$FL$22 -> 246.7941667
DA127: ML = | DB127: =IF(OR($BF$15=1,$BF$15=3,$BF$15=2),"NA",$DC$13) -> -313.3966667 | DC127: MR = | DD127: =IF($BF$15=1,"NA",$DC$113) -> -259.5616667
